Workbook

Sheet Riskk (hidden)
A1: linda | B1: UPSW | H1: =COUNT(H3:H20) -> 0 | I1: FALSE | N1: PortTotal row | O1: Last year Amort/Accre | P1: Amt | Q1: LstMthAmortAccre | R1: Amt
B2: Userid | H2: Main/sub | I2: Caption | J2: On Action | K2: NewGroup | N2: =MATCH("Portfolio Total",Val!$S:$S,0) -> 29 | O2: ="111"&_mth4 -> 11142190 | P2: =SUMIF(InTB!G:G,Amort1,InTB!E:E) -> 0 | Q2: ="111"&_mth2 -> 11142338 | R2: =SUMIF(InTB!G:G,Q2,InTB!E:E) -> 0
A3: 3 | B3: UserLevel | O3: ="121"&_mth4 -> 12142190 | P3: =SUMIF(InTB!G:G,Amort2,InTB!E:E) -> 0 | Q3: ="121"&_mth2 -> 12142338 | R3: =SUMIF(InTB!G:G,Q3,InTB!E:E) -> 0
A4: 2006-05-09T11:19:39 | B4: LoginTime
B5: LogoutTime

Sheet Login (hidden)
H2: Box 389, Lot 7.16, Wisma Central, Jln Ampang, 50450 Kuala Lumpur
B9: VCAM CLIENT REPORT
J18: `

Sheet Main (hidden)
D1: Box 389, Lot 7.16, Wisma Central, Jln Ampang, 50450 Kuala Lumpur
A2: Sdn Bhd (CN 388306K)
J5: Sheet | K5: Print
J6: TOC | K6: YES
J7: ValByTerm | K7: YES
J8: ValByClass | K8: YES
J9: Purchase | K9: YES
J10: Sale | K10: YES
J11: MMIncome | K11: YES
J12: PL | K12: YES
J13: BS | K13: YES
J14: Expenses | K14: NO
J15: CashFlow | K15: YES
J16: Return | K16: NO
J17: Letter | K17: YES

Sheet EOM Print
L2: Print Group | M2: Select One | N2: =MATCH(FundCode,B:B,0) -> 9 | O2: =MATCH(FundCode,InFund!A:A,0)-1 -> 5
B3: Fund Code | D3: CF Balance | E3: Bank Acc | F3: BS Balance | G3: Amort | H3: AVS | I3: Oth Fee | J3: Group | L3: Page | M3: Letter | O3: =IF(OFFSET(InFund!P1,'EOM Print'!O2,0)=0,FALSE,TRUE) -> FALSE
B4: KHAZANAH | G4: 1 | H4: 0 | J4: None | L4: Row No | M4: 4
B5: KWAP | G5: 1 | H5: 0 | J5: None | L5: Max Row | M5: =COUNTA(B:B) +2 -> 10
B6: KWAPFI | G6: 1 | H6: 0 | J6: None
B7: VCAM | G7: 1 | H7: 0 | J7: None
B8: VCAMOPR | G8: 1 | H8: 0 | J8: None | L8: Parameters
B9: MEQESG | G9: 1 | H9: 0 | J9: None | L9: Company : | M9: VCAP ASSET MANAGERS SDN. BHD.
B10: YAMIR-VCAM | G10: 1 | H10: 0 | J10: None | L10: Fund : | M10: MEQESG
G11: 1 | H11: 0 | J11: None | L11: Fund Name : | M11: =VLOOKUP(FundCode,InFund!A:B,2,0) -> Malaysian ESG Opportunity Fund
G12: 1 | H12: 0 | J12: None | L12: Fund Currency: | M12: =VLOOKUP(FundCode,InFund!A:Q,17,0) -> MYR
G13: 1 | H13: 0 | J13: None | L13: Inception Date : | M13: =VLOOKUP(FundCode,InFund!A:C,3,0) -> 2015-07-06
G14: 1 | H14: 0 | J14: None | L14: Start Of Year : | M14: =IF(IF(O14>EOM,EDATE(O14,-12),O14)<IncDate,IncDate,IF(O14>EOM,EDATE(O14,-12),O14)) -> 2015-07-06 | N14: =VLOOKUP(FundCode,InFund!A:D,4,0) -> 2016-06-30 | O14: =DATE(YEAR(EOM),MONTH(N14),DAY(N14))+1 -> 2015-07-01
G15: 1 | H15: 0 | J15: None | L15: End of Last Month : | M15: =EOMONTH(M16,-1) -> 2015-11-30
G16: 1 | H16: 0 | J16: None | L16: Report As At : | M16: 2015-12-01 | N16: =EOM -> 2015-12-01
G17: 1 | H17: 0 | J17: None | L17: Index Bench Mark : | M17: =VLOOKUP(FundCode,InFund!$A:$E,5,0) -> FBMKLCI
G18: 1 | H18: 0 | J18: None | L18: Print OK | M18: =IF(ISNA(IncDate),FALSE,TRUE) -> TRUE
G19: 1 | H19: 0 | J19: None | L19: User Name :
G20: 1 | H20: 0 | J20: None
G21: 1 | H21: 0 | J21: None
G22: 1 | H22: 0 | J22: None
G23: 1 | H23: 0 | J23: None
G24: 1 | H24: 0 | J24: None
G25: 1 | H25: 0 | J25: None
G26: 1 | H26: 0 | J26: None
G27: 1 | H27: 0 | J27: None
G28: 1 | H28: 0 | J28: None
G29: 1 | H29: 0 | J29: None
G30: 1 | H30: 0 | J30: None
G31: 1 | H31: 0 | J31: None
G32: 1 | H32: 0 | J32: None
G33: 1 | H33: 0 | J33: None
G34: 1 | H34: 0 | J34: None
G35: 1 | H35: 0 | J35: None
G36: 1 | H36: 0 | J36: None
G37: 1 | H37: 0 | J37: None
G38: 1 | H38: 0 | J38: None
G39: 1 | H39: 0 | J39: None
G40: 1 | H40: 0 | J40: None
G41: 1 | H41: 0 | J41: None
G42: 1 | H42: 0 | J42: None
G43: 1 | H43: 0 | J43: None
G44: 1 | H44: 0 | J44: None
G45: 1 | H45: 0 | J45: None
G46: 1 | H46: 0 | J46: None
G47: 1 | H47: 0 | J47: None
G48: 1 | H48: 0 | J48: None
G49: 1 | H49: 0 | J49: None
G50: 1 | H50: 0 | J50: None
G51: 1 | H51: 0 | J51: None
G52: 1 | H52: 0 | J52: None
G53: 1 | H53: 0 | J53: None
G54: 1 | H54: 0 | J54: None
G55: 1 | H55: 0 | J55: None
G56: 1 | H56: 0 | J56: None
G57: 1 | H57: 0 | J57: None
G58: 1 | H58: 0 | J58: None
G59: 1 | H59: 0 | J59: None
G60: 1 | H60: 0 | J60: None
G61: 1 | H61: 0 | J61: None
G62: 1 | H62: 0 | J62: None
G63: 1 | H63: 0 | J63: None
G64: 1 | H64: 0 | J64: None
G65: 1 | H65: 0 | J65: None
G66: 1 | H66: 0 | J66: None
G67: 1 | H67: 0 | J67: None
G68: 1 | H68: 0 | J68: None
G69: 1 | H69: 0 | J69: None
G70: 1 | H70: 0 | J70: None
G71: 1 | H71: 0 | J71: None
G72: 1 | H72: 0 | J72: None
G73: 1 | H73: 0 | J73: None
G74: 1 | H74: 0 | J74: None
G75: 1 | H75: 0 | J75: None
G76: 1 | H76: 0 | J76: None
G77: 1 | H77: 0 | J77: None
G78: 1 | H78: 0 | J78: None
G79: 1 | H79: 0 | J79: None
G80: 1 | H80: 0 | J80: None
G81: 1 | H81: 0 | J81: None
G82: 1 | H82: 0 | J82: None
G83: 1 | H83: 0 | J83: None
G84: 1 | H84: 0 | J84: None
G85: 1 | H85: 0 | J85: None
G86: 1 | H86: 0 | J86: None
G87: 1 | H87: 0 | J87: None
G88: 1 | H88: 0 | J88: None
G89: 1 | H89: 0 | J89: None
G90: 1 | H90: 0 | J90: None
G91: 1 | H91: 0 | J91: None
G92: 1 | H92: 0 | J92: None
G93: 1 | H93: 0 | J93: None
G94: 1 | H94: 0 | J94: None
G95: 1 | H95: 0 | J95: None
G96: 1 | H96: 0 | J96: None
G97: 1 | H97: 0 | J97: None
G98: 1 | H98: 0 | J98: None
G99: 1 | H99: 0 | J99: None
G100: 1 | H100: 0 | J100: None
G101: 1 | H101: 0 | J101: None
G102: 1 | H102: 0 | J102: None
G103: 1 | H103: 0 | J103: None
G104: 1 | H104: 0 | J104: None
G105: 1 | H105: 0 | J105: None
G106: 1 | H106: 0 | J106: None
G107: 1 | H107: 0 | J107: None
G108: 1 | H108: 0 | J108: None
G109: 1 | H109: 0 | J109: None
G110: 1 | H110: 0 | J110: None
G111: 1 | H111: 0 | J111: None
G112: 1 | H112: 0 | J112: None
G113: 1 | H113: 0 | J113: None
G114: 1 | H114: 0 | J114: None
G115: 1 | H115: 0 | J115: None
G116: 1 | H116: 0 | J116: None
G117: 1 | H117: 0 | J117: None
G118: 1 | H118: 0 | J118: None
G119: 1 | H119: 0 | J119: None
G120: 1 | H120: 0 | J120: None
G121: 1 | H121: 0 | J121: None
G122: 1 | H122: 0 | J122: None
G123: 1 | H123: 0 | J123: None
G124: 1 | H124: 0 | J124: None
G125: 1 | H125: 0 | J125: None
G126: 1 | H126: 0 | J126: None
G127: 1 | H127: 0 | J127: None
G128: 1 | H128: 0 | J128: None
G129: 1 | H129: 0 | J129: None
G130: 1 | H130: 0 | J130: None
G131: 1 | H131: 0 | J131: None
G132: 1 | H132: 0 | J132: None
G133: 1 | H133: 0 | J133: None
G134: 1 | H134: 0 | J134: None
G135: 1 | H135: 0 | J135: None
G136: 1 | H136: 0 | J136: None
G137: 1 | H137: 0 | J137: None
G138: 1 | H138: 0 | J138: None
G139: 1 | H139: 0 | J139: None
G140: 1 | H140: 0 | J140: None
G141: 1 | H141: 0 | J141: None
G142: 1 | H142: 0 | J142: None
G143: 1 | H143: 0 | J143: None
G144: 1 | H144: 0 | J144: None
G145: 1 | H145: 0 | J145: None
G146: 1 | H146: 0 | J146: None
G147: 1 | H147: 0 | J147: None
G148: 1 | H148: 0 | J148: None
G149: 1 | H149: 0 | J149: None
G150: 1 | H150: 0 | J150: None
G151: 1 | H151: 0 | J151: None
G152: 1 | H152: 0 | J152: None
G153: 1 | H153: 0 | J153: None
G154: 1 | H154: 0 | J154: None
G155: 1 | H155: 0 | J155: None
G156: 1 | H156: 0 | J156: None
G157: 1 | H157: 0 | J157: None
G158: 1 | H158: 0 | J158: None
G159: 1 | H159: 0 | J159: None
G160: 1 | H160: 0 | J160: None
G161: 1 | H161: 0 | J161: None
G162: 1 | H162: 0 | J162: None
G163: 1 | H163: 0 | J163: None
G164: 1 | H164: 0 | J164: None
G165: 1 | H165: 0 | J165: None
G166: 1 | H166: 0 | J166: None
G167: 1 | H167: 0 | J167: None
G168: 1 | H168: 0 | J168: None
G169: 1 | H169: 0 | J169: None
G170: 1 | H170: 0 | J170: None
G171: 1 | H171: 0 | J171: None
G172: 1 | H172: 0 | J172: None
G173: 1 | H173: 0 | J173: None
G174: 1 | H174: 0 | J174: None
G175: 1 | H175: 0 | J175: None
G176: 1 | H176: 0 | J176: None
G177: 1 | H177: 0 | J177: None
G178: 1 | H178: 0 | J178: None
G179: 1 | H179: 0 | J179: None
G180: 1 | H180: 0 | J180: None
G181: 1 | H181: 0 | J181: None
G182: 1 | H182: 0 | J182: None
G183: 1 | H183: 0 | J183: None
G184: 1 | H184: 0 | J184: None
G185: 1 | H185: 0 | J185: None
G186: 1 | H186: 0 | J186: None
G187: 1 | H187: 0 | J187: None
G188: 1 | H188: 0 | J188: None
G189: 1 | H189: 0 | J189: None
G190: 1 | H190: 0 | J190: None
G191: 1 | H191: 0 | J191: None
G192: 1 | H192: 0 | J192: None
G193: 1 | H193: 0 | J193: None
G194: 1 | H194: 0 | J194: None
G195: 1 | H195: 0 | J195: None
G196: 1 | H196: 0 | J196: None
G197: 1 | H197: 0 | J197: None
G198: 1 | H198: 0 | J198: None
G199: 1 | H199: 0 | J199: None
G200: 1 | H200: 0 | J200: None
G201: 1 | H201: 0 | J201: None
... 159 more rows

Sheet TOC
F1: qFundCode | G1: Code
A2: =UPPER(CompanyName) -> VCAP ASSET MANAGERS SDN. BHD.
A5: Portfolio Report
A6: =UPPER(FundName) -> MALAYSIAN ESG OPPORTUNITY FUND
A8: =IF(ISERROR(TRIM(VLOOKUP($A$6,$F:$G,2,0))),"",TRIM(VLOOKUP($A$6,$F:$G,2,0))) -> 
A9: =UPPER("Valuation Date : " & TEXT(EOM, "dd MMM yyyy")) -> VALUATION DATE : 01 DEC 2015
B11: TABLE OF CONTENTS
B14: 1. Portfolio Detail
B15: 2. Purchase
B16: 3. Sale and Realised Gains
B17: 4. Money Market Placement and Profit Accrued
B18: 5. Cash Flow
B19: 6. Profit & Loss
B20: 7. Balance Sheet

Sheet Letter
A1: =MATCH(Letter!A4,InFund!A:A,0)-1 -> 5 | J1: =MATCH(J2,InFund!A:A,0)-1 -> 5
J2: =FundCode -> MEQESG
A3: Fund Code:
A4: =FundCode -> MEQESG | D4: =TEXT(TODAY(), "DD MMM YY") -> 02 Dec 15
D6: =TEXT(OFFSET(InFund!$L$1,$J$1,0),"#") -> N/A
D7: =OFFSET(InFund!$M$1,$J$1,0) -> N/A
D8: =TEXT(IF(OFFSET(InFund!$I$1,$J$1,0)=0,OFFSET(InFund!$J$1,$J$1,0),OFFSET(InFund!$I$1,$J$1,0)),"#") -> N/A
D9: =TEXT(IF(OFFSET(InFund!$I$1,$J$1,0)=0,OFFSET(InFund!$K$1,$J$1,0),OFFSET(InFund!$J$1,$J$1,0)),"#") -> N/A
D10: =TEXT(IF(OFFSET(InFund!$I$1,$J$1,0)=0,OFFSET(InFund!$I$1,$J$1,0),OFFSET(InFund!$K$1,$J$1,0)),"#") -> N/A
A12: =OFFSET(InFund!$H$1,$A$1,0) ->  | D12: =IF(OR(A12=0,A12="N/A"),"","Attn : "&OFFSET(InFund!$H$1,$A$1,0)) -> Attn :
D14: ="Portfolio Monthly Report - "&TEXT(EOM,"MMM-YY")&" "&UPPER(FundName) -> Portfolio Monthly Report - Dec-15 MALAYSIAN ESG OPPORTUNITY FUND
D16: We list below your portfolio positions and the portfolio performance against the benchmark returns. We also enclose the market commentary and the portfolio monthly reports for your attention.
D18: Portfolio Positions: | F18: # | G18: ="Inception Date : " & TEXT(IncDate,"dd-MMM-YYYY") -> Inception Date : 06-Jul-2015
D20: ="Net Asset Value (as at " & TEXT(BOM,"DD-MMM-YY") & ")(RM) :" -> Net Asset Value (as at 30-Nov-15)(RM) : | F20: =BS!G44 -> 0
D21: ="Injection / (withdrawal) (RM) :" -> Injection / (withdrawal) (RM) : | F21: =BS!F47-BS!G47+BS!F52-BS!G52 -> 0
A22: Check | D22: ="Change in Value (RM) :" -> Change in Value (RM) : | F22: =SUM(BS!F48:F50)-SUM(BS!G48:G50) -> 0 | J22: =#REF! -> 
A23: =F23-G26 ->  | D23: ="Net Asset Value (as at " & TEXT(EOM,"DD-MMM-YY") & ") :" -> Net Asset Value (as at 01-Dec-15) : | F23: =SUM(F20:F22) -> 0
F25: =TEXT(BOM, "dd MMM yyyy") -> 30 Nov 2015 | G25: =TEXT(EOM, "dd MMM YYYY") -> 01 Dec 2015 | J25: =EDATE(StartYr,12)-StartYr -> 366 | K25: =EOMONTH(EOM,12-MONTH(EOM))-StartYr+1 | L25: BNDYTMCost | M25: =IF(M27=0,0,SUMPRODUCT(((InPos2!$E$2:$E$1000="BND")+(InPos2!$E$2:$E$1000="O-BND"))*InPos2!$W$2:$W$1000)/SUMPRODUCT(((InPos2!$E$2:$E$1000="BND")+(InPos2!$E$2:$E$1000="O-BND"))*InPos2!$O$2:$O$1000)) -> 0
D26: Net Asset Value (RM) | F26: =IF(ISERROR(VLOOKUP(BOM,InTWRR!$B:$D,3,0)),0,VLOOKUP(BOM,InTWRR!$B:$D,3,0)) -> 0 | G26: =VLOOKUP(EOM,InTWRR!$B:$D,3,0) ->  | J26: =EOM-BOM -> 1 | L26: CshYTMCost | M26: =IF(M28=0,0,SUMPRODUCT((InPos2!$E$2:$E$1000="CSH")*InPos2!$Y$2:$Y$1000*InPos2!$R$2:$R$1000)/SUMPRODUCT((InPos2!$E$2:$E$1000="CSH")*InPos2!$Y$2:$Y$1000)) -> 0.03142225702
J27: =IF(StartYr=IncDate,EOM-StartYr,EOM-StartYr+1) -> 148 | L27: BndPortTotal | M27: =SUMPRODUCT(((InPos2!$E$2:$E$1000="BND")+(InPos2!$E$2:$E$1000="O-BND"))*InPos2!$O$2:$O$1000)/IF(SUM(InPos2!$O$2:$O$1000)=0,1,SUM(InPos2!$O$2:$O$1000)) -> 0
F28: =F25 -> 30 Nov 2015 | G28: =TEXT(EOM, "dd MMM yyyy") -> 01 Dec 2015 | J28: =MATCH(StartYr,InIndex!H:H)-1 -> 5 | L28: CshPortTotal | M28: =SUMPRODUCT((InPos2!$E$2:$E$1000="CSH")*InPos2!$O$2:$O$1000)/IF(SUM(InPos2!$O$2:$O$1000)=0,1,SUM(InPos2!$O$2:$O$1000)) -> 0.09215138049
F29: Porffolio | G29: Portfolio | H29: Benchmark * | J29: =MATCH(EOM,InIndex!H:H)-1 -> 5
D30: Yield on Cost (%pa) | F30: =M25*M27+M26*M28 -> 0.002895604363 | G30: =VLOOKUP("Portfolio Total",Val.FI!G:R,12,0) -> 0.03142225702 | J30: =OFFSET(InFund!$E$1,$J$1,0) -> FBMKLCI | L30: FD30 | M30: 1 Month FD Rate | N30: =1/12 -> 0.08333333333
D31: Portfolio Duration (years) | F31: =IF(ISERROR(IF(SUM(InPos2!O:O)=0,0,SUM(InPos2!V:V)/SUM(InPos2!O:O))),"",IF(SUM(InPos2!O:O)=0,0,SUM(InPos2!V:V)/SUM(InPos2!O:O))) -> 893.4664136 | G31: =IF(ISERROR(SUM(InPos!AC:AC)/SUM(InPos!O:O)),"-",SUM(InPos!AC:AC)/SUM(InPos!O:O)) -> 0.0003547450091 | J31: =MATCH(J30,InIndex!H5:AZ5,0)-1 -> 3 | L31: FD365 | M31: 12 Month FD Rate | N31: 1
J32: =OFFSET(InFund!$F$1,$J$1,0) -> 0 | L32: KLIBOR180 | M32: 6 Month KLIBOR | N32: 0.5
D33: Performance Report: | L33: KLIBOR365 | M33: 12 Month KLIBOR | N33: 1
L34: L0001 | M34: Target Rate | N34: 1
D35: Net Return | G35: Portfolio | H35: Benchmark * | L35: IFIP0010&IFIP0012 | M35: Target Rate | N35: 1
D36: Cummulative Return(Year-to-date) ,% | G36: =J39/J36-1 ->  | H36: =(1+H37)^(IF(YEAR(EOM)=YEAR(IncDate),J40,J27)/J25)-1 -> 0 | J36: =IF(ISNA($K$36),1,Letter!$K$36) -> 1 | K36: =VLOOKUP(StartYr-1,InTWRR!B:F,5) ->  | L36: L0002 | M36: Target Rate | N36: 1
D37: Annualised Cummulative Return(Year-to-date) ,%pa | G37: =(1+G36)^(J25/(IF(OR(YEAR(EOM)=YEAR(IncDate),IncDate=StartYr),J40,EOM-StartYr+1)))-1 ->  | H37: =(OFFSET(InIndex!$H$1,J29,J31)/OFFSET(InIndex!$H$1,IF(YEAR(EOM)=YEAR(IncDate),J38,J28),J31))^(J25/IF(YEAR(EOM)=YEAR(IncDate),J40,J27))-1+J32/100 -> 0 | L37: 12-MONTH ISLAMIC FD | M37: 12 Month Islamic FD Rate | N37: 1
J38: =MATCH(IncDate,InIndex!H:H)-1 -> 5 | L38: OPR | M38: Overnight Policy Rate | N38: 1
D39: Cummulative Return(since inception), % # | G39: =J39-1 ->  | H39: =(1+H40)^(J40/J25)-1 -> 0 | J39: =VLOOKUP(EOM,InTWRR!B:F,5,0) ->  | L39: MBB OVERNIGHT | M39: Maybank Overnight Rate | N39: =1/365 -> 0.002739726027
D40: Annualised Cummulative Return (since inception), %pa # | G40: =(1+G39)^(J25/(EOM-IncDate))-1 ->  | H40: =(OFFSET(InIndex!$H$1,J29,J31)/OFFSET(InIndex!$H$1,J38,J31))^(J25/J40)-1+J32/100 -> 0 | J40: =EOM-IncDate -> 148 | L40: IFIP0080 | M40: Quantshop M'sia Bond Index (All) 70%, Quantshop M'sia Govt-Conv+Islamic (5-10 yrs) 20%, Quantshop M'sia Govt-Conv+Islamic (10+ yrs) 10%, w.e.f 1 Jan 12 | N40: NA | O40: NA
L41: IFIP0081 | M41: Quantshop M'sia Bond Index (All) 40%, Quantshop M'sia Govt-Conv+Islamic (5-10 yrs) 15%, Quantshop M'sia Govt-Conv+Islamic (10+ yrs) 45%, w.e.f 1 Jan 12 | N41: NA | O41: NA
D42: =" * Benchmark is "&VLOOKUP(J30,Sdf!V:W,2,0)&IF(J32<>0," Plus " &TEXT(J32/100,"#.00%"),"") -> * Benchmark is FBM KLCI | L42: IFIP0082 | M42: Quantshop M'sia Bond Index (1-3 yrs) 75%, Quantshop M'sia Bond Index (3-7 yrs) 25%, w.e.f 1 Jan 12 | N42: NA | O42: NA
L43: IFIP0083 | M43: Quantshop M'sia Bond Index (1-3 yrs), w.e.f 1 Jan 12 | N43: NA | O43: NA
L44: NC0001 | M44: OPR+0.35% p.a. wef 1 Sep 12. Previously it was OPR+0.30% p.a. | N44: 1
L45: 12-MTH MGIA | M45: Maybank,12 Month Mudharabah General Investment Account | N45: 1
L46: 1 MONTH ISLAMIC FD | M46: 1 Month Islamic FD Rate | N46: =1/12 -> 0.08333333333
L47: 12-MTH USD LIBOR | M47: 12 Month USD LIBOR | N47: 1
L48: MGS40%CBCONV60% | M48: MGS40%CBCONV60% | N48: NA | O48: NA

Sheet InFund (hidden)
A2: qFundCode | B2: FundName | C2: FinanceYrStart | D2: FinanceYrEnd | E2: qIndexBenchMark | F2: qIndexBenchmarkPlus | G2: FundPrefix | H2: ContactPerson | I2: HiddenAdd1 | J2: HiddenAdd2 | K2: HiddenAdd3 | L2: HiddenName1 | M2: HiddenName2 | N2: PayMgtFeeFlag | O2: PayOthFeeFlag | P2: Islamic | Q2: FundCurrency
A3: KHAZANAH | B3: KHAZANAH NASIONAL BERHAD (VCAM) | C3: 2014-12-22 | D3: 2015-12-31 | E3: FBMKLCI | F3: 0 | G3: KHAZ | I3: N/A | J3: N/A | K3: N/A | L3: N/A | M3: N/A | N3: 0 | O3: 0 | P3: 0 | Q3: MYR
A4: KWAP | B4: KUMPULAN WANG PERSARAAN (DIPERBADANKAN) | C4: 2014-12-15 | D4: 2015-12-31 | E4: FBMKLCI | F4: 0 | G4: KWAP | I4: N/A | J4: N/A | K4: N/A | L4: N/A | M4: N/A | N4: 0 | O4: 0 | P4: 0 | Q4: MYR
A5: KWAPFI | B5: KWAP (VCAP Fixed Income Fund) | C5: 2015-04-30 | D5: 2015-12-31 | E5: MGSALL | F5: 0 | G5: KWAPFI | I5: N/A | J5: N/A | K5: N/A | L5: N/A | M5: N/A | N5: 0 | O5: 0 | P5: 0 | Q5: MYR
A6: MEQESG | B6: Malaysian ESG Opportunity Fund | C6: 2015-07-06 | D6: 2016-06-30 | E6: FBMKLCI | F6: 0 | G6: MEQESG | I6: N/A | J6: N/A | K6: N/A | L6: N/A | M6: N/A | N6: 0 | O6: 0 | P6: 0 | Q6: MYR
A7: VCAM | B7: VCAP ASSET MANAGERS SDN BHD (INV) | C7: 2014-04-11 | D7: 2015-12-31 | E7: FBMKLCI | F7: 0 | G7: VCAM | I7: N/A | J7: N/A | K7: N/A | L7: N/A | M7: N/A | N7: 0 | O7: 0 | P7: 0 | Q7: MYR
A8: VCAMOPR | B8: VCAP ASSET MANAGERS SDN BHD (OPR) | C8: 2014-04-11 | D8: 2015-12-31 | E8: FBMKLCI | F8: 0 | G8: VCAMOP | I8: N/A | J8: N/A | K8: N/A | L8: N/A | M8: N/A | N8: 0 | O8: 0 | P8: 0 | Q8: MYR
A9: YAMIR-VCAM | B9: YAYASAN AMIR | C9: 2015-07-08 | D9: 2015-12-31 | E9: FBMKLCI | F9: 0 | G9: YAMIR | I9: N/A | J9: N/A | K9: N/A | L9: N/A | M9: N/A | N9: 0 | O9: 0 | P9: 0 | Q9: MYR

Sheet Impair.Hol
K1: =UPPER(FundCode) -> MEQESG
D2: =UPPER(CompanyName) -> VCAP ASSET MANAGERS SDN. BHD.
D3: ="IMPAIRMENT HOLDING FOR THE MONTH ENDED " & UPPER(TEXT(EOM,"dd-MMM-YYYY")) -> IMPAIRMENT HOLDING FOR THE MONTH ENDED 01-DEC-2015
A4: =EOM -> 2015-12-01
D5: Security Code | E5: Security Description | F5: Quantity | G5: Price Cost (Clean) | H5: Clean Cost | I5: Market Value | J5: Accreation /Amort | K5: Net Book Value
D8: No Impairment Holding

Sheet Val.FI
U1: =UPPER(FundName) -> MALAYSIAN ESG OPPORTUNITY FUND | Z1: =U1 -> MALAYSIAN ESG OPPORTUNITY FUND | AC1: =MATCH("Portfolio Total",AB:AB,0)-1 -> 15 | AD1: ="$H$8:" & ADDRESS($AC$1,8) -> $H$8:$H$15
J2: =UPPER(CompanyName) -> VCAP ASSET MANAGERS SDN. BHD. | V2: =UPPER(CompanyName) -> VCAP ASSET MANAGERS SDN. BHD. | AD2: ="$R$8:" & ADDRESS($AC$1,18) -> $R$8:$R$15
J3: Portfolio Appraisal ( Fixed Income) | V3: ="Amortisation & Accreation Report as at "&TEXT(EOM,"dd-mmm-yyyy") -> Amortisation & Accreation Report as at 01-Dec-2015 | AD3: ="$S$8:" & ADDRESS($AC$1,19) -> $S$8:$S$15
J4: ="Valuation Date : "&TEXT(EOM,"dd-mmm-yyyy") -> Valuation Date : 01-Dec-2015 | AB4: ProductTypeDesc | AC4: Cash | AD4: ="$E$8:" & ADDRESS($AC$1,5) -> $E$8:$E$15
Y5: Unrealised Gain / (Loss)
D6: Offset | E6: Formating Flag | F6: Quantity | G6: Short Name | H6: % Port | I6: Clean Cost | J6: Market Value | K6: =IF(Islamic,"Accrued Income","Accrued Interest") -> Accrued Interest | L6: Market Value + AI | M6: Unrealised Gain/(Loss) | N6: % Gain / (Loss) | O6: Price Cost (Clean) | P6: Price Val (Clean) | Q6: Mod Dur (yrs) | R6: YTM Cost | S6: YTM Val | T6: Rating | U6: Sector | V6: Accreation /Amort | W6: Net Book Value | X6: Unit BV | Y6: Adj for Accrn/Amort | Z6: Clean | AF6: Data
D7: =IF(LEN(AE7)>1,MATCH(AE7,InPos!F:F,0)-1,1000) -> 0 | E7: =IF(RIGHT(AB7,5)="Total",12,IF(RIGHT(AC7,5)="Total",11,IF(AND(LEN(AD7)<2,OR(AC7<>"",AB7<>"")),10,1))) -> 1 | F7: =AF7 -> Unit | G7: =IF(LEN(AB7)>0,AB7,IF(LEN(AC7)>0,AC7,IF(AND(AD7="",AE7<>""),LEFT(G6,"55"),LEFT(AD7,55)))) -> Category | H7: =AN7 -> Sum of MarketValueFC | I7: =AG7 -> Cost | J7: =L7-K7 ->  | K7: =AJ7 -> Accrued Interest | L7: =AI7 -> MarketValue | M7: =J7-I7 ->  | N7: =IF($I7=0,0,M7/I7) ->  | O7: =IF(F7=0,0,I7/F7*100) ->  | P7: =IF(F7=0,0,J7/F7*100) ->  | Q7: =AK7 -> Sum of wDurn | R7: =IF(G7="Portfolio Total",SUMPRODUCT((INDIRECT($AD$4)=12)*INDIRECT($AD$1)*INDIRECT($AD$2)),AL7) -> wYTMcost | S7: =IF(G7="Portfolio Total",SUMPRODUCT((INDIRECT($AD$4)=12)*INDIRECT($AD$1)*INDIRECT($AD$3)),AM7) -> Sum of wYTM | T7: =IF(G7="Portfolio Total",$A$10,IF(AF7=0,"",IF(OFFSET(InPos!$AA$1,$D7,0)="Cash","N/A",OFFSET(InPos!$AA$1,$D7,0)))) -> Actual Rating | U7: =IF(E7=1,IF(OFFSET(InPos!T$1,$D7,0)="Cash","Cash",VLOOKUP(OFFSET(InPos!T$1,$D7,0),Sdf!F:G,2)),"") -> Cash | V7: =IF(AH7=AF7,0,W7-I7) ->  | W7: =AH7 -> Book Value | X7: =IF(F7=0,0,W7/F7*100) ->  | Y7: =Z7-V7 ->  | Z7: =M7 ->  | AB7: Category | AC7: Sub Cat | AD7: StockName | AE7: qStockCode | AF7: Unit | AG7: Cost | AH7: Book Value | AI7: MarketValue | AJ7: Accrued Interest | AK7: Sum of wDurn | AL7: wYTMcost | AM7: Sum of wYTM | AN7: Sum of MarketValueFC | AO7: Sum of wMVC
D8: 1000 | E8: 10 | F8: 0 | G8: Cash & Cash Equivalent | H8: 0 | I8: 0 | J8: 0 | K8: 0 | L8: 0 | M8: 0 | N8: 0 | O8: 0 | P8: 0 | Q8: 0 | R8: 0 | S8: 0 | V8: 0 | W8: 0 | X8: 0 | Y8: 0 | Z8: 0 | AB8: Cash & Cash Equivalent
D9: 1000 | E9: 1 | F9: 0 | H9: 0 | I9: 0 | J9: 0 | K9: 0 | L9: 0 | M9: 0 | N9: 0 | O9: 0 | P9: 0 | Q9: 0 | R9: 0 | S9: 0 | U9: Others | V9: 0 | W9: 0 | X9: 0 | Y9: 0 | Z9: 0
D10: 12 | E10: 1 | F10: 1418.99 | G10: Cash at Bank | H10: 0.0008594309028 | I10: 1418.99 | J10: 1418.99 | K10: 0 | L10: 1418.99 | M10: 0 | N10: 0 | O10: 100 | P10: 100 | Q10: 0 | R10: 0 | S10: 0 | T10: N/A | U10: Cash | V10: 0 | W10: 1418.99 | X10: 100 | Y10: 0 | Z10: 0 | AD10: Cash at Bank | AE10: Cash at Bank | AF10: 1418.99 | AG10: 1418.99 | AH10: 1418.99 | AI10: 1418.99 | AK10: 0 | AL10: 0 | AM10: 0 | AN10: 0.0008594309028 | AO10: 0.0007047266013
D11: 11 | E11: 1 | F11: 94320 | G11: Dividend Receivable | H11: 0.05712621142 | I11: 94320 | J11: 94320 | K11: 0 | L11: 94320 | M11: 0 | N11: 0 | O11: 100 | P11: 100 | Q11: 0 | R11: 0 | S11: 0 | T11: N/A | U11: Cash | V11: 0 | W11: 94320 | X11: 100 | Y11: 0 | Z11: 0 | AD11: Dividend Receivable | AE11: Dividend Receivable | AF11: 94320 | AG11: 94320 | AH11: 94320 | AI11: 94320 | AK11: 0 | AL11: 0 | AM11: 0 | AN11: 0.05712621142 | AO11: 1.060220526e-05
D12: 13 | E12: 1 | F12: -16800.16 | G12: Others | H12: -0.01017524907 | I12: -16800.16 | J12: -16800.16 | K12: 0 | L12: -16800.16 | M12: 0 | N12: 0 | O12: 100 | P12: 100 | Q12: 0 | R12: 0 | S12: 0 | T12: N/A | U12: Cash | V12: 0 | W12: -16800.16 | X12: 100 | Y12: 0 | Z12: 0 | AD12: Others | AE12: Others | AF12: -16800.16 | AG12: -16800.16 | AH12: -16800.16 | AI12: -16800.16 | AK12: 0 | AL12: 0 | AM12: 0 | AN12: -0.01017524907 | AO12: -5.952324264e-05
D13: 10 | E13: 1 | F13: 1572000 | G13: Repo/Deposit/Placement | H13: 0.9521896067 | I13: 1572000 | J13: 1572000 | K13: 142.13 | L13: 1572142.13 | M13: 0 | N13: 0 | O13: 100 | P13: 100 | Q13: 0.004042881496 | R13: 0.033 | S13: 0.033 | T13: N/A | U13: Cash | V13: 0 | W13: 1572000 | X13: 100 | Y13: 0 | Z13: 0 | AD13: Repo/Deposit/Placement | AE13: RDC*MYR*PIVB | AF13: 1572000 | AG13: 1572000 | AH13: 1572000 | AI13: 1572142.13 | AJ13: 142.13 | AK13: 0.004042881496 | AL13: 0.033 | AM13: 0.033 | AN13: 0.9521896067 | AO13: 6.360748058e-07
D14: 1000 | E14: 11 | F14: 1650938.83 | G14: Total | H14: 1 | I14: 1650938.83 | J14: 1650938.83 | K14: 142.13 | L14: 1651080.96 | M14: 0 | N14: 0 | O14: 100 | P14: 100 | Q14: 0.003849589742 | R14: 0.03142225702 | S14: 0.03142225702 | T14: 0 | V14: 0 | W14: 1650938.83 | X14: 100 | Y14: 0 | Z14: 0 | AC14: Total | AF14: 1650938.83 | AG14: 1650938.83 | AH14: 1650938.83 | AI14: 1651080.96 | AJ14: 142.13 | AK14: 0.003849589742 | AL14: 0.03142225702 | AM14: 0.03142225702 | AN14: 1 | AO14: 6.056638192e-07
D15: 1000 | E15: 12 | F15: 1650938.83 | G15: Cash & Cash Equivalent Total | H15: 1 | I15: 1650938.83 | J15: 1650938.83 | K15: 142.13 | L15: 1651080.96 | M15: 0 | N15: 0 | O15: 100 | P15: 100 | Q15: 0.003849589742 | R15: 0.03142225702 | S15: 0.03142225702 | T15: 0 | V15: 0 | W15: 1650938.83 | X15: 100 | Y15: 0 | Z15: 0 | AB15: Cash & Cash Equivalent Total | AF15: 1650938.83 | AG15: 1650938.83 | AH15: 1650938.83 | AI15: 1651080.96 | AJ15: 142.13 | AK15: 0.003849589742 | AL15: 0.03142225702 | AM15: 0.03142225702 | AN15: 1 | AO15: 6.056638192e-07
D16: 1000 | E16: 12 | F16: 1650938.83 | G16: Portfolio Total | H16: 1 | I16: 1650938.83 | J16: 1650938.83 | K16: 142.13 | L16: 1651080.96 | M16: 0 | N16: 0 | O16: 100 | P16: 100 | Q16: 0.003849589742 | R16: 0.03142225702 | S16: 0.03142225702 | T16: 0 | V16: 0 | W16: 1650938.83 | X16: 100 | Y16: 0 | Z16: 0 | AB16: Portfolio Total | AF16: 1650938.83 | AG16: 1650938.83 | AH16: 1650938.83 | AI16: 1651080.96 | AJ16: 142.13 | AK16: 0.003849589742 | AL16: 0.03142225702 | AM16: 0.03142225702 | AN16: 1 | AO16: 6.056638192e-07

Sheet Val
Q1: =UPPER(FundName) -> MALAYSIAN ESG OPPORTUNITY FUND | T1: =MATCH("Portfolio Total",S:S,0)-1 -> 28 | U1: ="$H$8:" & ADDRESS($T$1,8) -> $H$8:$H$28
F2: =UPPER(CompanyName) -> VCAP ASSET MANAGERS SDN. BHD. | U2: ="$R$8:" & ADDRESS($T$1,18) -> $R$8:$R$28
F3: Portfolio Appraisal | U3: ="$S$8:" & ADDRESS($T$1,19) -> $S$8:$S$28
F4: ="Valuation Date : "&TEXT(EOM,"dd-mmm-yyyy") -> Valuation Date : 01-Dec-2015 | U4: ="$E$8:" & ADDRESS($T$1,5) -> $E$8:$E$28
D6: Offset | E6: Formating Flag | F6: Quantity | G6: Short Name | H6: % Port | I6: Clean Cost | J6: Market Value | K6: =IF(Islamic,"Accrued Income","Accrued Interest") -> Accrued Interest | L6: Market Value + AI | M6: Unrealised Gain/(Loss) | N6: % Gain / (Loss) | O6: Price Cost (Clean) | P6: Price Val (Clean) | Q6: Sector | W6: Data
D7: =IF(LEN(V7)>1,MATCH(V7,InPos!F:F,0)-1,1000) -> 0 | E7: =IF(RIGHT(S7,5)="Total",12,IF(RIGHT(T7,5)="Total",11,IF(AND(LEN(U7)<2,OR(T7<>"",S7<>"")),10,1))) -> 1 | F7: =W7 -> Unit | G7: =IF(LEN(S7)>0,S7,IF(LEN(T7)>0,T7,IF(AND(U7="",V7<>""),LEFT(G6,"55"),LEFT(U7,55)))) -> Category | H7: =AE7 -> Sum of MarketValueFC | I7: =X7 -> Cost | J7: =L7-K7 ->  | K7: =AA7 -> Accrued Interest | L7: =Z7 -> MarketValue | M7: =J7-I7 ->  | N7: =IF($I7=0,0,M7/I7) ->  | O7: =IF(F7=0,0,I7/F7*100) ->  | P7: =IF(F7=0,0,J7/F7*100) ->  | Q7: =IF(E7=1,IF(OFFSET(InPos!T$1,$D7,0)="Cash","",VLOOKUP(OFFSET(InPos!T$1,$D7,0),Sdf!F:G,2)),"") -> Cash | S7: Category | T7: Sub Cat | U7: StockName | V7: qStockCode | W7: Unit | X7: Cost | Y7: Book Value | Z7: MarketValue | AA7: Accrued Interest | AB7: Sum of wDurn | AC7: wYTMcost | AD7: Sum of wYTM | AE7: Sum of MarketValueFC | AF7: Sum of wMVC
D8: 1000 | E8: 10 | F8: 0 | G8: Equity | H8: 0 | I8: 0 | J8: 0 | K8: 0 | L8: 0 | M8: 0 | N8: 0 | O8: 0 | P8: 0 | S8: Equity
D9: 1000 | E9: 10 | F9: 0 | G9: Listed Shares | H9: 0 | I9: 0 | J9: 0 | K9: 0 | L9: 0 | M9: 0 | N9: 0 | O9: 0 | P9: 0 | T9: Listed Shares
D10: 4 | E10: 1 | F10: 200000 | G10: AFG | H10: 0.03962705751 | I10: 678027.23 | J10: 710000 | K10: 0 | L10: 710000 | M10: 31972.77 | N10: 0.047155584 | O10: 339.013615 | P10: 355 | Q10: FINANCE | U10: AFG | V10: 2488 | W10: 200000 | X10: 678027.23 | Y10: 678027.23 | Z10: 710000 | AA10: 0 | AB10: 0 | AC10: 0 | AD10: 0 | AE10: 0.03962705751 | AF10: 1.408450704e-06
D11: 5 | E11: 1 | F11: 1500000 | G11: ARMADA | H11: 0.08204475286 | I11: 1488820.43 | J11: 1470000 | K11: 0 | L11: 1470000 | M11: -18820.43 | N11: -0.01264116855 | O11: 99.25469533 | P11: 98 | Q11: TRAD/SERV | U11: ARMADA | V11: 5210 | W11: 1500000 | X11: 1488820.43 | Y11: 1488820.43 | Z11: 1470000 | AA11: 0 | AB11: 0 | AC11: 0 | AD11: 0 | AE11: 0.08204475286 | AF11: 6.802721088e-07
D12: 7 | E12: 1 | F12: 100000 | G12: ASTRO | H12: 0.01629732506 | I12: 288928.33 | J12: 292000 | K12: 0 | L12: 292000 | M12: 3071.67 | N12: 0.01063125239 | O12: 288.92833 | P12: 292 | Q12: TRAD/SERV | U12: ASTRO | V12: 6399 | W12: 100000 | X12: 288928.33 | Y12: 288928.33 | Z12: 292000 | AA12: 0 | AB12: 0 | AC12: 0 | AD12: 0 | AE12: 0.01629732506 | AF12: 3.424657534e-06
D13: 8 | E13: 1 | F13: 2627 | G13: AXIATA | H13: 0.0009002474924 | I13: 14579.85 | J13: 16129.78 | K13: 0 | L13: 16129.78 | M13: 1549.93 | N13: 0.1063063063 | O13: 555 | P13: 614 | Q13: TRAD/SERV | U13: AXIATA | V13: 6888 | W13: 2627 | X13: 14579.85 | Y13: 14579.85 | Z13: 16129.78 | AA13: 0 | AB13: 0 | AC13: 0 | AD13: 0 | AE13: 0.0009002474924 | AF13: 6.199712581e-05
D14: 3 | E14: 1 | F14: 250000 | G14: BURSA | H14: 0.1179044493 | I14: 2008339.51 | J14: 2112500 | K14: 0 | L14: 2112500 | M14: 104160.49 | N14: 0.05186398489 | O14: 803.335804 | P14: 845 | Q14: FINANCE | U14: BURSA | V14: 1818 | W14: 250000 | X14: 2008339.51 | Y14: 2008339.51 | Z14: 2112500 | AA14: 0 | AB14: 0 | AC14: 0 | AD14: 0 | AE14: 0.1179044493 | AF14: 4.733727811e-07
D15: 1 | E15: 1 | F15: 500000 | G15: CIMB | H15: 0.1303227877 | I15: 2429950.33 | J15: 2335000 | K15: 0 | L15: 2335000 | M15: -94950.33 | N15: -0.03907500858 | O15: 485.990066 | P15: 467 | Q15: FINANCE | U15: CIMB | V15: 1023 | W15: 500000 | X15: 2429950.33 | Y15: 2429950.33 | Z15: 2335000 | AA15: 0 | AB15: 0 | AC15: 0 | AD15: 0 | AE15: 0.1303227877 | AF15: 4.282655246e-07
D16: 9 | E16: 1 | F16: 387800 | G16: DIGI | H16: 0.1147141921 | I16: 2170855.04 | J16: 2055340 | K16: 0 | L16: 2055340 | M16: -115515.04 | N16: -0.05321177042 | O16: 559.7872718 | P16: 530 | Q16: IPC | U16: DIGI | V16: 6947 | W16: 387800 | X16: 2170855.04 | Y16: 2170855.04 | Z16: 2055340 | AA16: 0 | AB16: 0 | AC16: 0 | AD16: 0 | AE16: 0.1147141921 | AF16: 4.865375072e-07
D17: 2 | E17: 1 | F17: 500000 | G17: MAYBANK | H17: 0.2319020055 | I17: 4217458.62 | J17: 4155000 | K17: 0 | L17: 4155000 | M17: -62458.62 | N17: -0.01480953949 | O17: 843.491724 | P17: 831 | Q17: FINANCE | U17: MAYBANK | V17: 1155 | W17: 500000 | X17: 4217458.62 | Y17: 4217458.62 | Z17: 4155000 | AA17: 0 | AB17: 0 | AC17: 0 | AD17: 0 | AE17: 0.2319020055 | AF17: 2.406738869e-07
D18: 6 | E18: 1 | F18: 1000000 | G18: SUNWAY | H18: 0.174135802 | I18: 3070026.76 | J18: 3120000 | K18: 0 | L18: 3120000 | M18: 49973.24 | N18: 0.01627778645 | O18: 307.002676 | P18: 312 | Q18: PROPERTIES | U18: SUNWAY | V18: 5211 | W18: 1000000 | X18: 3070026.76 | Y18: 3070026.76 | Z18: 3120000 | AA18: 0 | AB18: 0 | AC18: 0 | AD18: 0 | AE18: 0.174135802 | AF18: 3.205128205e-07
D19: 1000 | E19: 11 | F19: 4440427 | G19: Listed Shares Total | H19: 0.9078486195 | I19: 16366986.1 | J19: 16265969.78 | K19: 0 | L19: 16265969.78 | M19: -101016.32 | N19: -0.006171956118 | O19: 368.5903653 | P19: 366.3154417 | T19: Listed Shares Total | W19: 4440427 | X19: 16366986.1 | Y19: 16366986.1 | Z19: 16265969.78 | AA19: 0 | AB19: 0 | AC19: 0 | AD19: 0 | AE19: 0.9078486195 | AF19: 6.147804364e-08
D20: 1000 | E20: 12 | F20: 4440427 | G20: Equity Total | H20: 0.9078486195 | I20: 16366986.1 | J20: 16265969.78 | K20: 0 | L20: 16265969.78 | M20: -101016.32 | N20: -0.006171956118 | O20: 368.5903653 | P20: 366.3154417 | S20: Equity Total | W20: 4440427 | X20: 16366986.1 | Y20: 16366986.1 | Z20: 16265969.78 | AA20: 0 | AB20: 0 | AC20: 0 | AD20: 0 | AE20: 0.9078486195 | AF20: 6.147804364e-08
D21: 1000 | E21: 10 | F21: 0 | G21: Cash & Cash Equivalent | H21: 0 | I21: 0 | J21: 0 | K21: 0 | L21: 0 | M21: 0 | N21: 0 | O21: 0 | P21: 0 | S21: Cash & Cash Equivalent
D22: 1000 | E22: 1 | F22: 0 | H22: 0 | I22: 0 | J22: 0 | K22: 0 | L22: 0 | M22: 0 | N22: 0 | O22: 0 | P22: 0 | Q22: Others
D23: 12 | E23: 1 | F23: 1418.99 | G23: Cash at Bank | H23: 7.919774413e-05 | I23: 1418.99 | J23: 1418.99 | K23: 0 | L23: 1418.99 | M23: 0 | N23: 0 | O23: 100 | P23: 100 | U23: Cash at Bank | V23: Cash at Bank | W23: 1418.99 | X23: 1418.99 | Y23: 1418.99 | Z23: 1418.99 | AB23: 0 | AC23: 0 | AD23: 0 | AE23: 7.919774413e-05 | AF23: 0.0007047266013
D24: 11 | E24: 1 | F24: 94320 | G24: Dividend Receivable | H24: 0.005264259245 | I24: 94320 | J24: 94320 | K24: 0 | L24: 94320 | M24: 0 | N24: 0 | O24: 100 | P24: 100 | U24: Dividend Receivable | V24: Dividend Receivable | W24: 94320 | X24: 94320 | Y24: 94320 | Z24: 94320 | AB24: 0 | AC24: 0 | AD24: 0 | AE24: 0.005264259245 | AF24: 1.060220526e-05
D25: 13 | E25: 1 | F25: -16800.16 | G25: Others | H25: -0.0009376632485 | I25: -16800.16 | J25: -16800.16 | K25: 0 | L25: -16800.16 | M25: 0 | N25: 0 | O25: 100 | P25: 100 | U25: Others | V25: Others | W25: -16800.16 | X25: -16800.16 | Y25: -16800.16 | Z25: -16800.16 | AB25: 0 | AC25: 0 | AD25: 0 | AE25: -0.0009376632485 | AF25: -5.952324264e-05
D26: 10 | E26: 1 | F26: 1572000 | G26: Repo/Deposit/Placement | H26: 0.08774558675 | I26: 1572000 | J26: 1572000 | K26: 142.13 | L26: 1572142.13 | M26: 0 | N26: 0 | O26: 100 | P26: 100 | U26: Repo/Deposit/Placement | V26: RDC*MYR*PIVB | W26: 1572000 | X26: 1572000 | Y26: 1572000 | Z26: 1572142.13 | AA26: 142.13 | AB26: 0.004042881496 | AC26: 0.033 | AD26: 0.033 | AE26: 0.08774558675 | AF26: 6.360748058e-07
D27: 1000 | E27: 11 | F27: 1650938.83 | G27: Total | H27: 0.09215138049 | I27: 1650938.83 | J27: 1650938.83 | K27: 142.13 | L27: 1651080.96 | M27: 0 | N27: 0 | O27: 100 | P27: 100 | T27: Total | W27: 1650938.83 | X27: 1650938.83 | Y27: 1650938.83 | Z27: 1651080.96 | AA27: 142.13 | AB27: 0.003849589742 | AC27: 0.03142225702 | AD27: 0.03142225702 | AE27: 0.09215138049 | AF27: 6.056638192e-07
D28: 1000 | E28: 12 | F28: 1650938.83 | G28: Cash & Cash Equivalent Total | H28: 0.09215138049 | I28: 1650938.83 | J28: 1650938.83 | K28: 142.13 | L28: 1651080.96 | M28: 0 | N28: 0 | O28: 100 | P28: 100 | S28: Cash & Cash Equivalent Total | W28: 1650938.83 | X28: 1650938.83 | Y28: 1650938.83 | Z28: 1651080.96 | AA28: 142.13 | AB28: 0.003849589742 | AC28: 0.03142225702 | AD28: 0.03142225702 | AE28: 0.09215138049 | AF28: 6.056638192e-07
D29: 1000 | E29: 12 | F29: 6091365.83 | G29: Portfolio Total | H29: 1 | I29: 18017924.93 | J29: 17916908.61 | K29: 142.13 | L29: 17917050.74 | M29: -101016.32 | N29: -0.005606434725 | O29: 295.7944972 | P29: 294.1361447 | S29: Portfolio Total | W29: 6091365.83 | X29: 18017924.93 | Y29: 18017924.93 | Z29: 17917050.74 | AA29: 142.13 | AB29: 0.0003547450091 | AC29: 0.002895604363 | AD29: 0.002895604363 | AE29: 1 | AF29: 5.581275705e-08

Sheet BS
G1: =UPPER(FundCode) -> MEQESG
D2: =UPPER(CompanyName) -> VCAP ASSET MANAGERS SDN. BHD.
D3: BALANCE SHEET
D4: ="DISPOSITION AS AT " & UPPER(TEXT(EOM,"DD MMMM YYYY")) -> DISPOSITION AS AT 01 DECEMBER 2015
A5: Balance Check | H5: =StartYr-1*1 -> 2015-07-05 | I5: =EOM*1 -> 2015-12-01 | J5: =BOM*1 -> 2015-11-30
A6: =F53-F44 -> 0 | F6: =TEXT(EOM,"mmm-yy") -> Dec-15 | G6: =TEXT(BOM,"mmm-yy") -> Nov-15 | I6: Formula | J6: Formula
D7: CURRENT ASSETS | H7: Category col | I7: AE | J7: X
A8: =F53-Letter!F23 -> 0 | D8: Investments at Market Value | L8: =IF(ROUND(SUM($A$6:$A$9),2)=0,"-","ERROR") -> 
A9: =Letter!F23-Letter!G26 ->  | E9: Malaysian Government Securities | F9: =I9 -> 0 | G9: 0 | H9: 3 | I9: =SUMIF(InPos!$AF:$AF,$H9,InPos!$O:$O)-SUMIF(InPos!$AF:$AF,$H9,InPos!$P:$P) -> 0 | J9: =SUMIF(InPos2!$X:$X,$H9,InPos2!$O:$O)-SUMIF(InPos2!$X:$X,$H9,InPos2!$P:$P) -> 0 | L9: =L8 -> 
E10: Corporate Bonds | F10: 0 | G10: 0 | H10: 5 | I10: =SUMIF(InPos!$AF:$AF,$H10,InPos!$O:$O)-SUMIF(InPos!$AF:$AF,$H10,InPos!$P:$P) -> 0 | J10: =SUMIF(InPos2!$X:$X,$H10,InPos2!$O:$O)-SUMIF(InPos2!$X:$X,$H10,InPos2!$P:$P) -> 0 | L10: =L9 -> 
E11: Treasury Bills | F11: 0 | G11: 0 | H11: 1 | I11: =SUMIF(InPos!$AF:$AF,$H11,InPos!$O:$O)-SUMIF(InPos!$AF:$AF,$H11,InPos!$P:$P) -> 0 | J11: =SUMIF(InPos2!$X:$X,$H11,InPos2!$O:$O)-SUMIF(InPos2!$X:$X,$H11,InPos2!$P:$P) -> 0
E12: Short Term Commercial Papers | F12: 0 | G12: =J12 -> 0 | H12: 2 | I12: =SUMIF(InPos!$AF:$AF,$H12,InPos!$O:$O)-SUMIF(InPos!$AF:$AF,$H12,InPos!$P:$P) -> 0 | J12: =SUMIF(InPos2!$X:$X,$H12,InPos2!$O:$O)-SUMIF(InPos2!$X:$X,$H12,InPos2!$P:$P) -> 0
E13: Equity | F13: 16265969.78 | G13: 16265969.78 | H13: EQT | I13: =SUMIF(InPos!$E:$E,$H13,InPos!$O:$O) -> 16265969.78 | J13: =SUMIF(InPos2!$E:$E,$H13,InPos2!$O:$O) -> 16265969.78
E14: Overseas Equities | F14: 0 | G14: 0 | H14: O-EQT | I14: =SUMIF(InPos!$E:$E,$H14,InPos!$O:$O) -> 0 | J14: =SUMIF(InPos2!$E:$E,$H14,InPos2!$O:$O) -> 0
E15: Collective Investment Scheme | F15: 0 | G15: 0 | H15: CIS | I15: =SUMIF(InPos!$E:$E,$H15,InPos!$O:$O) -> 0 | J15: =SUMIF(InPos2!$E:$E,$H15,InPos2!$O:$O) -> 0
E16: Derivatives | F16: 0 | G16: 0 | H16: DEV | I16: =SUMIF(InPos!$E:$E,$H16,InPos!$O:$O) -> 0 | J16: =SUMIF(InPos2!$E:$E,$H16,InPos2!$O:$O) -> 0
D18: Investments Subtotal | F18: =I18 -> 0 | G18: =J18 -> 0 | H18: 101 | I18: =SUMIF(InTB!$H:$H,1&I$5,InTB!$E:$E)-I21-I24-I25 -> 0 | J18: =SUMIF(InTB!$H:$H,1&J$5,InTB!$E:$E)-J21-J24-J25 -> 0 | K18: 220105
H19: All unclassified category will summ into corp bond | K19: 160
D20: Liquid Assets | H20: Account
C21: =ROW() -> 21 | E21: Deposits With Financial Institutions | F21: =I21 -> 0 | G21: =J21 -> 0 | H21: 100210 | I21: =SUMIF(InTB!$F:$F,BS!$H21&BS!I$5,InTB!$E:$E) -> 0 | J21: =SUMIF(InTB!$F:$F,BS!$H21&BS!J$5,InTB!$E:$E) -> 0
C22: =ROW() -> 22 | E22: Amount due from Stockbrokers | F22: =I22 -> 0 | G22: 0 | H22: 200200 | I22: =SUMIF(InTB!$F:$F,BS!$H22&BS!I$5,InTB!$E:$E) -> 0 | J22: =SUMIF(InTB!$F:$F,BS!$H22&BS!J$5,InTB!$E:$E) -> 0
C23: =ROW() -> 23 | E23: Cash At Bank | F23: 0 | G23: 0 | H23: 5 | I23: =SUMIF(InTB!$H:$H,BS!$H23&BS!I$5,InTB!$E:$E) -> 0 | J23: =SUMIF(InTB!$H:$H,BS!$H23&BS!J$5,InTB!$E:$E) -> 0
E24: Deposit Income Receivable | F24: 0 | G24: 0 | H24: 139210 | I24: =SUMIF(InTB!$F:$F,BS!$H24&BS!I$5,InTB!$E:$E) -> 0 | J24: =SUMIF(InTB!$F:$F,BS!$H24&BS!J$5,InTB!$E:$E) -> 0
E25: Bond Coupon Receivable | F25: 0 | G25: 0 | H25: 139 | I25: =SUMIF(InTB!$G:$G,BS!$H25&BS!I$5,InTB!$E:$E)-I24 -> 0 | J25: =SUMIF(InTB!$G:$G,BS!$H25&BS!J$5,InTB!$E:$E)-J24 -> 0
E26: Trade Receivable | F26: 0 | G26: 0 | H26: 200 | I26: =SUMIF(InTB!$G:$G,BS!$H26&BS!I$5,InTB!$E:$E)-I22 -> 0 | J26: =SUMIF(InTB!$G:$G,BS!$H26&BS!J$5,InTB!$E:$E)-J22 -> 0
E27: Other Receivable | F27: =I27+I28 -> 0 | G27: =J27+J28 -> 0 | H27: 2 | I27: =SUMIF(InTB!$H:$H,BS!$H27&BS!I$5,InTB!$E:$E)-I26-I22-PL!J30 -> 0 | J27: =SUMIF(InTB!$H:$H,BS!$H27&BS!J$5,InTB!$E:$E)-J26-J22-PL!K30 -> 0
I28: =SUMIF(InTB!$F:$F,BS!$H28&BS!I$5,InTB!$E:$E) -> 0 | J28: =SUMIF(InTB!$F:$F,BS!$H28&BS!J$5,InTB!$E:$E) -> 0
D29: Liquid Assets Subtotal | F29: =SUM(F20:F27) -> 0 | G29: =SUM(G20:G27) -> 0
D30: Total Assets | F30: =F29+F18 -> 0 | G30: =G29+G18 -> 0
D32: CURRENT LIABILITIES | H32: 300104 | I32: =SUMIF(InTB!$F:$F,BS!$H32&BS!I$5,InTB!$E:$E) -> 0 | J32: =SUMIF(InTB!$F:$F,BS!$H32&BS!J$5,InTB!$E:$E) -> 0
E33: Trade Payable | F33: =I33 -> 0 | G33: 0 | H33: 300 | I33: =SUMIF(InTB!$G:$G,BS!$H33&BS!I$5,InTB!$E:$E)-I36-I37-I32 -> 0 | J33: =SUMIF(InTB!$G:$G,BS!$H33&BS!J$5,InTB!$E:$E)-J36-J37-J32 -> 0
E34: Other Creditors/ Accrued Bank Charges | F34: =I34+I32 -> 0 | G34: =J34+J32 -> 0 | H34: 320101 | I34: =SUMIF(InTB!$F:$F,BS!$H34&BS!I$5,InTB!$E:$E) -> 0 | J34: =SUMIF(InTB!$F:$F,BS!$H34&BS!J$5,InTB!$E:$E) -> 0
E35: Accrued Transaction Costs | F35: 0 | G35: 0 | H35: 310200 | I35: =SUMIF(InTB!$F:$F,BS!$H35&BS!I$5,InTB!$E:$E) -> 0 | J35: =SUMIF(InTB!$F:$F,BS!$H35&BS!J$5,InTB!$E:$E) -> 0
E36: Accrued Custody Fee | F36: 0 | G36: 0 | H36: 320110 | I36: =SUMIF(InTB!$F:$F,BS!$H36&BS!I$5,InTB!$E:$E) -> 0 | J36: =SUMIF(InTB!$F:$F,BS!$H36&BS!J$5,InTB!$E:$E) -> 0
E37: Accrued Audit Fee | F37: 0 | G37: 0 | H37: 320105 | I37: =SUMIF(InTB!$F:$F,BS!$H37&BS!I$5,InTB!$E:$E) -> 0 | J37: =SUMIF(InTB!$F:$F,BS!$H37&BS!J$5,InTB!$E:$E) -> 0
E38: Accrued Management Fee | F38: 0 | G38: 0 | H38: 320103 | I38: =SUMIF(InTB!$F:$F,BS!$H38&BS!I$5,InTB!$E:$E) -> 0 | J38: =SUMIF(InTB!$F:$F,BS!$H38&BS!J$5,InTB!$E:$E) -> 0
E39: Accrued Performance Fee | F39: 0 | G39: 0 | H39: 320114 | I39: =SUMIF(InTB!$F:$F,BS!$H39&BS!I$5,InTB!$E:$E) -> 0 | J39: =SUMIF(InTB!$F:$F,BS!$H39&BS!J$5,InTB!$E:$E) -> 0
E40: Accrued Trustee Fee | F40: 0 | G40: 0 | H40: 320104 | I40: =SUMIF(InTB!$F:$F,BS!$H40&BS!I$5,InTB!$E:$E) -> 0 | J40: =SUMIF(InTB!$F:$F,BS!$H40&BS!J$5,InTB!$E:$E) -> 0
E41: Others | F41: 0 | G41: 0 | H41: 3 | I41: =SUMIF(InTB!$H:$H,BS!$H41&BS!I$5,InTB!$E:$E)-SUM(I32:I40) -> 0 | J41: =SUMIF(InTB!$H:$H,BS!$H41&BS!J$5,InTB!$E:$E)-SUM(J32:J40) -> 0 | K41: 320102
D42: Total Liability | F42: =SUM(F33:F41) -> 0 | G42: =SUM(G33:G41) -> 0
D44: Total Portfolio Value | F44: =F30+F42 -> 0 | G44: =G30+G42 -> 0
H45: 840000 | I45: =SUMIF(InTB!$F:$F,BS!$H45&BS!I$5,InTB!$E:$E) -> 0 | J45: =SUMIF(InTB!$F:$F,BS!$H45&BS!J$5,InTB!$E:$E) -> 0
D46: FUND CAPITAL | H46: 850000 | I46: =SUMIF(InTB!$F:$F,BS!$H46&BS!I$5,InTB!$E:$E) -> 0 | J46: =SUMIF(InTB!$F:$F,BS!$H46&BS!J$5,InTB!$E:$E) -> 0
E47: Capital | F47: =I47*-1 -> 0 | G47: =J47*-1 -> 0 | H47: 800000 | I47: =SUMIF(InTB!$F:$F,BS!$H47&BS!I$5,InTB!$E:$E) -> 0 | J47: =SUMIF(InTB!$F:$F,BS!$H47&BS!J$5,InTB!$E:$E) -> 0
E48: Retained Profit/(Loss) | F48: =-I48-PL!M51 -> 0 | G48: =-J48-PL!M51 -> 0 | H48: 830000 | I48: =SUMIF(InTB!$F:$F,BS!$H48&BS!I$5,InTB!$E:$E) -> 0 | J48: =SUMIF(InTB!$F:$F,BS!$H48&BS!J$5,InTB!$E:$E) -> 0
E49: Profit this year | F49: =PL!H56 -> 0 | G49: =G53-G48-G47-G52-G50 -> 0
E50: Unrealised Reserve | F50: =-I50-AVS.flag*(SUM(PL!J21:J22)+SUM(PL!J24:J27)) -> 0 | G50: =-J50 -> 0 | H50: 810000 | I50: =SUMIF(InTB!$F:$F,BS!$H50&BS!I$5,InTB!$E:$E) -> 0 | J50: =SUMIF(InTB!$F:$F,BS!$H50&BS!J$5,InTB!$E:$E) -> 0
H51: 639 | I51: =SUMIF(InTB!$G:$G,BS!$H51&BS!I$5,InTB!$E:$E)-I54-I55-I50 -> 0 | J51: =SUMIF(InTB!$G:$G,BS!$H51&BS!J$5,InTB!$E:$E)-J54-J55-J50 -> 0
E52: Less Total distribution | F52: =-SUM(I45:I46) -> 0 | G52: =-SUM(J45:J46) -> 0 | H52: 8 | I52: =SUMIF(InTB!$H:$H,BS!$H52&BS!I$5,InTB!$E:$E)-I50-I48-I47 -> 0 | J52: =SUMIF(InTB!$H:$H,BS!$H52&BS!J$5,InTB!$E:$E)-J50-J48-J47 -> 0
F53: =SUM(F47:F52) -> 0 | G53: =G44 -> 0 | I53: =-SUMIF(InTB!$F:$F,BS!$H53&BS!I$5,InTB!$E:$E) -> 0 | J53: =-SUMIF(InTB!$F:$F,BS!$H53&BS!J$5,InTB!$E:$E) -> 0
E55: Portfolio Turnover (Year-To-Date) | F55: =F75/F74 -> 1.302102247
F57: =SUMIF(InTB!$H:$H,1&I$5,InTB!$E:$E) -> 0 | G57: =SUMIF(InTB!$H:$H,1&J$5,InTB!$E:$E) -> 0
F58: =SUMIF(InTB!$H:$H,2&I$5,InTB!$E:$E)-SUMIF(InTB!$G:$G,299&I$5,InTB!$E:$E) -> 0 | G58: =SUMIF(InTB!$H:$H,2&J$5,InTB!$E:$E)-SUMIF(InTB!$G:$G,299&J$5,InTB!$E:$E) -> 0
F59: =SUMIF(InTB!$H:$H,3&I$5,InTB!$E:$E) -> 0 | G59: =SUMIF(InTB!$H:$H,3&J$5,InTB!$E:$E) -> 0
F60: =SUMIF(InTB!$H:$H,4&I$5,InTB!$E:$E) -> 0 | G60: =SUMIF(InTB!$H:$H,4&J$5,InTB!$E:$E) -> 0
F61: =SUMIF(InTB!$H:$H,5&I$5,InTB!$E:$E) -> 0 | G61: =SUMIF(InTB!$H:$H,5&J$5,InTB!$E:$E) -> 0
F62: =SUM(F57:F61) -> 0 | G62: =SUM(G57:G61) -> 0
F68: =F53-F44 -> 0
F70: =F44-OFFSET(Val!$A$1,MATCH("Portfolio Total",Val!$G:$G,0)-1,11)+SUMIF(InTB!$F:$F,BS!$K$41&BS!I$5,InTB!$E:$E) -> -17917050.74
E72: Fund | F72: =FundCode -> MEQESG
E73: NAV | F73: =F53 -> 0
E74: Average NAV | F74: =SUMPRODUCT((InTWRR!B7:B1004>=StartYr)*(InTWRR!B7:B1004<=EOM)*InTWRR!D7:D1004)/SUMPRODUCT((InTWRR!B7:B1004>=StartYr)*(InTWRR!B7:B1004<=EOM)*1) -> 16562149.2
E75: Proceed | F75: =SUM(InProceed!G:G)/2 -> 21565611.69

Sheet PL
H1: =UPPER(FundCode) -> MEQESG
A2: Details | D2: =UPPER(CompanyName) -> VCAP ASSET MANAGERS SDN. BHD.
A3: Islamic=1 | B3: =OFFSET(InFund!P1,'EOM Print'!O2,0) -> 0 | D3: PROFIT & LOSS STATEMENT
A4: if Amortise=1,0 | B4: =OFFSET('EOM Print'!G1,'EOM Print'!N2-1,0) -> 1 | D4: ="DISPOSITION AS AT " & UPPER(TEXT(EOM,"DD MMMM YYYY")) -> DISPOSITION AS AT 01 DECEMBER 2015
A5: Mgt Fee | B5: =IF(H40=0,0,1) -> 0 | J5: =(-J22-(SUM(J18:J19)-J33))*AVS.flag -> 0 | K5: =(-K22-(SUM(K18:K19)-K33))*AVS.flag -> 0 | M5: =(M19+M22+M34+M18)*AVS.flag -> 0
A6: if AVS = 1,0 | B6: =OFFSET('EOM Print'!H1,'EOM Print'!N2-1,0) -> 0 | F6: =EOM -> 2015-12-01 | G6: =EOMONTH(F6,-1) -> 2015-11-30 | H6: Year to Date | I6: REF | J6: =EOM -> 2015-12-01 | K6: =EOMONTH(J6,-1) -> 2015-11-30 | L6: =EOMONTH(K6,-1) -> 2015-10-31 | M6: =StartYr-1 -> 2015-07-05
A7: Acc Fee | B7: =IF(H39=0,0,1) -> 0 | D7: INVESTMENT INCOME
I8: 6392 | J8: =SUMIF(InTB!$I:$I,$I8&J$6,InTB!$E:$E) -> 0 | K8: =SUMIF(InTB!$I:$I,$I8&K$6,InTB!$E:$E) -> 0 | L8: =SUMIF(InTB!$I:$I,$I8&L$6,InTB!$E:$E) -> -329.95 | M8: =SUMIF(InTB!$I:$I,$I8&M$6,InTB!$E:$E) -> 0
I9: 9391 | J9: =SUMIF(InTB!$I:$I,$I9&J$6,InTB!$E:$E) -> 0 | K9: =SUMIF(InTB!$I:$I,$I9&K$6,InTB!$E:$E) -> 0 | L9: =SUMIF(InTB!$I:$I,$I9&L$6,InTB!$E:$E) -> 0 | M9: =SUMIF(InTB!$I:$I,$I9&M$6,InTB!$E:$E) -> 0
E10: Income from Deposit | F10: =SUM(K8:K10)-SUM(J8:J10) -> 0 | G10: =SUM(L8:L10)-SUM(K8:K10) -> -55186.63 | H10: =-SUM(J8:J10) -> 0 | I10: 6302 | J10: =SUMIF(InTB!$I:$I,$I10&J$6,InTB!$E:$E) -> 0 | K10: =SUMIF(InTB!$I:$I,$I10&K$6,InTB!$E:$E) -> 0 | L10: =SUMIF(InTB!$I:$I,$I10&L$6,InTB!$E:$E) -> -54856.68 | M10: =SUMIF(InTB!$I:$I,$I10&M$6,InTB!$E:$E) -> 0 | P10: =BS!$L$8 -> 
I11: 6391 | J11: =SUMIF(InTB!$I:$I,$I11&J$6,InTB!$E:$E) -> 0 | K11: =SUMIF(InTB!$I:$I,$I11&K$6,InTB!$E:$E) -> 0 | L11: =SUMIF(InTB!$I:$I,$I11&L$6,InTB!$E:$E) -> 0 | M11: =SUMIF(InTB!$I:$I,$I11&M$6,InTB!$E:$E) -> 0
I12: 9392 | J12: =SUMIF(InTB!$I:$I,$I12&J$6,InTB!$E:$E) -> 0 | K12: =SUMIF(InTB!$I:$I,$I12&K$6,InTB!$E:$E) -> 0 | L12: =SUMIF(InTB!$I:$I,$I12&L$6,InTB!$E:$E) -> 0 | M12: =SUMIF(InTB!$I:$I,$I12&M$6,InTB!$E:$E) -> 0
E13: Income from Bonds | F13: =SUM(K11:K13)-SUM(J11:J13) -> 0 | G13: =SUM(L11:L13)-SUM(K11:K13) -> 0 | H13: =-SUM(J11:J13) -> 0 | I13: 6301 | J13: =SUMIF(InTB!$I:$I,$I13&J$6,InTB!$E:$E) -> 0 | K13: =SUMIF(InTB!$I:$I,$I13&K$6,InTB!$E:$E) -> 0 | L13: =SUMIF(InTB!$I:$I,$I13&L$6,InTB!$E:$E) -> 0 | M13: =SUMIF(InTB!$I:$I,$I13&M$6,InTB!$E:$E) -> 0 | P13: =BS!$L$8 -> 
I14: 919 | J14: =SUMIF(InTB!$G:$G,$I14&J$6,InTB!$E:$E) -> 0 | K14: =SUMIF(InTB!$G:$G,$I14&K$6,InTB!$E:$E) -> 0 | L14: =SUMIF(InTB!$G:$G,$I14&L$6,InTB!$E:$E) -> 0 | M14: =SUMIF(InTB!$G:$G,$I14&M$6,InTB!$E:$E) -> 0
I15: 619 | J15: =SUMIF(InTB!$G:$G,$I15&J$6,InTB!$E:$E) -> 0 | K15: =SUMIF(InTB!$G:$G,$I15&K$6,InTB!$E:$E) -> 0 | L15: =SUMIF(InTB!$G:$G,$I15&L$6,InTB!$E:$E) -> 0 | M15: =SUMIF(InTB!$G:$G,$I15&M$6,InTB!$E:$E) -> 0
I16: 929 | J16: =SUMIF(InTB!$G:$G,$I16&J$6,InTB!$E:$E) -> 0 | K16: =SUMIF(InTB!$G:$G,$I16&K$6,InTB!$E:$E) -> 0 | L16: =SUMIF(InTB!$G:$G,$I16&L$6,InTB!$E:$E) -> 0 | M16: =SUMIF(InTB!$G:$G,$I16&M$6,InTB!$E:$E) -> 0
I17: 629 | J17: =SUMIF(InTB!$G:$G,$I17&J$6,InTB!$E:$E) -> 0 | K17: =SUMIF(InTB!$G:$G,$I17&K$6,InTB!$E:$E) -> 0 | L17: =SUMIF(InTB!$G:$G,$I17&L$6,InTB!$E:$E) -> 0 | M17: =SUMIF(InTB!$G:$G,$I17&M$6,InTB!$E:$E) -> 0
I18: 6201 | J18: =SUMIF(InTB!$I:$I,$I18&J$6,InTB!$E:$E) -> 0 | K18: =SUMIF(InTB!$I:$I,$I18&K$6,InTB!$E:$E) -> 0 | L18: =SUMIF(InTB!$I:$I,$I18&L$6,InTB!$E:$E) -> 0 | M18: =SUMIF(InTB!$I:$I,$I18&M$6,InTB!$E:$E) -> 0 | P18: =BS!$L$8 -> 
E19: Accretion of Discount (Amortisation of Premium) | F19: =SUM(K14:K19)-SUM(J14:J19) -> 0 | G19: =SUM(L14:L19)-SUM(K14:K19) -> 0 | H19: =-SUM(J14:J19) -> 0 | I19: 6101 | J19: =SUMIF(InTB!$I:$I,$I19&J$6,InTB!$E:$E) -> 0 | K19: =SUMIF(InTB!$I:$I,$I19&K$6,InTB!$E:$E) -> 0 | L19: =SUMIF(InTB!$I:$I,$I19&L$6,InTB!$E:$E) -> 0 | M19: =SUMIF(InTB!$I:$I,$I19&M$6,InTB!$E:$E) -> 0 | P19: =BS!$L$8 -> 
E20: Realised Gains/(Loss) on Sale of Investments | F20: =K20-J20 -> 0 | G20: =L20-K20 -> -830418.99 | H20: =-J20 -> 0 | I20: 600 | J20: =SUMIF(InTB!$G:$G,$I20&J$6,InTB!$E:$E) -> 0 | K20: =SUMIF(InTB!$G:$G,$I20&K$6,InTB!$E:$E) -> 0 | L20: =SUMIF(InTB!$G:$G,$I20&L$6,InTB!$E:$E) -> -830418.99 | M20: =SUMIF(InTB!$G:$G,$I20&M$6,InTB!$E:$E) -> 0
I21: 989 | J21: =SUMIF(InTB!$G:$G,$I21&J$6,InTB!$E:$E) -> 0 | K21: =SUMIF(InTB!$G:$G,$I21&K$6,InTB!$E:$E) -> 0 | L21: =SUMIF(InTB!$G:$G,$I21&L$6,InTB!$E:$E) -> 0 | M21: 0
E22: Change in Unrealised Gains/(Loss) on Holdings | F22: =(SUM(K21:K22)-SUM(J21:J22))*IF(AVS.flag=1,0,1) -> 0 | G22: =(SUM(L21:L22)-SUM(K21:K22))*IF(AVS.flag=1,0,1) -> 198949.51 | H22: =-(SUM(J21:J22))*IF(AVS.flag=1,0,1) -> 0 | I22: 689 | J22: =SUMIF(InTB!$G:$G,$I22&J$6,InTB!$E:$E) -> 0 | K22: =SUMIF(InTB!$G:$G,$I22&K$6,InTB!$E:$E) -> 0 | L22: =SUMIF(InTB!$G:$G,$I22&L$6,InTB!$E:$E) -> 198949.51 | M22: =SUMIF(InTB!$G:$G,$I22&M$6,InTB!$E:$E) -> 0
E23: Gains/(Loss) on Foreign Exchange | F23: =K23-J23 -> 0 | G23: =L23-K23 -> 0 | H23: =-J23 -> 0 | I23: 6500 | J23: =SUMIF(InTB!$I:$I,$I23&J$6,InTB!$E:$E) -> 0 | K23: =SUMIF(InTB!$I:$I,$I23&K$6,InTB!$E:$E) -> 0 | L23: =SUMIF(InTB!$I:$I,$I23&L$6,InTB!$E:$E) -> 0 | M23: =SUMIF(InTB!$I:$I,$I23&M$6,InTB!$E:$E) -> 0
I24: 999500 | J24: =SUMIF(InTB!$F:$F,$I24&J$6,InTB!$E:$E) -> 0 | K24: =SUMIF(InTB!$F:$F,$I24&K$6,InTB!$E:$E) -> 0 | L24: =SUMIF(InTB!$F:$F,$I24&L$6,InTB!$E:$E) -> 0 | M24: =SUMIF(InTB!$F:$F,$I24&M$6,InTB!$E:$E) -> 0
I25: 999999 | J25: =SUMIF(InTB!$F:$F,$I25&J$6,InTB!$E:$E) -> 0 | K25: =SUMIF(InTB!$F:$F,$I25&K$6,InTB!$E:$E) -> 0 | L25: =SUMIF(InTB!$F:$F,$I25&L$6,InTB!$E:$E) -> 0 | M25: =SUMIF(InTB!$F:$F,$I25&M$6,InTB!$E:$E) -> 0
I26: 999 | J26: =SUMIF(InTB!$G:$G,$I26&J$6,InTB!$E:$E)-J25-J24 -> 0 | K26: =SUMIF(InTB!$G:$G,$I26&K$6,InTB!$E:$E)-K25-K24 -> 0 | L26: =SUMIF(InTB!$G:$G,$I26&L$6,InTB!$E:$E)-L25-L24 -> 0 | M26: =SUMIF(InTB!$G:$G,$I26&M$6,InTB!$E:$E)-M25-M24 -> 0
E27: Unrealised Gains/(Loss) on Foreign Exchange | F27: =(SUM(K24:K27)-SUM(J24:J27))*IF(AVS.flag=1,0,1) -> 0 | G27: =(SUM(L24:L27)-SUM(K24:K27))*IF(AVS.flag=1,0,1) -> 0 | H27: =-SUM(J24:J27)*IF(AVS.flag=1,0,1) -> 0 | I27: 699 | J27: =SUMIF(InTB!$G:$G,$I27&J$6,InTB!$E:$E) -> 0 | K27: =SUMIF(InTB!$G:$G,$I27&K$6,InTB!$E:$E) -> 0 | L27: =SUMIF(InTB!$G:$G,$I27&L$6,InTB!$E:$E) -> 0 | M27: =SUMIF(InTB!$G:$G,$I27&M$6,InTB!$E:$E) -> 0
E28: Allowance for Impairment | F28: =K28-J28 -> 0 | G28: =L28-K28 -> 0 | H28: =-J28 -> 0 | I28: 660 | J28: =SUMIF(InTB!$G:$G,$I28&J$6,InTB!$E:$E) -> 0 | K28: =SUMIF(InTB!$G:$G,$I28&K$6,InTB!$E:$E) -> 0 | L28: =SUMIF(InTB!$G:$G,$I28&L$6,InTB!$E:$E) -> 0 | M28: =SUMIF(InTB!$G:$G,$I28&M$6,InTB!$E:$E) -> 0
I29: 799 | J29: =SUMIF(InTB!$G:$G,$I29&J$6,InTB!$E:$E) -> 0 | K29: =SUMIF(InTB!$G:$G,$I29&K$6,InTB!$E:$E) -> 0 | L29: =SUMIF(InTB!$G:$G,$I29&L$6,InTB!$E:$E) -> 0 | M29: =SUMIF(InTB!$G:$G,$I29&M$6,InTB!$E:$E) -> 0
I30: 299999 | J30: =SUMIF(InTB!$F:$F,$I30&J$6,InTB!$E:$E) -> 0 | K30: =SUMIF(InTB!$F:$F,$I30&K$6,InTB!$E:$E) -> 0 | L30: =SUMIF(InTB!$F:$F,$I30&L$6,InTB!$E:$E) -> 0 | M30: =SUMIF(InTB!$F:$F,$I30&M$6,InTB!$E:$E) -> 0
I31: 636 | J31: =SUMIF(InTB!$G:$G,$I31&J$6,InTB!$E:$E) -> 0 | K31: =SUMIF(InTB!$G:$G,$I31&K$6,InTB!$E:$E) -> 0 | L31: =SUMIF(InTB!$G:$G,$I31&L$6,InTB!$E:$E) -> -154404 | M31: =SUMIF(InTB!$G:$G,$I31&M$6,InTB!$E:$E) -> 0
E32: Gross Dividend Income | F32: =SUM(K29,K31:K32)-SUM(J29,J31:J32) -> 0 | G32: =SUM(L29,L31:L32)-SUM(K29,K31:K32) -> -159722 | H32: =-SUM(J29,J31:J32) -> 0 | I32: 635 | J32: =SUMIF(InTB!$G:$G,$I32&J$6,InTB!$E:$E) -> 0 | K32: =SUMIF(InTB!$G:$G,$I32&K$6,InTB!$E:$E) -> 0 | L32: =SUMIF(InTB!$G:$G,$I32&L$6,InTB!$E:$E) -> -5318 | M32: =SUMIF(InTB!$G:$G,$I32&M$6,InTB!$E:$E) -> 0
D33: Total Income | F33: =SUM(F10:F32) -> 0 | G33: =SUM(G10:G32) -> -846378.11 | H33: =SUM(H10:H32) -> 0 | K33: =SUMIF(InTB!$F:$F,$N33&K$6,InTB!$E:$E)+SUMIF(InTB!$F:$F,$N34&K$6,InTB!$E:$E)+SUMIF(InTB!$F:$F,$N35&K$6,InTB!$E:$E)+SUMIF(InTB!$F:$F,$N36&K$6,InTB!$E:$E) -> 0 | L33: =SUMIF(InTB!$F:$F,$N33&L$6,InTB!$E:$E)+SUMIF(InTB!$F:$F,$N34&L$6,InTB!$E:$E)+SUMIF(InTB!$F:$F,$N35&L$6,InTB!$E:$E)+SUMIF(InTB!$F:$F,$N36&L$6,InTB!$E:$E) -> 0 | M33: =SUMIF(InTB!$F:$F,$N33&M$6,InTB!$E:$E)+SUMIF(InTB!$F:$F,$N34&M$6,InTB!$E:$E)+SUMIF(InTB!$F:$F,$N35&M$6,InTB!$E:$E)+SUMIF(InTB!$F:$F,$N36&M$6,InTB!$E:$E) -> 0
I34: total | J34: =SUM(J8:J33) -> 0 | K34: =SUM(K8:K33) -> 0 | L34: =SUM(L8:L33) -> -846378.11 | M34: =SUM(M8:M33) -> 0
D35: EXPENDITURE
E36: Bank Charges | F36: =K36-J36 -> 0 | G36: =L36-K36 -> 316.2 | H36: =-J36 -> 0 | I36: 710102 | J36: =SUMIF(InTB!$F:$F,$I36&J$6,InTB!$E:$E) -> 0 | K36: =SUMIF(InTB!$F:$F,$I36&K$6,InTB!$E:$E) -> 0 | L36: =SUMIF(InTB!$F:$F,$I36&L$6,InTB!$E:$E) -> 316.2 | M36: =SUMIF(InTB!$F:$F,$I36&M$6,InTB!$E:$E) -> 0
E37: Transaction Costs | F37: =K37-J37 -> 0 | G37: =L37-K37 -> 0 | H37: =-J37 -> 0 | I37: 710117 | J37: =SUMIF(InTB!$F:$F,$I37&J$6,InTB!$E:$E) -> 0 | K37: =SUMIF(InTB!$F:$F,$I37&K$6,InTB!$E:$E) -> 0 | L37: =SUMIF(InTB!$F:$F,$I37&L$6,InTB!$E:$E) -> 0 | M37: =SUMIF(InTB!$F:$F,$I37&M$6,InTB!$E:$E) -> 0
E38: Custody Fee | F38: =(K38-J38) -> 0 | G38: =(L38-K38) -> 0 | H38: 0 | I38: 700300 | J38: =SUMIF(InTB!$F:$F,$I38&J$6,InTB!$E:$E) -> 0 | K38: =SUMIF(InTB!$F:$F,$I38&K$6,InTB!$E:$E) -> 0 | L38: =SUMIF(InTB!$F:$F,$I38&L$6,InTB!$E:$E) -> 0 | M38: =SUMIF(InTB!$F:$F,$I38&M$6,InTB!$E:$E) -> 0
E39: Fund Accounting Fee | F39: =(K39-J39) -> 0 | G39: =(L39-K39) -> 0 | H39: 0 | J39: =SUMIF(InTB!$F:$F,$I39&J$6,InTB!$E:$E) -> 0 | K39: =SUMIF(InTB!$F:$F,$I39&K$6,InTB!$E:$E) -> 0 | L39: =SUMIF(InTB!$F:$F,$I39&L$6,InTB!$E:$E) -> 0 | M39: =SUMIF(InTB!$F:$F,$I39&M$6,InTB!$E:$E) -> 0
E40: Management Fee | F40: =(K40-J40)*Fee.Flag -> 0 | G40: 0 | H40: =-J40 -> 0 | I40: 710106 | J40: =SUMIF(InTB!$F:$F,$I40&J$6,InTB!$E:$E) -> 0 | K40: =SUMIF(InTB!$F:$F,$I40&K$6,InTB!$E:$E) -> 0 | L40: =SUMIF(InTB!$F:$F,$I40&L$6,InTB!$E:$E) -> 11099.57 | M40: =SUMIF(InTB!$F:$F,$I40&M$6,InTB!$E:$E) -> 0
E41: Performance Fee | F41: 0 | G41: 0 | H41: 0 | J41: =SUMIF(InTB!$F:$F,$I41&J$6,InTB!$E:$E) -> 0 | K41: =SUMIF(InTB!$F:$F,$I41&K$6,InTB!$E:$E) -> 0 | L41: =SUMIF(InTB!$F:$F,$I41&L$6,InTB!$E:$E) -> 0 | M41: =SUMIF(InTB!$F:$F,$I41&M$6,InTB!$E:$E) -> 0
E42: Trustee Fee | F42: 0 | G42: 0 | H42: 0 | I42: 710113 | J42: =SUMIF(InTB!$F:$F,$I42&J$6,InTB!$E:$E) -> 0 | K42: =SUMIF(InTB!$F:$F,$I42&K$6,InTB!$E:$E) -> 0 | L42: =SUMIF(InTB!$F:$F,$I42&L$6,InTB!$E:$E) -> 1721.28 | M42: =SUMIF(InTB!$F:$F,$I42&M$6,InTB!$E:$E) -> 0
H43: 0 | J43: =SUMIF(InTB!$G:$G,$I43&J$6,InTB!$E:$E) -> 0 | K43: =SUMIF(InTB!$G:$G,$I43&K$6,InTB!$E:$E) -> 0 | L43: =SUMIF(InTB!$G:$G,$I43&L$6,InTB!$E:$E) -> 0 | M43: =SUMIF(InTB!$G:$G,$I43&M$6,InTB!$E:$E) -> 0
E44: Others | F44: =(K44-J44) -> 0 | G44: =(L44-K44) -> 13472.2 | H44: 0 | I44: 7 | J44: =SUMIF(InTB!$H:$H,$I44&J$6,InTB!$E:$E)-SUM(J36:J43)-J29 -> 0 | K44: =SUMIF(InTB!$H:$H,$I44&K$6,InTB!$E:$E)-SUM(K36:K43)-K29 -> 0 | L44: =SUMIF(InTB!$H:$H,$I44&L$6,InTB!$E:$E)-SUM(L36:L43)-L29 -> 13472.2 | M44: =SUMIF(InTB!$H:$H,$I44&M$6,InTB!$E:$E)-SUM(M36:M43)-M29 -> 0
D45: Total Expenditure | F45: =SUM(F36:F44) -> 0 | G45: =SUM(G36:G44) -> 13788.4 | H45: =SUM(H36:H44) -> 0 | I45: Total | J45: =SUM(J36:J44) -> 0 | K45: =SUM(K36:K44) -> 0 | L45: =SUM(L36:L44) -> 26609.25 | M45: =SUM(M36:M44) -> 0
D47: NET INCOME BEFORE TAXATION | F47: =F33+F45 -> 0 | G47: =G33+G45 -> -832589.71 | H47: =H33+H45 -> 0
E48: Taxation Paid at Source on Dividend | I48: TAXEXP | J48: =-SUMIF(InTB!$H:$H,PL!$I48&PL!J$6,InTB!$E:$E) -> 0 | K48: =-SUMIF(InTB!$H:$H,PL!$I48&PL!K$6,InTB!$E:$E) -> 0 | L48: =-SUMIF(InTB!$H:$H,PL!$I48&PL!L$6,InTB!$E:$E) -> 0 | M48: =-SUMIF(InTB!$H:$H,PL!$I48&PL!M$6,InTB!$E:$E) -> 0
E49: Taxation | F49: =(SUM(J49:J50)-SUM(K49:K50))*-1 -> 0 | G49: =(SUM(K49:K50)-SUM(L49:L50))*-1 -> 0 | H49: =(SUM(J49:J50))*-1 -> 0 | I49: 710112 | J49: =SUMIF(InTB!$F:$F,$I49&J$6,InTB!$E:$E) -> 0 | K49: =SUMIF(InTB!$F:$F,$I49&K$6,InTB!$E:$E) -> 0 | L49: =SUMIF(InTB!$F:$F,$I49&L$6,InTB!$E:$E) -> 0 | M49: =SUMIF(InTB!$F:$F,$I49&M$6,InTB!$E:$E) -> 0
E50: Tax Recoverable - Foreign | I50: 710198 | J50: =SUMIF(InTB!$F:$F,$I50&J$6,InTB!$E:$E) -> 0 | K50: =SUMIF(InTB!$F:$F,$I50&K$6,InTB!$E:$E) -> 0 | L50: =SUMIF(InTB!$F:$F,$I50&L$6,InTB!$E:$E) -> 0 | M50: =SUMIF(InTB!$F:$F,$I50&M$6,InTB!$E:$E) -> 0
E51: Dividend Tax - Local | F51: =(J51-K51)*-1 -> 0 | G51: =(K51-L51)*-1 -> 0 | H51: =(J51-M51)*-1 -> 0 | I51: 299999 | J51: =J30 -> 0 | K51: =K30 -> 0 | L51: =L30 -> 0 | M51: =M30 -> 0
D52: NET INCOME AFTER TAXATION | F52: =F47+F51+F49 -> 0 | G52: =G47+G51+G49 -> -832589.71 | H52: =H47+H51+H49 -> 0 | I52: 840000 | J52: =SUMIF(InTB!$F:$F,$I52&J$6,InTB!$E:$E) -> 0 | K52: =SUMIF(InTB!$F:$F,$I52&K$6,InTB!$E:$E) -> 0 | L52: =SUMIF(InTB!$F:$F,$I52&L$6,InTB!$E:$E) -> 0 | M52: =SUMIF(InTB!$F:$F,$I52&M$6,InTB!$E:$E) -> 0
E54: Distribution | F54: =SUM(J52:J54)-SUM(K52:K54)*-1 -> 0 | G54: =SUM(K52:K54)-SUM(L52:L54)*-1 -> 0 | H54: =SUM(L52:L54)*-1 -> 0 | I54: 850000 | J54: =SUMIF(InTB!$F:$F,$I54&J$6,InTB!$E:$E) -> 0 | K54: =SUMIF(InTB!$F:$F,$I54&K$6,InTB!$E:$E) -> 0 | L54: =SUMIF(InTB!$F:$F,$I54&L$6,InTB!$E:$E) -> 0 | M54: =SUMIF(InTB!$F:$F,$I54&M$6,InTB!$E:$E) -> 0
E55: Distribution Equalisation | F55: =(J55-K55)*-1 -> 0 | G55: =(K55-L55)*-1 -> 0 | H55: =(J55-M55)*-1 -> 0 | J55: =-SUMIF(InTB!$F:$F,PL!$I55&PL!J$6,InTB!$E:$E) -> 0 | K55: =-SUMIF(InTB!$F:$F,PL!$I55&PL!K$6,InTB!$E:$E) -> 0 | L55: =-SUMIF(InTB!$F:$F,PL!$I55&PL!L$6,InTB!$E:$E) -> 0 | M55: =-SUMIF(InTB!$F:$F,PL!$I55&PL!M$6,InTB!$E:$E) -> 0
D56: NET TOTAL PROFIT / (LOSS) | F56: =F33+F45+F51+F54 -> 0 | G56: =G33+G45+G51+G54 -> -832589.71 | H56: =H33+H45+H51+H54 -> 0 | J56: =J34+J45 -> 0 | K56: =K34+K45 -> 0 | L56: =L34+L45 -> -819768.86 | M56: =M34+M45 -> 0
E58: Ratained Profit/(Loss) Brought Forward | H58: =-J58-M51 -> 0 | I58: 830000 | J58: =SUMIF(InTB!$F:$F,$I58&J$6,InTB!$E:$E) -> 0 | K58: =SUMIF(InTB!$F:$F,$I58&K$6,InTB!$E:$E) -> 0 | L58: =SUMIF(InTB!$F:$F,$I58&L$6,InTB!$E:$E) -> 0 | M58: =SUMIF(InTB!$F:$F,$I58&M$6,InTB!$E:$E) -> 0
E59: Ratained Profit/(Loss) Carried Forward | H59: =H58+H56 -> 0
D61: Net Income after taxation is made up of:
E62: Realised Income : Received | H62: =H52-H63-H64-H65 -> 0
E63: Realised Income : Receivable | H63: =BS!G24+BS!G25 -> 0
E64: Unrealised Gains on Investment | H64: =H22 -> 0 | I64: PLUGLINV | J64: =-SUMIF(InTB!$H:$H,PL!$I64&PL!J$6,InTB!$E:$E) -> 0 | K64: =-SUMIF(InTB!$H:$H,PL!$I64&PL!K$6,InTB!$E:$E) -> 0 | M64: =-SUMIF(InTB!$H:$H,PL!$I64&PL!M$6,InTB!$E:$E) -> 0
E65: Unrealised Gains/(Loss) on Foreign Exchange | H65: =H27 -> 0 | I65: PLUGLFOX | J65: =-SUMIF(InTB!$H:$H,PL!$I65&PL!J$6,InTB!$E:$E) -> 0 | K65: =-SUMIF(InTB!$H:$H,PL!$I65&PL!K$6,InTB!$E:$E) -> 0 | M65: =-SUMIF(InTB!$H:$H,PL!$I65&PL!M$6,InTB!$E:$E) -> 0
H66: =SUM(H62:H65) -> 0
E68: Note: Fee not paid by Fund
E69: =IF(Fee.Flag=1,"Accrued Custody Fee","") ->  | F69: =(K38-J38) -> 0 | G69: 0 | H69: =(M38-J38) -> 0
E70: =IF(Fee.Flag=1,"Accrued Fund Accounting Fee","") ->  | F70: 0 | G70: 0 | H70: =(M39-J39) -> 0
E71: =IF(Fee.Flag=1,"Accrued Management Fee","") ->  | F71: 0 | G71: 11099.57 | H71: =(M40-J40) -> 0
E72: =IF(Fee.Flag=1,"Accrued Performance Fee","") ->  | F72: 0 | G72: 0 | H72: =(M41-J41) -> 0
D74: NOTE TO THE INCOME & EXPENSE REPORT | J74: =SUMIF(InTB!$H:$H,6&J$6,InTB!$E:$E) -> 0 | K74: =SUM(J8:J32)-J29-J30-J21-SUM(J24:J26)-J9-J12 -> 0 | L74: =J74-K74 -> 0 | M74: =SUMIF(InTB!$H:$H,6&M$6,InTB!$E:$E) -> 0 | N74: =SUM(M8:M32)-M29-M30-M21-SUM(M24:M26)-M9-M12 -> 0 | O74: =M74-N74 -> 0
J75: =SUMIF(InTB!$H:$H,7&J$6,InTB!$E:$E) -> 0 | K75: =SUM(J36:J44)+J29 -> 0 | L75: =J75-K75 -> 0 | M75: =SUMIF(InTB!$H:$H,7&M$6,InTB!$E:$E) -> 0 | N75: =SUM(M36:M44)+M29 -> 0 | O75: =M75-N75 -> 0
D76: 1 | E76: The above net profit/(loss) does not include the management fees | J76: =SUMIF(InTB!$H:$H,8&J$6,InTB!$E:$E) -> 0 | K76: =-(BS!F53-BS!F49) -> 0 | L76: =J76-K76 -> 0 | M76: =SUMIF(InTB!$H:$H,8&M$6,InTB!$E:$E) -> 0
J77: =SUMIF(InTB!$H:$H,9&J$6,InTB!$E:$E) -> 0 | K77: =J21+SUM(J24:J26)+J9+J12 -> 0 | L77: =J77-K77 -> 0 | M77: =SUMIF(InTB!$H:$H,9&M$6,InTB!$E:$E) -> 0 | N77: =M21+SUM(M24:M26)+M9+M12 -> 0
E78: RECAP | J78: =SUM(J74:J77) -> 0 | M78: =SUM(M74:M77) -> 0
E79: Net Profit/(loss) | F79: =F56 -> 0 | G79: =G56 -> -832589.71
E80: Less Management Fees | F80: =(K80-J80) -> 0 | G80: =(L80-K80) -> 11099.57 | I80: 710106 | J80: =SUMIF(InTB!$F:$F,$I80&J$6,InTB!$E:$E) -> 0 | K80: =SUMIF(InTB!$F:$F,$I80&K$6,InTB!$E:$E) -> 0 | L80: =SUMIF(InTB!$F:$F,$I80&L$6,InTB!$E:$E) -> 11099.57 | M80: =SUMIF(InTB!$F:$F,$I80&M$6,InTB!$E:$E) -> 0
E81: Net Profit/(loss) after Management Fees | F81: =SUM(F79:F80) -> 0 | G81: =SUM(G79:G80) -> -821490.14

Sheet InTB (hidden)
F1: =D1&$A1 ->  | G1: =LEFT(D1,3)&$A1 ->  | H1: =LEFT(D1,1)&$A1 ->  | I1: =LEFT(D1,4)&$A1 -> 
A2: TBDate | B2: qRptGrp1ID | C2: qCurrencyCode | D2: ShortGL | E2: SumDrCr | F2: L6 | G2: L3 | H2: L1 | I2: L4
A3: 2015-10-31 | B3: BIACLS | C3: MYR | D3: 100010 | E3: 16366986.1 | F3: =D3&$A3 -> 10001042308 | G3: =LEFT(D3,3)&$A3 -> 10042308 | H3: =LEFT(D3,1)&$A3 -> 142308 | I3: =LEFT(D3,4)&$A3 -> 100042308
A4: 2015-10-31 | B4: BIACDP | C4: MYR | D4: 100210 | E4: 1544000 | F4: 10021042308 | G4: 10042308 | H4: 142308 | I4: 100242308
A5: 2015-10-31 | B5: BOAIND | C5: MYR | D5: 139210 | E5: 329.95 | F5: 13921042308 | G5: 13942308 | H5: 142308 | I5: 139242308
A6: 2015-10-31 | B6: BIAULS | C6: MYR | D6: 189010 | E6: -198949.51 | F6: 18901042308 | G6: 18942308 | H6: 142308 | I6: 189042308
A7: 2015-10-31 | B7: BOADVL | C7: MYR | D7: 299010 | E7: 94320 | F7: 29901042308 | G7: 29942308 | H7: 242308 | I7: 299042308
A8: 2015-10-31 | B8: BLMNGT | C8: MYR | D8: 320103 | E8: -2827.42 | F8: 32010342308 | G8: 32042308 | H8: 342308 | I8: 320142308
A9: 2015-10-31 | B9: BLTRUS | C9: MYR | D9: 320104 | E9: -0.04 | F9: 32010442308 | G9: 32042308 | H9: 342308 | I9: 320142308
A10: 2015-10-31 | B10: BLTXFP | C10: MYR | D10: 320773 | E10: -2685.04 | F10: 32077342308 | G10: 32042308 | H10: 342308 | I10: 320742308
A11: 2015-10-31 | B11: BLMNGT | C11: MYR | D11: 320780 | E11: -4258.39 | F11: 32078042308 | G11: 32042308 | H11: 342308 | I11: 320742308
A12: 2015-10-31 | B12: BLTRUS | C12: MYR | D12: 320781 | E12: -1346.69 | F12: 32078142308 | G12: 32042308 | H12: 342308 | I12: 320742308
A13: 2015-10-31 | B13: BLAUDP | C13: MYR | D13: 320789 | E13: -4393.84 | F13: 32078942308 | G13: 32042308 | H13: 342308 | I13: 320742308
A14: 2015-10-31 | B14: BLMNGT | C14: MYR | D14: 320880 | E14: -169.63 | F14: 32088042308 | G14: 32042308 | H14: 342308 | I14: 320842308
A15: 2015-10-31 | B15: BLTRUS | C15: MYR | D15: 320881 | E15: 0.04 | F15: 32088142308 | G15: 32042308 | H15: 342308 | I15: 320842308
A16: 2015-10-31 | B16: BOABNK | C16: MYR | D16: 500000 | E16: 28763.33 | F16: 50000042308 | G16: 50042308 | H16: 542308 | I16: 500042308
A17: 2015-10-31 | B17: PRGNLO | C17: MYR | D17: 600010 | E17: -830418.99 | F17: 60001042308 | G17: 60042308 | H17: 642308 | I17: 600042308
A18: 2015-10-31 | B18: PRINMM | C18: MYR | D18: 630210 | E18: -54856.68 | F18: 63021042308 | G18: 63042308 | H18: 642308 | I18: 630242308
A19: 2015-10-31 | B19: PRDVTA | C19: MYR | D19: 635010 | E19: -5318 | F19: 63501042308 | G19: 63542308 | H19: 642308 | I19: 635042308
A20: 2015-10-31 | B20: PRDVTE | C20: MYR | D20: 636010 | E20: -154404 | F20: 63601042308 | G20: 63642308 | H20: 642308 | I20: 636042308
A21: 2015-10-31 | B21: PRINMM | C21: MYR | D21: 639210 | E21: -329.95 | F21: 63921042308 | G21: 63942308 | H21: 642308 | I21: 639242308
A22: 2015-10-31 | B22: PUGINV | C22: MYR | D22: 689010 | E22: 198949.51 | F22: 68901042308 | G22: 68942308 | H22: 642308 | I22: 689042308
A23: 2015-10-31 | B23: PREBKC | C23: MYR | D23: 710102 | E23: 316.2 | F23: 71010242308 | G23: 71042308 | H23: 742308 | I23: 710142308
A24: 2015-10-31 | B24: PREMNG | C24: MYR | D24: 710106 | E24: 11099.57 | F24: 71010642308 | G24: 71042308 | H24: 742308 | I24: 710142308
A25: 2015-10-31 | B25: PRETRS | C25: MYR | D25: 710113 | E25: 1721.28 | F25: 71011342308 | G25: 71042308 | H25: 742308 | I25: 710142308
A26: 2015-10-31 | B26: PRETXA | C26: MYR | D26: 710773 | E26: 2685.04 | F26: 71077342308 | G26: 71042308 | H26: 742308 | I26: 710742308
A27: 2015-10-31 | B27: PREMNG | C27: MYR | D27: 710780 | E27: 4258.39 | F27: 71078042308 | G27: 71042308 | H27: 742308 | I27: 710742308
A28: 2015-10-31 | B28: PRETRS | C28: MYR | D28: 710781 | E28: 1346.69 | F28: 71078142308 | G28: 71042308 | H28: 742308 | I28: 710742308
A29: 2015-10-31 | B29: PREAUD | C29: MYR | D29: 710789 | E29: 4393.84 | F29: 71078942308 | G29: 71042308 | H29: 742308 | I29: 710742308
A30: 2015-10-31 | B30: PREGST | C30: MYR | D30: 710876 | E30: 18.98 | F30: 71087642308 | G30: 71042308 | H30: 742308 | I30: 710842308
A31: 2015-10-31 | B31: PREGST | C31: MYR | D31: 710880 | E31: 665.98 | F31: 71088042308 | G31: 71042308 | H31: 742308 | I31: 710842308
A32: 2015-10-31 | B32: PREGST | C32: MYR | D32: 710881 | E32: 103.28 | F32: 71088142308 | G32: 71042308 | H32: 742308 | I32: 710842308
A33: 2015-10-31 | B33: BCUCAP | C33: MYR | D33: 800000 | E33: -17000000 | F33: 80000042308 | G33: 80042308 | H33: 842308 | I33: 800042308

Sheet InTWRR (hidden)
A2: qFundCode | B2: ValueDate | C2: LastValueDate | D2: NAV | E2: LVNav | F2: TWRRPrice
A3: MEQESG | B3: 2015-08-14 | C3: 2015-08-13 | D3: 15001356.03 | E3: 0 | F3: 1
A4: MEQESG | B4: 2015-08-17 | C4: 2015-08-14 | D4: 15505448.53 | E4: 15001356.03 | F4: 1
A5: MEQESG | B5: 2015-08-18 | C5: 2015-08-17 | D5: 15506839.66 | E5: 15505448.53 | F5: 1
A6: MEQESG | B6: 2015-08-19 | C6: 2015-08-18 | D6: 15508230.97 | E6: 15506839.66 | F6: 1
A7: MEQESG | B7: 2015-08-20 | C7: 2015-08-19 | D7: 15507959.18 | E7: 15508230.97 | F7: 1.0005
A8: MEQESG | B8: 2015-08-21 | C8: 2015-08-20 | D8: 15525533.8 | E8: 15507959.18 | F8: 1.0016
A9: MEQESG | B9: 2015-08-24 | C9: 2015-08-21 | D9: 15458016.36 | E9: 15525533.8 | F9: 0.9973
A10: MEQESG | B10: 2015-08-25 | C10: 2015-08-24 | D10: 15487598.14 | E10: 15458016.36 | F10: 0.9992
A11: MEQESG | B11: 2015-08-26 | C11: 2015-08-25 | D11: 15587086.16 | E11: 15487598.14 | F11: 1.0056
A12: MEQESG | B12: 2015-08-27 | C12: 2015-08-26 | D12: 15718060.23 | E12: 15587086.16 | F12: 1.0141
A13: MEQESG | B13: 2015-08-28 | C13: 2015-08-27 | D13: 15760032.89 | E13: 15718060.23 | F13: 1.0168
A14: MEQESG | B14: 2015-08-31 | C14: 2015-08-28 | D14: 15762314.16 | E14: 15760032.89 | F14: 1.0169
A15: MEQESG | B15: 2015-09-01 | C15: 2015-08-31 | D15: 15722885.12 | E15: 15762314.16 | F15: 1.0144
A16: MEQESG | B16: 2015-09-02 | C16: 2015-09-01 | D16: 15554838.88 | E16: 15722885.12 | F16: 1.0035
A17: MEQESG | B17: 2015-09-03 | C17: 2015-09-02 | D17: 15621674.83 | E17: 15554838.88 | F17: 1.0078
A18: MEQESG | B18: 2015-09-04 | C18: 2015-09-03 | D18: 15541279.5 | E18: 15621674.83 | F18: 1.0027
A19: MEQESG | B19: 2015-09-07 | C19: 2015-09-04 | D19: 15527443.81 | E19: 15541279.5 | F19: 1.0018
A20: MEQESG | B20: 2015-09-08 | C20: 2015-09-07 | D20: 15596998.32 | E20: 15527443.81 | F20: 1.0063
A21: MEQESG | B21: 2015-09-09 | C21: 2015-09-08 | D21: 15653149.34 | E21: 15596998.32 | F21: 1.0099
A22: MEQESG | B22: 2015-09-10 | C22: 2015-09-09 | D22: 15666930.37 | E22: 15653149.34 | F22: 1.0108
A23: MEQESG | B23: 2015-09-11 | C23: 2015-09-10 | D23: 15697716.35 | E23: 15666930.37 | F23: 1.0128
A24: MEQESG | B24: 2015-09-14 | C24: 2015-09-11 | D24: 15974040.95 | E24: 15697716.35 | F24: 1.0306
A25: MEQESG | B25: 2015-09-15 | C25: 2015-09-14 | D25: 16069083.6 | E25: 15974040.95 | F25: 1.0367
A26: MEQESG | B26: 2015-09-17 | C26: 2015-09-15 | D26: 16278505.63 | E26: 16069083.6 | F26: 1.0502
A27: MEQESG | B27: 2015-09-18 | C27: 2015-09-17 | D27: 16271895.87 | E27: 16278505.63 | F27: 1.0498
A28: MEQESG | B28: 2015-09-21 | C28: 2015-09-18 | D28: 16840166.96 | E28: 16271895.87 | F28: 1.0386
A29: MEQESG | B29: 2015-09-22 | C29: 2015-09-21 | D29: 16850801.73 | E29: 16840166.96 | F29: 1.0392
A30: MEQESG | B30: 2015-09-23 | C30: 2015-09-22 | D30: 16712646.81 | E30: 16850801.73 | F30: 1.0307
A31: MEQESG | B31: 2015-09-25 | C31: 2015-09-23 | D31: 16750794.81 | E31: 16712646.81 | F31: 1.0331
A32: MEQESG | B32: 2015-09-28 | C32: 2015-09-25 | D32: 16689552.54 | E32: 16750794.81 | F32: 1.0293
A33: MEQESG | B33: 2015-09-29 | C33: 2015-09-28 | D33: 16663984.34 | E33: 16689552.54 | F33: 1.0277
A34: MEQESG | B34: 2015-09-30 | C34: 2015-09-29 | D34: 16757465.25 | E34: 16663984.34 | F34: 1.0335
A35: MEQESG | B35: 2015-10-01 | C35: 2015-09-30 | D35: 17260317.67 | E35: 16757465.25 | F35: 1.0337
A36: MEQESG | B36: 2015-10-02 | C36: 2015-10-01 | D36: 17209350.83 | E36: 17260317.67 | F36: 1.0306
A37: MEQESG | B37: 2015-10-05 | C37: 2015-10-02 | D37: 17349456.25 | E37: 17209350.83 | F37: 1.039
A38: MEQESG | B38: 2015-10-06 | C38: 2015-10-05 | D38: 17519813.16 | E38: 17349456.25 | F38: 1.0492
A39: MEQESG | B39: 2015-10-07 | C39: 2015-10-06 | D39: 17828440.34 | E39: 17519813.16 | F39: 1.0677
A40: MEQESG | B40: 2015-10-08 | C40: 2015-10-07 | D40: 17896889.59 | E40: 17828440.34 | F40: 1.0718
A41: MEQESG | B41: 2015-10-09 | C41: 2015-10-08 | D41: 17999250.3 | E41: 17896889.59 | F41: 1.0779
A42: MEQESG | B42: 2015-10-12 | C42: 2015-10-09 | D42: 17975508.83 | E42: 17999250.3 | F42: 1.0765
A43: MEQESG | B43: 2015-10-13 | C43: 2015-10-12 | D43: 18266364.91 | E43: 17975508.83 | F43: 1.0789
A44: MEQESG | B44: 2015-10-15 | C44: 2015-10-13 | D44: 18297941.37 | E44: 18266364.91 | F44: 1.0808
A45: MEQESG | B45: 2015-10-16 | C45: 2015-10-15 | D45: 18381395.71 | E45: 18297941.37 | F45: 1.0857
A46: MEQESG | B46: 2015-10-19 | C46: 2015-10-16 | D46: 18369119.96 | E46: 18381395.71 | F46: 1.085
A47: MEQESG | B47: 2015-10-20 | C47: 2015-10-19 | D47: 18189943.29 | E47: 18369119.96 | F47: 1.0744
A48: MEQESG | B48: 2015-10-21 | C48: 2015-10-20 | D48: 18230766.09 | E48: 18189943.29 | F48: 1.0768
A49: MEQESG | B49: 2015-10-22 | C49: 2015-10-21 | D49: 18150602.65 | E49: 18230766.09 | F49: 1.0721
A50: MEQESG | B50: 2015-10-23 | C50: 2015-10-22 | D50: 18195942.86 | E50: 18150602.65 | F50: 1.0747
A51: MEQESG | B51: 2015-10-26 | C51: 2015-10-23 | D51: 18134961.81 | E51: 18195942.86 | F51: 1.0711
A52: MEQESG | B52: 2015-10-27 | C52: 2015-10-26 | D52: 18035893.63 | E52: 18134961.81 | F52: 1.0653
A53: MEQESG | B53: 2015-10-28 | C53: 2015-10-27 | D53: 17991602.7 | E53: 18035893.63 | F53: 1.0627
A54: MEQESG | B54: 2015-10-29 | C54: 2015-10-28 | D54: 17810528.21 | E54: 17991602.7 | F54: 1.052
A55: MEQESG | B55: 2015-10-30 | C55: 2015-10-29 | D55: 17819976.56 | E55: 17810528.21 | F55: 1.0525
A56: MEQESG | B56: 2015-10-31 | C56: 2015-10-30 | D56: 17819768.86 | E56: 17819976.56 | F56: 1.0525
A57: MEQESG | B57: 2015-11-02 | C57: 2015-10-31 | D57: 17815626.51 | E57: 17819768.86 | F57: 1.0523
A58: MEQESG | B58: 2015-11-03 | C58: 2015-11-02 | D58: 17917050.74 | E58: 17815626.51 | F58: 1.0583
A59: MEQESG | B59: 2015-11-04 | C59: 2015-11-03 | D59: 78938.83 | E59: 17917050.74 | F59: 1.0583

Sheet Purchase
R1: =UPPER(FundName) -> MALAYSIAN ESG OPPORTUNITY FUND
D2: =UPPER(CompanyName) -> VCAP ASSET MANAGERS SDN. BHD.
D3: ="PURCHASES FOR THE MONTH ENDED " & UPPER(TEXT(EOM,"dd-MMM-YYYY")) -> PURCHASES FOR THE MONTH ENDED 01-DEC-2015
A4: =EOM -> 2015-12-01
D5: Trade Date | E5: Settle Date | F5: Security Code | G5: Security Description | H5: Maturity Date | I5: =IF(Islamic,"Profit Rate","Coupon Rate") -> Coupon Rate | J5: Quantity | K5: Expenses | L5: =IF(Islamic,"Accrued Income","Accrued Interest") -> Accrued Interest | M5: YTM (Cost) | N5: Clean Price | O5: Total Cost (Clean) | P5: Total Cost (Clean +AI) | Q5: Trade Type | R5: Broker
I6: % | L6: (AI) | M6: % | N6: (Cost)
D8: No Purchase Transaction

Sheet CpnInt
M1: =UPPER(FundCode) -> MEQESG
D2: =UPPER(CompanyName) -> VCAP ASSET MANAGERS SDN. BHD.
D3: ="COUPON INTEREST FOR THE MONTH ENDED " & UPPER(TEXT(EOM,"dd-MMM-YYYY")) -> COUPON INTEREST FOR THE MONTH ENDED 01-DEC-2015
A4: =EOM -> 2015-12-01
D5: Trade Date | E5: Acc Date | F5: Settle Date | G5: Security Code | H5: Security Description | I5: Quantity | J5: =IF(Islamic,"Profit Rate","Coupon Rate") -> Coupon Rate | K5: Purchased Interest | L5: Interest Earned | M5: Total Proceed
J6: %
D8: No Coupon Interest

Sheet Sale
V1: =UPPER(FundCode) -> MEQESG
D2: =UPPER(CompanyName) -> VCAP ASSET MANAGERS SDN. BHD.
D3: ="SALES AND REALISED GAIN/LOSS FOR THE MONTH ENDED " & UPPER(TEXT(EOM,"DD-MMM-YYYY")) -> SALES AND REALISED GAIN/LOSS FOR THE MONTH ENDED 01-DEC-2015
D5: Trade Date | E5: Settle Date | F5: Security Code | G5: Security Description | H5: Maturity Date | I5: =IF(Islamic,"Profit Rate","CPN Rate") -> CPN Rate | J5: Quantity | K5: Expenses | L5: Total Cost (Clean) | M5: Sell Price (Clean) | N5: YTM (Sell) | O5: =IF(Islamic,"Accrued Income","Accrued Interest") -> Accrued Interest | P5: Total Sale Proceeds | Q5: Total Proceeds | R5: Total Accr/ (Amort) | S5: Book Realised | T5: Trade Type | U5: Broker | V5: Remark
I6: % | N6: % | O6: (AI) | P6: (Clean) | Q6: (Clean+AI) | S6: Gain / (Loss)
D8: No Sales Transaction | X8: PJ04007H | Y8: PK04008Z | Z8: VG062033 | AA8: PI04006X

Sheet RatingChartXCash

Sheet Return (hidden)
I1: =FundCode -> MEQESG
F2: =UPPER(CompanyName) -> VCAP ASSET MANAGERS SDN. BHD.
D4: ="PERFORMANCE REPORT AS AT " & UPPER(TEXT(EOM,"DD/MMM/YY")) -> PERFORMANCE REPORT AS AT 01/DEC/15
G6: MONTH | H6: YTD
G7: % | H7: %
G8: =VLOOKUP(BOM,InTWRR!$B:$B,1,-1) -> 2015-11-04 | H8: =StartYr-1 -> 2015-07-05
D10: Total Portfolio | G10: =(SUMIF(InTWRR!$B:$B,EOM,InTWRR!$F:$F)/SUMIF(InTWRR!$B:$B,G8,InTWRR!$F:$F)-1)*100 -> -100 | H10: =SUMIF(InTWRR!$B:$B,EOM,InTWRR!$F:$F)/IF(SUMIF(InTWRR!$B:$B,H8,InTWRR!$F:$F)=0,1,SUMIF(InTWRR!$B:$B,H8,InTWRR!$F:$F))*100-100 -> -100
C12: KLCI | D12: KLSE - Composite Index | G12: =(SUMIF(InIndex!$D:$D,$C12&EOM,InIndex!$C:$C)/SUMIF(InIndex!$D:$D,$C12&G8,InIndex!$C:$C)-1)*100 ->  | H12: =(SUMIF(InIndex!$D:$D,$C12&EOM,InIndex!$C:$C)/SUMIF(InIndex!$D:$D,$C12&H8,InIndex!$C:$C)-1)*100 -> 
C13: KLSI | D13: KLSE - Syariah Index | G13: =IF(SUMIF(InIndex!$D:$D,$C13&G9,InIndex!$C:$C)=0,"-",(SUMIF(InIndex!$D:$D,$C13&EOM,InIndex!$C:$C)/SUMIF(InIndex!$D:$D,$C13&G9,InIndex!$C:$C)-1)*100) -> - | H13: =IF(SUMIF(InIndex!$D:$D,$C13&H9,InIndex!$C:$C)=0,"-",(SUMIF(InIndex!$D:$D,$C13&EOM,InIndex!$C:$C)/SUMIF(InIndex!$D:$D,$C13&H9,InIndex!$C:$C)-1)*100) -> -
C14: FBMEMAS | D14: FTSE Bursa Msia - EMAS | G14: =IF(SUMIF(InIndex!$D:$D,$C14&G10,InIndex!$C:$C)=0,"-",(SUMIF(InIndex!$D:$D,$C14&EOM,InIndex!$C:$C)/SUMIF(InIndex!$D:$D,$C14&G10,InIndex!$C:$C)-1)*100) -> - | H14: =IF(SUMIF(InIndex!$D:$D,$C14&H0,InIndex!$C:$C)=0,"-",(SUMIF(InIndex!$D:$D,$C14&EOM,InIndex!$C:$C)/SUMIF(InIndex!$D:$D,$C14&H10,InIndex!$C:$C)-1)*100) -> -
D15: FTSE Bursa Msia - 100 Index | G15: =IF(SUMIF(InIndex!$D:$D,$C15&G11,InIndex!$C:$C)=0,"-",(SUMIF(InIndex!$D:$D,$C15&EOM,InIndex!$C:$C)/SUMIF(InIndex!$D:$D,$C15&G11,InIndex!$C:$C)-1)*100) -> -100 | H15: =IF(SUMIF(InIndex!$D:$D,$C15&H11,InIndex!$C:$C)=0,"-",(SUMIF(InIndex!$D:$D,$C15&EOM,InIndex!$C:$C)/SUMIF(InIndex!$D:$D,$C15&H11,InIndex!$C:$C)-1)*100) -> -100
D17: NOTES:
D18: A) | E18: RETURNS ARE CALCULATED ON A TIME WEIGHTED RATE OF RETURN BASIS
D20: 2) | E20: Capital Movements For The Year :
E22: DATE | F22: AMOUNT
D23: B/F | E23: =StartYr -> 2015-07-06 | F23: =#REF! -> 
E26: TOTAL | F26: 00:00:00

Sheet CashFlow
A1: Bank Acc GL | H1: =UPPER(FundCode) -> MEQESG | L1: =UPPER(FundCode) -> MEQESG
A2: ="0-"&VLOOKUP(H1,InFund!A:G,7,0)&"-"&FundCurrency&"-500000" -> 0-MEQESG-MYR-500000
A5: Fund | B5: =FundCode -> MEQESG | D5: =UPPER(CompanyName) -> VCAP ASSET MANAGERS SDN. BHD. | J5: =UPPER(CompanyName) -> VCAP ASSET MANAGERS SDN. BHD.
A6: Start Date | B6: =BOM -> 2015-11-30 | D6: Listing of Bank Transaction (MYR) | J6: Summary of Bank Transaction (MYR)
A7: Bank Balance | B7: 1418.99
D8: DATE | E8: TRANSACTION | G8: AMOUNT (MYR) | H8: Code | J8: TRANSACTION | L8: AMOUNT (MYR)
A9: End Date | B9: =EOM -> 2015-12-01
A10: Bank Balance | B10: 1418.99 | E10: Opening Balance | G10: 1418.99 | J10: Opening Balance | L10: =G10 -> 1418.99
A11: 1418.99
A12: 0 | J12: Fixed Income Purchased | L12: =SUMIF($H$12:$H$302,"BP",$G$12:G$302)+SUMIF($H$12:$H$302,"TP",$G$12:G$302) -> 0
E13: Running Total | G13: 1418.99 | J13: Fixed Income Sales | L13: =SUMIF($H$12:$H$302,"BS",$G$12:G$302)+SUMIF($H$12:$H$302,"TS",$G$12:G$302) -> 0
E14: Closing Balance | G14: 1418.99 | J14: Fixed Income Maturity | L14: =SUMIF($H$12:$H$302,"BM",$G$12:G$302)+SUMIF($H$12:$H$302,"TM",$G$12:G$302) -> 0
J15: Fixed Income Coupon Received | L15: =SUMIF($H$12:$H$302,"BI",$G$12:G$302) -> 0
J16: Money Market Placement | L16: =SUMIF($H$12:$H$302,"RP",$G$12:G$302)+SUMIF($H$12:$H$302,"FP",$G$12:G$302) -> 0
J17: Money Market Maturity | L17: =SUMIF($H$12:$H$302,"RM",$G$12:G$302)+SUMIF($H$12:$H$302,"FM",$G$12:G$302) -> 0
J18: Currency Settlement | L18: =SUMIF($H$12:$H$302,"CI",$G$12:G$302)+SUMIF($H$12:$H$302,"CW",$G$12:G$302) -> 0
J20: Capital Injection | L20: =SUMIF($H$12:$H$302,"CR",$G$12:G$302) -> 0
J21: Capital Withdrawals | L21: =SUMIF($H$12:$H$302,"CN",$G$12:G$302) -> 0
J22: Bank Charges | L22: =SUMIF(E:E,"Pay Bank Charges",G:G) -> 0
J23: Other Income, Charges and Fees | L23: =-SUM(L10:L22)+L26 -> 0
J25: Running Total | L25: =SUM(L10:L23) -> 1418.99
J26: Closing Bank Balance | L26: 1418.99

Sheet MMIncome
L1: =UPPER(FundCode) -> MEQESG
D2: =UPPER(CompanyName) -> VCAP ASSET MANAGERS SDN. BHD.
D3: =IF(VLOOKUP(FundCode,InFund!A:P,16,FALSE)=1,"INCOME","INTEREST")&"/ PROFIT RECEIVED ON DEPOSIT FOR THE MONTH ENDED " & UPPER(TEXT(EOM,"DD-MMM-YY")) -> INTEREST/ PROFIT RECEIVED ON DEPOSIT FOR THE MONTH ENDED 01-DEC-15
D5: Date Placed | E5: Principal Amount | F5: Tenure | G5: Rate | H5: Maturity | I5: =IF(VLOOKUP(FundCode,InFund!A:P,16,FALSE)=1,"Income","Interest") &" Upon" -> Interest Upon | J5: Total Upon | K5: One Day | L5: Financial Institution
E6: RM | F6: days | H6: Date | I6: Maturity | J6: Maturity | K6: Income
E8: =IF(VLOOKUP(FundCode,InFund!A:P,16,FALSE)=1,"Income","Interest")&"-Overnight Sweeping Facility" -> Interest-Overnight Sweeping Facility | I8: =-SUMIF(InJournal!C:C,632103,InJournal!E:E) -> 0
H10: SubTotal | I10: 0
A21: =202101&EOM -> 20210142339
D202: Add/(Less) | E202: Accruals
E203: Reversal of last month accruals | H203: =-BS!G24 -> 0
E204: This month accruals | H204: 0 | I204: =SUM(H203:H204) -> 0
D205: =IF(VLOOKUP(FundCode,InFund!A:P,16,FALSE)=1,"Total income charged for the month","Total interest charged for the month") -> Total interest charged for the month | I205: 0
D207: ="The accrued " & IF(VLOOKUP(FundCode,InFund!A:P,16,FALSE)=1,"income","interest")&" is computed from the following placement(s):-" -> The accrued interest is computed from the following placement(s):-
D208: Date Placed | E208: Principal Amount | F208: Tenure | G208: Rate | H208: Maturity Date | I208: Income Upon | J208: Total Upon | K208: Accrued Income | L208: Financial Institution | M208: Accrual Interest
E209: RM | I209: Maturity | J209: Maturity | M209: (As At Report Day)
E211: 0 | I211: 0 | K211: 0 | M211: 0

Sheet Div Received
M1: =UPPER(FundCode) -> MEQESG
D2: =UPPER(CompanyName) -> VCAP ASSET MANAGERS SDN. BHD.
D3: ="DIVIDEND RECEIVED FOR THE MONTH ENDED " & UPPER(TEXT(EOM,"dd-MMM-YYYY")) -> DIVIDEND RECEIVED FOR THE MONTH ENDED 01-DEC-2015
D5: Trade Date | E5: Pay Date | F5: Security | G5: Description | H5: Sett Curr | I5: Quantity | J5: ="Gross Proceed " & FundCurrency -> Gross Proceed MYR | K5: ="Tax " & FundCurrency -> Tax MYR | L5: ="Charges " & FundCurrency -> Charges MYR | M5: ="Net Proceed " & FundCurrency -> Net Proceed MYR
D8: No Dividend Received

Sheet Div Ex
M1: =UPPER(FundCode) -> MEQESG
D2: =UPPER(CompanyName) -> VCAP ASSET MANAGERS SDN. BHD.
D3: ="DIVIDEND EX FOR THE MONTH ENDED " & UPPER(TEXT(EOM,"dd-MMM-YYYY")) -> DIVIDEND EX FOR THE MONTH ENDED 01-DEC-2015
D5: Trade Date | E5: Pay Date | F5: Security | G5: Description | H5: Sett Curr | I5: Quantity | J5: ="Gross Proceed " & FundCurrency -> Gross Proceed MYR | K5: ="Tax " & FundCurrency -> Tax MYR | L5: ="Charges " & FundCurrency -> Charges MYR | M5: ="Net Proceed " & FundCurrency -> Net Proceed MYR
D8: No Dividend Ex

Sheet Div Accrual
M1: =UPPER(FundCode) -> MEQESG
D2: =UPPER(CompanyName) -> VCAP ASSET MANAGERS SDN. BHD.
D3: ="DIVIDEND ACCRUAL FOR THE MONTH ENDED " & UPPER(TEXT(EOM,"dd-MMM-YYYY")) -> DIVIDEND ACCRUAL FOR THE MONTH ENDED 01-DEC-2015
D5: Trade Date | E5: Pay Date | F5: Security | G5: Description | H5: Sett Curr | I5: Quantity | J5: ="Gross Proceed " & FundCurrency -> Gross Proceed MYR | K5: ="Tax " & FundCurrency -> Tax MYR | L5: ="Charges " & FundCurrency -> Charges MYR | M5: ="Net Proceed " & FundCurrency -> Net Proceed MYR
D8: No Dividend Accrual

Sheet InTran (hidden)
A2: TradeDate | B2: MaturityDate | C2: PayDate | D2: AccDate | E2: AccDate | F2: qTrnCode | G2: qStockCode | H2: StockName | I2: UnitFaceValue | J2: CostSC | K2: CostFC | L2: SCNetProceed | M2: TranProceed | N2: TranIncome | O2: TranGains | P2: TranPreAcq | Q2: SCGrossProceed | R2: qProductType | S2: BrokerageFee | T2: ClearingFee | U2: StampDuty | V2: TranPrice | W2: TranFXGnL | X2: ContractNote | Y2: CPName | Z2: PurchaseDate | AA2: TranYTM | AB2: TranAmortAccre | AC2: SettFlag | AD2: Coupon | AE2: LCD | AF2: TranBuyCapital | AG2: CrossTrade | AH2: TranExpenses

Sheet FI.TimeBucket (hidden)
A1: Data | G1: qProductType | H1: (Multiple Items)
A3: Row Labels | B3: Sum of Count | G3: Row Labels | H3: Sum of MarketValueFC
A4: 1-4Yrs | G4: Grand Total
A5: 4-6Yrs
A6: 6-8Yrs
A7: 8-10Yrs
A8: 10-12Yrs
A9: 12-15Yrs
A10: 15-20Yrs
A11: Grand Total

Sheet Sdf (hidden)
A1: Rating Weight | F1: KLSE Sector | I1: Bond Type | J1: * Please FILL IN Sub Category and Category for each Bond Type | R1: Val Sheet Category Sorting | T1: 1 | V1: Index Benchmark | Y1: Bond Rating (NEW) | AC1: Stock Type | AE1: Derivative Type | AG1: Time Bucket Composition | AI1: =COUNTIF(InPos!W:W,"BND") -> 0
A2: Rank | B2: RatingUsed | C2: RamRate | D2: MARCRate | E2: Weight | F2: KLSE Sector | G2: Sector Name | I2: Bond Type | J2: Description | K2: Sub Category | L2: Category | R2: 1 | S2: Low Risk Asset | T2: =IF(ISNA(MATCH(S2,InPos!Z:Z,0)),0,COUNTIF($T$1:T1,"<>0")) -> 0 | V2: Index Benchmark | W2: Description | X2: Index Flag | Y2: AgencyRank | Z2: Agency | AA2: Rank | AB2: Rating | AC2: qStockType | AD2: StockTypeDesc | AE2: qDerType | AF2: DerTypeDesc | AG2: Lbound | AH2: Category | AI2: Count
A3: 0 | B3: N/A | C3: N/A | D3: N/A | E3: 0 | F3: Cash | G3: Cash | I3: 1 | J3: Banker Acceptance | K3: Banker Acceptance | L3: Low Risk Asset | M3: 2 | O3: References: | R3: 2 | S3: Non Low Risk Asset | T3: =IF(ISNA(MATCH(S3,InPos!Z:Z,0)),0,COUNTIF($T$1:T2,"<>0")) -> 0 | V3: CONSTRUCTN | W3: BM CONSTRUCTION | X3: A | Y3: MARC0 | Z3: MARC | AA3: 0 | AB3: N/A | AC3: FSC | AD3: Foreign Collective Investment | AE3: DCF | AF3: Currency Forward | AG3: 1 | AH3: <= 1 Yr | AI3: =COUNTIFS(InPos!AJ:AJ,AG3,InPos!W:W,"BND") -> 0
A4: 1 | B4: P1 | C4: RAM / P1 | D4: MARC / MARC1 | E4: 1 | F4: 0 | G4: Others | I4: 10 | J4: General Investment Certificates GIC | K4: General Investment Certificates GIC | L4: Low Risk Asset | M4: 3 | O4: Treasury Bills | P4: 1 | R4: 3 | S4: Special Asset | T4: =IF(ISNA(MATCH(S4,InPos!Z:Z,0)),0,COUNTIF($T$1:T3,"<>0")) -> 0 | V4: CONSUMER | W4: BM CONSUMER | X4: A | Y4: MARC1 | Z4: MARC | AA4: 1 | AB4: MARC1 | AC4: FXE | AD4: Foreign Shares | AE4: DCI | AF4: Dual Currency Investment | AG4: 2 | AH4: 1-4Yrs | AI4: =COUNTIFS(InPos!AJ:AJ,AG4,InPos!W:W,"BND") -> 0
A5: 2 | B5: P2 | C5: RAM / P2 | D5: MARC / MARC2 | E5: 2 | F5: 1 | G5: TRAD/SERV | I5: 11 | J5: FD Placement | K5: FD Placement | L5: Non Low Risk Asset | M5: 2 | O5: Short Term Commercial Papers | P5: 2 | R5: 4 | S5: Equity | T5: =IF(ISNA(MATCH(S5,InPos!Z:Z,0)),0,COUNTIF($T$1:T4,"<>0")) -> 1 | V5: DJIMMT | W5: Dow Jones Islamic Market Msia Titans 25 Index | X5: A | Y5: MARC2 | Z5: MARC | AA5: 2 | AB5: MARC2 | AC5: LON | AD5: Loan Stock | AE5: DFA | AF5: Futures | AG5: 3 | AH5: 1-4Yrs | AI5: =COUNTIFS(InPos!AJ:AJ,AG5,InPos!W:W,"BND") -> 0
A6: 3 | B6: P3 | C6: RAM / P3 | D6: MARC / MARC3 | E6: 3 | F6: 2 | G6: TECHNOLOGY | I6: 12 | J6: Negotiable Instrument Of Deposit | K6: Negotiable Instrument Of Deposit | L6: Non Low Risk Asset | M6: 5 | O6: Malaysian Government Securities | P6: 3 | R6: 5 | S6: Cash & Cash Equivalent | T6: =IF(ISNA(MATCH(S6,InPos!Z:Z,0)),0,COUNTIF($T$1:T5,"<>0")) -> 2 | V6: F4GBM | W6: FTSE4GOOD BM INDEX | X6: A | Y6: MARC3 | Z6: MARC | AA6: 3 | AB6: MARC3 | AC6: NOV | AD6: Non Voting Ordinary Shares | AE6: DIL | AF6: Index Linked Swap | AG6: 4 | AH6: 1-4Yrs | AI6: =COUNTIFS(InPos!AJ:AJ,AG6,InPos!W:W,"BND") -> 0
A7: 4 | B7: NP | C7: RAM / NP | D7: MARC / MARC4 | E7: 18 | F7: 3 | G7: FINANCE | I7: 13 | J7: Floating Rate Negotiable Inst of Deposit | K7: Floating Rate Negotiable Inst of Deposit | L7: Non Low Risk Asset | M7: 3 | O7: Special Asset | P7: 4 | R7: 6 | T7: =IF(ISNA(MATCH(S7,InPos!Z:Z,0)),0,COUNTIF($T$1:T6,"<>0")) -> 0 | V7: FA40 | W7: FTSE ASEAN 40 | X7: A | Y7: MARC4 | Z7: MARC | AA7: 4 | AB7: MARC4 | AC7: ORD | AD7: Listed Shares | AE7: DOP | AF7: Options | AG7: 5 | AH7: 4-6Yrs | AI7: =COUNTIFS(InPos!AJ:AJ,AG7,InPos!W:W,"BND") -> 0
A8: 50 | B8: NR-GG | C8: NR-GG | D8: NR-GG | E8: 0 | F8: 4 | G8: PROPERTIES | I8: 14 | J8: Credit Linked Investment | K8: Credit Linked Investment | L8: Non Low Risk Asset | M8: 1 | O8: Corporate Bond | P8: 5 | R8: 7 | T8: =IF(ISNA(MATCH(S8,InPos!Z:Z,0)),0,COUNTIF($T$1:T7,"<>0")) -> 0 | V8: FBM70 | W8: FBM MID 70 | X8: A | Y8: MARC10 | Z8: MARC | AA8: 10 | AB8: GOVT | AC8: PRE | AD8: Preference Shares | AE8: DRS | AF8: Interest Rate Swap | AG8: 6 | AH8: 4-6Yrs | AI8: =COUNTIFS(InPos!AJ:AJ,AG8,InPos!W:W,"BND") -> 0
A9: 115 | B9: AAA | C9: RAM / AAA | D9: MARC / AAA | E9: 1 | F9: 5 | G9: IND-PROD | I9: 2 | J9: Bank Negara Bill | K9: Bank Negara Bill | L9: Low Risk Asset | M9: 3 | V9: FBMACE | W9: FBM ACE | X9: A | Y9: MARC50 | Z9: MARC | AA9: 50 | AB9: X | AC9: RGT | AD9: Rights | AE9: N/A | AF9: N/A | AG9: 7 | AH9: 6-8Yrs | AI9: =COUNTIFS(InPos!AJ:AJ,AG9,InPos!W:W,"BND") -> 0
A10: 122 | B10: AA1 | C10: RAM / AA1 | D10: MARC / AA+ | E10: 2 | F10: 6 | G10: PLANTATION | I10: 21 | J10: Goverment Guarantee | K10: Goverment Guarantee | L10: Low Risk Asset | M10: 5 | V10: FBMAPMYR | W10: FBM ASIAN PALM OIL-MYR | X10: A | Y10: MARC100 | Z10: MARC | AA10: 100 | AB10: GG | AC10: UTL | AD10: Unit Trust Listed | AG10: 8 | AH10: 6-8Yrs | AI10: =COUNTIFS(InPos!AJ:AJ,AG10,InPos!W:W,"BND") -> 0
A11: 125 | B11: AA2 | C11: RAM / AA2 | D11: MARC / AA | E11: 3 | F11: 7 | G11: CONSUMER | I11: 25 | J11: Inflation Bond | K11: Inflation Bond | L11: Non Low Risk Asset | M11: 5 | V11: FBMAPUSD | W11: FBM ASIAN PALM OIL-USD | X11: A | Y11: MARC115 | Z11: MARC | AA11: 115 | AB11: AAA | AC11: UTU | AD11: Unit Trust Unlisted | AG11: 9 | AH11: 8-10Yrs | AI11: =COUNTIFS(InPos!AJ:AJ,AG11,InPos!W:W,"BND") -> 0
A12: 128 | B12: AA3 | C12: RAM / AA3 | D12: MARC / AA- | E12: 4 | F12: 8 | G12: CONSTRUCTN | I12: 26 | J12: Floater Bond | K12: Floater Bond | L12: Non Low Risk Asset | M12: 5 | V12: FBMEMAS | W12: FTSE MALAYSIA EMAS INDEX | X12: A | Y12: MARC122 | Z12: MARC | AA12: 122 | AB12: AA+ | AC12: WRT | AD12: Warrant | AG12: 10 | AH12: 8-10Yrs | AI12: =COUNTIFS(InPos!AJ:AJ,AG12,InPos!W:W,"BND") -> 0
A13: 132 | B13: A1 | C13: RAM / A1 | D13: MARC / A+ | E13: 5 | F13: 9 | G13: IPC | I13: 3 | J13: Cagamas Bond | K13: Cagamas Bond | L13: Non Low Risk Asset | M13: 5 | V13: FBMFLG | W13: FBM FLEDGLING | X13: A | Y13: MARC125 | Z13: MARC | AA13: 125 | AB13: AA | AG13: 11 | AH13: 10-12Yrs | AI13: =COUNTIFS(InPos!AJ:AJ,AG13,InPos!W:W,"BND") -> 0
A14: 135 | B14: A2 | C14: RAM / A2 | D14: MARC / A | E14: 6 | F14: 10 | G14: REITS | I14: 4 | J14: Cagamas Note | K14: Cagamas Note | L14: Non Low Risk Asset | M14: 1 | V14: FBMHIJRAH | W14: FBM HIJRAH SHARIAH | X14: A | Y14: MARC128 | Z14: MARC | AA14: 128 | AB14: AA- | AG14: 12 | AH14: 10-12Yrs | AI14: =COUNTIFS(InPos!AJ:AJ,AG14,InPos!W:W,"BND") -> 0
A15: 138 | B15: A3 | C15: RAM / A3 | D15: MARC / A- | E15: 7 | F15: 11 | G15: HOTELS | I15: 5 | J15: Corporate Bond | K15: Corporate Bond | L15: Non Low Risk Asset | M15: 5 | V15: FBMKLCI | W15: FBM KLCI | X15: A | Y15: MARC132 | Z15: MARC | AA15: 132 | AB15: A+ | AG15: 13 | AH15: 12-15Yrs | AI15: =COUNTIFS(InPos!AJ:AJ,AG15,InPos!W:W,"BND") -> 0
A16: 140 | B16: NR-IG | C16: NR-IG | D16: NR-IG | E16: 7.1 | F16: 12 | G16: MINING | I16: 6 | J16: Commercial Papers | K16: Commercial Papers | L16: Non Low Risk Asset | M16: 5 | V16: FBMPALMOIL | W16: FBM PALM OIL PLANTATION | X16: A | Y16: MARC135 | Z16: MARC | AA16: 135 | AB16: A | AG16: 14 | AH16: 12-15Yrs | AI16: =COUNTIFS(InPos!AJ:AJ,AG16,InPos!W:W,"BND") -> 0
A17: 142 | B17: BBB1 | C17: RAM / BBB1 | D17: MARC / BBB+ | E17: 8 | F17: 13 | G17: CLOSED/FUND | I17: 7 | J17: Malaysia Government Securities | K17: Malaysia Government Securities | L17: Low Risk Asset | M17: 5 | V17: FBMS | W17: FTSE BURSA MALAYSIA EMAS SHARIAH | X17: A | Y17: MARC138 | Z17: MARC | AA17: 138 | AB17: A- | AG17: 15 | AH17: 12-15Yrs | AI17: =COUNTIFS(InPos!AJ:AJ,AG17,InPos!W:W,"BND") -> 0
A18: 145 | B18: BBB2 | C18: RAM / BBB2 | D18: MARC / BBB | E18: 9 | F18: 14 | G18: SPAC | I18: 8 | J18: Treasury Bill | K18: Treasury Bill | L18: Non Low Risk Asset | M18: 5 | V18: FBMSCAP | W18: FBM SMALL CAP | X18: A | Y18: MARC142 | Z18: MARC | AA18: 142 | AB18: BBB+ | AG18: 16 | AH18: 15-20Yrs | AI18: =COUNTIFS(InPos!AJ:AJ,AG18,InPos!W:W,"BND") -> 0
A19: 148 | B19: BBB3 | C19: RAM / BBB3 | D19: MARC / BBB- | E19: 10 | F19: 15 | G19: ETF-EQUITY | I19: 9 | J19: Zero Negotiable Instruments of Deposits NID | K19: Zero Negotiable Instruments of Deposits NID | L19: Non Low Risk Asset | M19: 5 | V19: FBMSHA | W19: FBM EMAS SHARIAH | X19: A | Y19: MARC145 | Z19: MARC | AA19: 145 | AB19: BBB | AG19: 17 | AH19: 15-20Yrs | AI19: =COUNTIFS(InPos!AJ:AJ,AG19,InPos!W:W,"BND") -> 0
A20: 150 | B20: NR-HY | C20: NR-HY | D20: NR-HY | E20: 10.1 | F20: 16 | G20: ETF-BOND | I20: 98 | J20: Perpetual Bond | K20: Perpetual Bond | L20: Non Low Risk Asset | M20: 5 | V20: FBMT100 | W20: FBM TOP 100 | X20: A | Y20: MARC148 | Z20: MARC | AA20: 148 | AB20: BBB- | AG20: 18 | AH20: 15-20Yrs | AI20: =COUNTIFS(InPos!AJ:AJ,AG20,InPos!W:W,"BND") -> 0
A21: 152 | B21: BB1 | C21: RAM / BB1 | D21: MARC / BB+ | E21: 11 | F21: 17 | G21: N/A | I21: 99 | J21: Others Variation Bond | K21: Others Variation Bond | L21: Non Low Risk Asset | M21: 5 | V21: FINANCE | W21: BM FINANCE | X21: A | Y21: MARC152 | Z21: MARC | AA21: 152 | AB21: BB+ | AG21: 19 | AH21: 15-20Yrs | AI21: =COUNTIFS(InPos!AJ:AJ,AG21,InPos!W:W,"BND") -> 0
A22: 155 | B22: BB2 | C22: RAM / BB2 | D22: MARC / BB | E22: 12 | F22: 18 | G22: N/A | M22: 5 | V22: IMIIHD | W22: MSCI M'sia IMI Islamic High Dividend Yield 10/40 | X22: A | Y22: MARC155 | Z22: MARC | AA22: 155 | AB22: BB | AG22: 20 | AH22: 15-20Yrs | AI22: =COUNTIFS(InPos!AJ:AJ,AG22,InPos!W:W,"BND") -> 0
A23: 158 | B23: BB3 | C23: RAM / BB3 | D23: MARC / BB- | E23: 13 | F23: 19 | G23: N/A | M23: 5 | V23: IND-PROD | W23: BM INDUSTRIAL PRODUCT | X23: A | Y23: MARC158 | Z23: MARC | AA23: 158 | AB23: BB- | AG23: 21 | AH23: >20 Yrs | AI23: =COUNTIFS(InPos!AJ:AJ,AG23,InPos!W:W,"BND") -> 0
A24: 162 | B24: B1 | C24: RAM / B1 | D24: MARC / B+ | E24: 14 | F24: 20 | G24: UTILITIES | M24: 2 | V24: INDUSTRIAL | W24: BM INDUSTRIAL | X24: A | Y24: MARC162 | Z24: MARC | AA24: 162 | AB24: B+
A25: 165 | B25: B2 | C25: RAM / B2 | D25: MARC / B | E25: 15 | F25: 21 | G25: GOVERNMENT | M25: 3 | V25: KLCIP | W25: KL CONSTRUCTION & PROPERTY INDEX | X25: A | Y25: MARC165 | Z25: MARC | AA25: 165 | AB25: B
A26: 168 | B26: B3 | C26: RAM / B3 | D26: MARC / B- | E26: 16 | F26: 30 | G26: N/A | M26: 1 | V26: KLIB12M | W26: Malaysia Interbank Offered Rate Fixing 12 Month | X26: A | Y26: MARC168 | Z26: MARC | AA26: 168 | AB26: B-
A27: 170 | B27: C | C27: RAM / C | D27: MARC / C | E27: 17 | F27: 31 | G27: N/A | M27: 5 | V27: KLIB3M | W27: Malaysia Interbank Offered Rate Fixing 3 Month | X27: A | Y27: MARC170 | Z27: MARC | AA27: 170 | AB27: C
A28: 180 | B28: D | C28: RAM / D | D28: MARC / D | E28: 18 | F28: 32 | G28: N/A | V28: KLITP | W28: KL INDUSTRIAL, TECHNOLOGY & PLANTATION INDEX | X28: A | Y28: MARC180 | Z28: MARC | AA28: 180 | AB28: D
A29: 190 | B29: UR | C29: UR | D29: UR | E29: 19 | F29: 33 | G29: N/A | V29: MBBFD1 | W29: Maybank 1-month FD Rate | X29: A | Y29: N/A0 | Z29: N/A | AA29: 0 | AB29: N/A
A30: Cash | B30: Cash | C30: Cash | D30: Cash | E30: 1.1 | F30: 34 | G30: N/A | M30: 4 | V30: MBIIGC | W30: MALAYSIA BOND INDEX ISLAMIC GOVT + CORP | X30: A | Y30: RAM0 | Z30: RAM | AA30: 0 | AB30: N/A
F31: 35 | G31: N/A | M31: 5 | V31: MGSALL | W31: Quant Shop MGS ALL Index | X31: A | Y31: RAM1 | Z31: RAM | AA31: 1 | AB31: P1
F32: 36 | G32: N/A | V32: MGSSHORT | W32: MGS SHORT (1-3 YRS) INDEX | X32: A | Y32: RAM2 | Z32: RAM | AA32: 2 | AB32: P2
F33: 37 | G33: N/A | V33: MINING | W33: BM MINING | X33: A | Y33: RAM3 | Z33: RAM | AA33: 3 | AB33: P3
F34: 38 | G34: N/A | V34: MRM6.5 | W34: ANNUAL RETURN 6.50% | X34: A | Y34: RAM4 | Z34: RAM | AA34: 4 | AB34: NP
F35: 39 | G35: N/A | V35: MRMGB4 | W35: MYR T-BILL BAND 4 | X35: A | Y35: RAM10 | Z35: RAM | AA35: 10 | AB35: GOVT
F36: 40 | G36: N/A | V36: MXAPJ | W36: MSCI AC ASIA PAC EX JAPAN INDEX | X36: A | Y36: RAM50 | Z36: RAM | AA36: 50 | AB36: X
F37: 41 | G37: N/A | V37: MXEA | W37: MSCI EAFE INDEX | X37: A | Y37: RAM100 | Z37: RAM | AA37: 100 | AB37: GG
F38: 42 | G38: N/A | V38: MXJP | W38: MSCI JAPAN INDEX | X38: A | Y38: RAM115 | Z38: RAM | AA38: 115 | AB38: AAA
F39: 43 | G39: N/A | V39: MXWD | W39: MSCI AC WORLD INDEX INDEX | X39: A | Y39: RAM122 | Z39: RAM | AA39: 122 | AB39: AA1
F40: 44 | G40: N/A | V40: MXWD0HC | W40: MSCI AC WORLD INDEX HEALTH CARE | X40: A | Y40: RAM125 | Z40: RAM | AA40: 125 | AB40: AA2
F41: 45 | G41: N/A | V41: NDUECAPF | W41: MSCI Daily TR Net AC Asia Pacific Ex Japan USD | X41: A | Y41: RAM128 | Z41: RAM | AA41: 128 | AB41: AA3
F42: 46 | G42: N/A | V42: OPR | W42: OVERNIGHT POLICY RATE | X42: A | Y42: RAM132 | Z42: RAM | AA42: 132 | AB42: A1
F43: 47 | G43: N/A | V43: PLANTATION | W43: BM PLANTATION | X43: A | Y43: RAM135 | Z43: RAM | AA43: 135 | AB43: A2
F44: 48 | G44: N/A | V44: PROPERTIES | W44: BM PROPERTIES | X44: A | Y44: RAM138 | Z44: RAM | AA44: 138 | AB44: A3
F45: 49 | G45: N/A | V45: TECHNOLOGY | W45: BM TECHNOLOGY | X45: A | Y45: RAM142 | Z45: RAM | AA45: 142 | AB45: BBB1
F46: 50 | G46: POWER | V46: TRAD/SERV | W46: BM TRADING & SERVICES | X46: A | Y46: RAM145 | Z46: RAM | AA46: 145 | AB46: BBB2
F47: 67 | G47: TRANSPORTATION & LOGISTIC | V47: VNINDEX | W47: VIETNAM STOCK INDEX | X47: A | Y47: RAM148 | Z47: RAM | AA47: 148 | AB47: BBB3
F48: 68 | G48: INDUSTRIAL | Y48: RAM152 | Z48: RAM | AA48: 152 | AB48: BB1
F49: 95 | G49: Fixed Deposits | Y49: RAM155 | Z49: RAM | AA49: 155 | AB49: BB2
F50: 96 | G50: Money Market Placement | Y50: RAM158 | Z50: RAM | AA50: 158 | AB50: BB3
F51: 97 | G51: Collective Investment Scheme | Y51: RAM162 | Z51: RAM | AA51: 162 | AB51: B1
F52: 98 | G52: Collective Investment Scheme | Y52: RAM165 | Z52: RAM | AA52: 165 | AB52: B2
F53: 99 | G53: Collective Investment Scheme | Y53: RAM168 | Z53: RAM | AA53: 168 | AB53: B3
Y54: RAM170 | Z54: RAM | AA54: 170 | AB54: C
Y55: RAM180 | Z55: RAM | AA55: 180 | AB55: D
Y56: S&P0 | Z56: S&P | AA56: 0 | AB56: N/A
Y57: S&P115 | Z57: S&P | AA57: 115 | AB57: AAA
Y58: S&P122 | Z58: S&P | AA58: 122 | AB58: AA+
Y59: S&P125 | Z59: S&P | AA59: 125 | AB59: AA
Y60: S&P128 | Z60: S&P | AA60: 128 | AB60: AA-
Y61: S&P132 | Z61: S&P | AA61: 132 | AB61: A+
Y62: S&P135 | Z62: S&P | AA62: 135 | AB62: A
Y63: S&P138 | Z63: S&P | AA63: 138 | AB63: A-
Y64: S&P142 | Z64: S&P | AA64: 142 | AB64: BBB+
Y65: S&P145 | Z65: S&P | AA65: 145 | AB65: BBB
Y66: S&P148 | Z66: S&P | AA66: 148 | AB66: BBB-
Y67: S&P152 | Z67: S&P | AA67: 152 | AB67: BB+
Y68: S&P155 | Z68: S&P | AA68: 155 | AB68: BB
Y69: S&P158 | Z69: S&P | AA69: 158 | AB69: BB-
Y70: S&P162 | Z70: S&P | AA70: 162 | AB70: B+
Y71: S&P165 | Z71: S&P | AA71: 165 | AB71: B
Y72: S&P168 | Z72: S&P | AA72: 168 | AB72: B-
Y73: S&P170 | Z73: S&P | AA73: 170 | AB73: CCC+
Y74: S&P172 | Z74: S&P | AA74: 172 | AB74: CCC
Y75: S&P174 | Z75: S&P | AA75: 174 | AB75: CCC-
Y76: S&P176 | Z76: S&P | AA76: 176 | AB76: CC
Y77: S&P178 | Z77: S&P | AA77: 178 | AB77: C
Y78: S&P180 | Z78: S&P | AA78: 180 | AB78: D
AB79: AAA
AB80: AA1
AB81: AA2
AB82: AA3
AB83: A1
AB84: A2
AB85: A3
AB86: BBB1
AB87: BBB2
AB88: BBB3
AB89: BB1
AB90: BB2
AB91: BB3
AB92: B1
AB93: B2
AB94: B3
AB95: C
AB96: D
AB97: N/A
AB98: AAA
AB99: AA+
AB100: AA
AB101: AA-
AB102: A+
AB103: A
AB104: A-
AB105: BBB+
AB106: BBB
AB107: BBB-
AB108: BB+
AB109: BB
AB110: BB-
AB111: B+
AB112: B
AB113: B-
AB114: CCC+
AB115: CCC
AB116: CCC-
AB117: CC
AB118: C
AB119: D

Sheet InPos (hidden)
A1: HistoryDate | B1: MaturityDate | C1: PurchaseDate | D1: PurchaseYTM | E1: qAssetClass | F1: qStockCode | G1: StockName | H1: Coupon | I1: qRank | J1: SecType | K1: UnitFaceValue | L1: CostSC | M1: CostFC | N1: BookValue | O1: MarketValueFC | P1: AccruedInterest | Q1: ValueYTM | R1: PurchaseYTM | S1: PriceCurr | T1: qKLSESector | U1: RatingAgency | V1: ProductTypeDesc | W1: qProductType | X1: Durn | Y1: Sub Cat | Z1: Category | AA1: Actual Rating | AB1: GapR | AC1: MV Durn | AD1: MV YTMCost | AE1: MV YTM | AF1: BS Cat | AG1: RamRating | AH1: Sector | AI1: MVExcDebNCred | AJ1: Tenor
A2: 2015-11-03 | B2: 3000-01-01 | C2: 2015-08-24 | D2: 0 | E2: EQT | F2: 1023 | G2: CIMB | J2: ORD | K2: 500000 | L2: 2429950.33 | M2: 2429950.33 | N2: 2429950.33 | O2: 2335000 | P2: 0 | Q2: 0 | R2: 0 | S2: 4.67 | T2: 3 | V2: Equity | W2: EQT | X2: =IF(R2=0,0,MDURATION($A2,$B2,$H2,$Q2,2,3)) -> 0 | Y2: =IF(W2<>"BND",IF(W2="CSH","",IF(W2="EQT",VLOOKUP(J2,Sdf!AC:AD,2,0),VLOOKUP(J2,Sdf!AE:AF,2,0))),VLOOKUP(J2,Sdf!I:K,3,0)) -> Listed Shares | Z2: =IF(E2="CSH","Cash & Cash Equivalent",IF(AND(E2<>"BND",E2<>"O-BND"),V2,VLOOKUP(J2,Sdf!I:L,4,0))) -> Equity | AA2: =IF(I2="","",IF(I2="Cash","Cash",U2 & " / " & VLOOKUP(U2&I2,Sdf!$Y:$AB,4,0))) ->  | AB2: =VLOOKUP(I2,Sdf!A:E,5,0)*O2 -> 0 | AC2: =X2*O2 -> 0 | AD2: =R2*O2 -> 0 | AE2: =Q2*O2 -> 0 | AF2: =IF(E2="CSH","X",VLOOKUP(J2,Sdf!I:M,5,0)) ->  | AG2: =VLOOKUP(I2,Sdf!$A:$B,2,0) -> N/A | AH2: =VLOOKUP(T2,Sdf!F:G,2,0) -> FINANCE | AI2: =IF(OR(G2="Trade and Other Receivables",G2="Trade and Other Payables"),0,O2) -> 2335000 | AJ2: =IF(ROUNDUP((B2-A2)/365,0)=0,1,IF(ROUNDUP((B2-A2)/365,0)>20,21,ROUNDUP((B2-A2)/365,0))) -> 21
A3: 2015-11-03 | B3: 3000-01-01 | C3: 2015-08-20 | D3: 0 | E3: EQT | F3: 1155 | G3: MAYBANK | J3: ORD | K3: 500000 | L3: 4217458.62 | M3: 4217458.62 | N3: 4217458.62 | O3: 4155000 | P3: 0 | Q3: 0 | R3: 0 | S3: 8.31 | T3: 3 | V3: Equity | W3: EQT | X3: 0 | Y3: Listed Shares | Z3: Equity | AB3: 0 | AC3: 0 | AD3: 0 | AE3: 0 | AG3: N/A | AH3: FINANCE | AI3: 4155000 | AJ3: 21
A4: 2015-11-03 | B4: 3000-01-01 | C4: 2015-09-01 | D4: 0 | E4: EQT | F4: 1818 | G4: BURSA | J4: ORD | K4: 250000 | L4: 2008339.51 | M4: 2008339.51 | N4: 2008339.51 | O4: 2112500 | P4: 0 | Q4: 0 | R4: 0 | S4: 8.45 | T4: 3 | V4: Equity | W4: EQT | X4: 0 | Y4: Listed Shares | Z4: Equity | AB4: 0 | AC4: 0 | AD4: 0 | AE4: 0 | AG4: N/A | AH4: FINANCE | AI4: 2112500 | AJ4: 21
A5: 2015-11-03 | B5: 3000-01-01 | C5: 2015-10-02 | D5: 0 | E5: EQT | F5: 2488 | G5: AFG | J5: ORD | K5: 200000 | L5: 678027.23 | M5: 678027.23 | N5: 678027.23 | O5: 710000 | P5: 0 | Q5: 0 | R5: 0 | S5: 3.55 | T5: 3 | V5: Equity | W5: EQT | X5: 0 | Y5: Listed Shares | Z5: Equity | AB5: 0 | AC5: 0 | AD5: 0 | AE5: 0 | AG5: N/A | AH5: FINANCE | AI5: 710000 | AJ5: 21
A6: 2015-11-03 | B6: 3000-01-01 | C6: 2015-10-13 | D6: 0 | E6: EQT | F6: 5210 | G6: ARMADA | J6: ORD | K6: 1500000 | L6: 1488820.43 | M6: 1488820.43 | N6: 1488820.43 | O6: 1470000 | P6: 0 | Q6: 0 | R6: 0 | S6: 0.98 | T6: 1 | V6: Equity | W6: EQT | X6: 0 | Y6: Listed Shares | Z6: Equity | AB6: 0 | AC6: 0 | AD6: 0 | AE6: 0 | AG6: N/A | AH6: TRAD/SERV | AI6: 1470000 | AJ6: 21
A7: 2015-11-03 | B7: 3000-01-01 | C7: 2015-10-08 | D7: 0 | E7: EQT | F7: 5211 | G7: SUNWAY | J7: ORD | K7: 1000000 | L7: 3070026.76 | M7: 3070026.76 | N7: 3070026.76 | O7: 3120000 | P7: 0 | Q7: 0 | R7: 0 | S7: 3.12 | T7: 4 | V7: Equity | W7: EQT | X7: 0 | Y7: Listed Shares | Z7: Equity | AB7: 0 | AC7: 0 | AD7: 0 | AE7: 0 | AG7: N/A | AH7: PROPERTIES | AI7: 3120000 | AJ7: 21
A8: 2015-11-03 | B8: 3000-01-01 | C8: 2015-09-29 | D8: 0 | E8: EQT | F8: 6399 | G8: ASTRO | J8: ORD | K8: 100000 | L8: 288928.33 | M8: 288928.33 | N8: 288928.33 | O8: 292000 | P8: 0 | Q8: 0 | R8: 0 | S8: 2.92 | T8: 1 | V8: Equity | W8: EQT | X8: 0 | Y8: Listed Shares | Z8: Equity | AB8: 0 | AC8: 0 | AD8: 0 | AE8: 0 | AG8: N/A | AH8: TRAD/SERV | AI8: 292000 | AJ8: 21
A9: 2015-11-03 | B9: 3000-01-01 | C9: 2015-10-29 | D9: 0 | E9: EQT | F9: 6888 | G9: AXIATA | J9: ORD | K9: 2627 | L9: 14579.85 | M9: 14579.85 | N9: 14579.85 | O9: 16129.78 | P9: 0 | Q9: 0 | R9: 0 | S9: 6.14 | T9: 1 | V9: Equity | W9: EQT | X9: 0 | Y9: Listed Shares | Z9: Equity | AB9: 0 | AC9: 0 | AD9: 0 | AE9: 0 | AG9: N/A | AH9: TRAD/SERV | AI9: 16129.78 | AJ9: 21
A10: 2015-11-03 | B10: 3000-01-01 | C10: 2015-10-15 | D10: 0 | E10: EQT | F10: 6947 | G10: DIGI | J10: ORD | K10: 387800 | L10: 2170855.04 | M10: 2170855.04 | N10: 2170855.04 | O10: 2055340 | P10: 0 | Q10: 0 | R10: 0 | S10: 5.3 | T10: 9 | V10: Equity | W10: EQT | X10: 0 | Y10: Listed Shares | Z10: Equity | AB10: 0 | AC10: 0 | AD10: 0 | AE10: 0 | AG10: N/A | AH10: IPC | AI10: 2055340 | AJ10: 21
A11: 2015-11-03 | B11: 2015-11-06 | C11: 2015-11-03 | D11: 0.033 | E11: CSH | F11: RDC*MYR*PIVB | G11: Repo/Deposit/Placement | I11: Cash | K11: 1572000 | L11: 1572000 | M11: 1572000 | N11: 1572000 | O11: 1572142.13 | P11: 142.13 | Q11: 0.033 | R11: 0.033 | S11: 0 | T11: Cash | V11: Cash | W11: CSH | X11: 0.004042881496 | Z11: Cash & Cash Equivalent | AA11: Cash | AB11: 1729356.343 | AC11: 6355.984327 | AD11: 51880.69029 | AE11: 51880.69029 | AF11: X | AG11: Cash | AH11: Cash | AI11: 1572142.13 | AJ11: 1
C12: 2015-11-03 | E12: CSH | F12: Dividend Receivable | G12: Dividend Receivable | I12: Cash | K12: 94320 | L12: 94320 | M12: 94320 | N12: 94320 | O12: 94320 | T12: Cash | V12: Cash | W12: CSH | X12: 0 | Z12: Cash & Cash Equivalent | AA12: Cash | AB12: 103752 | AC12: 0 | AD12: 0 | AE12: 0 | AF12: X | AG12: Cash | AH12: Cash | AI12: 94320 | AJ12: 1
C13: 2015-11-03 | E13: CSH | F13: Cash at Bank | G13: Cash at Bank | I13: Cash | K13: 1418.99 | L13: 1418.99 | M13: 1418.99 | N13: 1418.99 | O13: 1418.99 | T13: Cash | V13: Cash | W13: CSH | X13: 0 | Z13: Cash & Cash Equivalent | AA13: Cash | AB13: 1560.889 | AC13: 0 | AD13: 0 | AE13: 0 | AF13: X | AG13: Cash | AH13: Cash | AI13: 1418.99 | AJ13: 1
C14: 2015-11-03 | E14: CSH | F14: Others | G14: Others | I14: Cash | K14: -7953.36 | L14: -7953.36 | M14: -7953.36 | N14: -7953.36 | O14: -7953.36 | T14: Cash | V14: Cash | W14: CSH | X14: 0 | Z14: Cash & Cash Equivalent | AA14: Cash | AB14: -8748.696 | AC14: 0 | AD14: 0 | AE14: 0 | AF14: X | AG14: Cash | AH14: Cash | AI14: -7953.36 | AJ14: 1
C15: 2015-11-03 | E15: CSH | F15: Others | G15: Others | I15: Cash | K15: -1477.02 | L15: -1477.02 | M15: -1477.02 | N15: -1477.02 | O15: -1477.02 | T15: Cash | V15: Cash | W15: CSH | X15: 0 | Z15: Cash & Cash Equivalent | AA15: Cash | AB15: -1624.722 | AC15: 0 | AD15: 0 | AE15: 0 | AF15: X | AG15: Cash | AH15: Cash | AI15: -1477.02 | AJ15: 1
C16: 2015-11-03 | E16: CSH | F16: Others | G16: Others | I16: Cash | K16: -4574.4 | L16: -4574.4 | M16: -4574.4 | N16: -4574.4 | O16: -4574.4 | T16: Cash | V16: Cash | W16: CSH | X16: 0 | Z16: Cash & Cash Equivalent | AA16: Cash | AB16: -5031.84 | AC16: 0 | AD16: 0 | AE16: 0 | AF16: X | AG16: Cash | AH16: Cash | AI16: -4574.4 | AJ16: 1
C17: 2015-11-03 | E17: CSH | F17: Others | G17: Others | I17: Cash | K17: -2795.38 | L17: -2795.38 | M17: -2795.38 | N17: -2795.38 | O17: -2795.38 | T17: Cash | V17: Cash | W17: CSH | X17: 0 | Z17: Cash & Cash Equivalent | AA17: Cash | AB17: -3074.918 | AC17: 0 | AD17: 0 | AE17: 0 | AF17: X | AG17: Cash | AH17: Cash | AI17: -2795.38 | AJ17: 1

Sheet InPos2 (hidden)
A1: HistoryDate | B1: MaturityDate | C1: PurchaseDate | D1: PurchaseYTM | E1: qAssetClass | F1: qStockCode | G1: StockName | H1: Coupon | I1: qRank | J1: qBondType | K1: UnitFaceValue | L1: CostSC | M1: CostFC | N1: BookValue | O1: MarketValueFC | P1: AccruedInterest | Q1: ValueYTM | R1: PurchaseYTM | S1: PriceCurr | T1: KLSESectorName | U1: Term | V1: Durn | W1: MV YTMC | X1: BS Cat | Y1: MVExcDebNCred
A2: 2015-11-03 | B2: 3000-01-01 | C2: 2015-08-24 | D2: 0 | E2: EQT | F2: 1023 | G2: CIMB | K2: 500000 | L2: 2429950.33 | M2: 2429950.33 | N2: 2429950.33 | O2: 2335000 | P2: 0 | Q2: 0 | R2: 0 | S2: 4.67 | T2: FINANCE | V2: =IF(B2>A2,MDURATION(A2,B2,H2,Q2,2,3),0)*O2 -> 2298007842 | W2: =R2*O2 -> 0 | X2: =IF(E2="CSH","X",VLOOKUP(J2,Sdf!I:M,5,0)) ->  | Y2: =IF(OR(G2="Trade and Other Receivables",G2="Trade and Other Payables"),0,O2) -> 2335000
A3: 2015-11-03 | B3: 3000-01-01 | C3: 2015-08-20 | D3: 0 | E3: EQT | F3: 1155 | G3: MAYBANK | K3: 500000 | L3: 4217458.62 | M3: 4217458.62 | N3: 4217458.62 | O3: 4155000 | P3: 0 | Q3: 0 | R3: 0 | S3: 8.31 | T3: FINANCE | V3: 4089174555 | W3: 0 | Y3: 4155000
A4: 2015-11-03 | B4: 3000-01-01 | C4: 2015-09-01 | D4: 0 | E4: EQT | F4: 1818 | G4: BURSA | K4: 250000 | L4: 2008339.51 | M4: 2008339.51 | N4: 2008339.51 | O4: 2112500 | P4: 0 | Q4: 0 | R4: 0 | S4: 8.45 | T4: FINANCE | V4: 2079032791 | W4: 0 | Y4: 2112500
A5: 2015-11-03 | B5: 3000-01-01 | C5: 2015-10-02 | D5: 0 | E5: EQT | F5: 2488 | G5: AFG | K5: 200000 | L5: 678027.23 | M5: 678027.23 | N5: 678027.23 | O5: 710000 | P5: 0 | Q5: 0 | R5: 0 | S5: 3.55 | T5: FINANCE | V5: 698751849.3 | W5: 0 | Y5: 710000
A6: 2015-11-03 | B6: 3000-01-01 | C6: 2015-10-13 | D6: 0 | E6: EQT | F6: 5210 | G6: ARMADA | K6: 1500000 | L6: 1488820.43 | M6: 1488820.43 | N6: 1488820.43 | O6: 1470000 | P6: 0 | Q6: 0 | R6: 0 | S6: 0.98 | T6: TRAD/SERV | V6: 1446711575 | W6: 0 | Y6: 1470000
A7: 2015-11-03 | B7: 3000-01-01 | C7: 2015-10-08 | D7: 0 | E7: EQT | F7: 5211 | G7: SUNWAY | K7: 1000000 | L7: 3070026.76 | M7: 3070026.76 | N7: 3070026.76 | O7: 3120000 | P7: 0 | Q7: 0 | R7: 0 | S7: 3.12 | T7: PROPERTIES | V7: 3070571507 | W7: 0 | Y7: 3120000
A8: 2015-11-03 | B8: 3000-01-01 | C8: 2015-09-29 | D8: 0 | E8: EQT | F8: 6399 | G8: ASTRO | K8: 100000 | L8: 288928.33 | M8: 288928.33 | N8: 288928.33 | O8: 292000 | P8: 0 | Q8: 0 | R8: 0 | S8: 2.92 | T8: TRAD/SERV | V8: 287374000 | W8: 0 | Y8: 292000
A9: 2015-11-03 | B9: 3000-01-01 | C9: 2015-10-29 | D9: 0 | E9: EQT | F9: 6888 | G9: AXIATA | K9: 2627 | L9: 14579.85 | M9: 14579.85 | N9: 14579.85 | O9: 16129.78 | P9: 0 | Q9: 0 | R9: 0 | S9: 6.14 | T9: TRAD/SERV | V9: 15874244.51 | W9: 0 | Y9: 16129.78
A10: 2015-11-03 | B10: 3000-01-01 | C10: 2015-10-15 | D10: 0 | E10: EQT | F10: 6947 | G10: DIGI | K10: 387800 | L10: 2170855.04 | M10: 2170855.04 | N10: 2170855.04 | O10: 2055340 | P10: 0 | Q10: 0 | R10: 0 | S10: 5.3 | T10: IPC | V10: 2022778346 | W10: 0 | Y10: 2055340
A11: 2015-11-03 | B11: 2015-11-06 | C11: 2015-11-03 | D11: 0.033 | E11: CSH | F11: RDC*MYR*PIVB | G11: Repo/Deposit/Placement | K11: 1572000 | L11: 1572000 | M11: 1572000 | N11: 1572000 | O11: 1572142.13 | P11: 142.13 | Q11: 0.033 | R11: 0.033 | S11: 0 | T11: Cash | V11: 6355.984327 | W11: 51880.69029 | X11: X | Y11: 1572142.13
C12: 2015-11-03 | E12: CSH | F12: Cash | G12: Dividend Receivable | K12: 0 | L12: 94320 | M12: 94320 | N12: 94320 | O12: 94320 | T12: Cash | V12: 0 | W12: 0 | X12: X | Y12: 94320
C13: 2015-11-03 | E13: CSH | F13: Cash | G13: Cash at Bank | K13: 0 | L13: 1418.99 | M13: 1418.99 | N13: 1418.99 | O13: 1418.99 | T13: Cash | V13: 0 | W13: 0 | X13: X | Y13: 1418.99
C14: 2015-11-03 | E14: CSH | F14: Cash | G14: Others | K14: 0 | L14: -7953.36 | M14: -7953.36 | N14: -7953.36 | O14: -7953.36 | T14: Cash | V14: 0 | W14: 0 | X14: X | Y14: -7953.36
C15: 2015-11-03 | E15: CSH | F15: Cash | G15: Others | K15: 0 | L15: -1477.02 | M15: -1477.02 | N15: -1477.02 | O15: -1477.02 | T15: Cash | V15: 0 | W15: 0 | X15: X | Y15: -1477.02
C16: 2015-11-03 | E16: CSH | F16: Cash | G16: Others | K16: 0 | L16: -4574.4 | M16: -4574.4 | N16: -4574.4 | O16: -4574.4 | T16: Cash | V16: 0 | W16: 0 | X16: X | Y16: -4574.4
C17: 2015-11-03 | E17: CSH | F17: Cash | G17: Others | K17: 0 | L17: -2795.38 | M17: -2795.38 | N17: -2795.38 | O17: -2795.38 | T17: Cash | V17: 0 | W17: 0 | X17: X | Y17: -2795.38

Sheet RatingData (hidden)
B3: Data
A4: RamRating | B4: Sum of MarketValueFC | C4: % MarketValueFC | S4: Data
A5: Cash | B5: 1651080.96 | C5: 1 | R5: RamRating | S5: Sum of MarketValueFC | T5: % MarketValueFC
A6: Grand Total | B6: 1651080.96 | C6: 1 | R6: Grand Total

Sheet SectorData (hidden)
I2: qProductType | J2: (Multiple Items)
B3: Data
A4: Sector | B4: Sum of MarketValueFC | C4: % MarketValueFC | J4: Values
A5: Cash | B5: 1651080.96 | C5: 0.09215138049 | I5: Row Labels | J5: Sum of MarketValueFC | K5: Count of MarketValueFC2
A6: FINANCE | B6: 9312500 | C6: 0.5197563 | I6: Grand Total
A7: IPC | B7: 2055340 | C7: 0.1147141921
A8: PROPERTIES | B8: 3120000 | C8: 0.174135802
A9: TRAD/SERV | B9: 1778129.78 | C9: 0.09924232541
A10: Grand Total | B10: 17917050.74 | C10: 1

Sheet InProceed (hidden)
A1: TradeDate | B1: PayDate | C1: AccDate | D1: qTrnCode | E1: qStockCode | F1: qFundCode | G1: TranProceed
A2: 2015-08-20 | B2: 2015-08-25 | C2: 2015-08-20 | D2: SP | E2: 1155 | F2: MEQESG | G2: 109895.85
A3: 2015-08-20 | B3: 2015-08-25 | C3: 2015-08-20 | D3: SP | E3: 5347 | F3: MEQESG | G3: 446784.98
A4: 2015-08-20 | B4: 2015-08-25 | C4: 2015-08-20 | D4: SP | E4: 6888 | F4: MEQESG | G4: 258345.39
A5: 2015-08-20 | B5: 2015-08-25 | C5: 2015-08-20 | D5: SP | E5: 5210 | F5: MEQESG | G5: 255498.21
A6: 2015-08-20 | B6: 2015-08-25 | C6: 2015-08-20 | D6: SP | E6: 4502 | F6: MEQESG | G6: 228796.24
A7: 2015-08-21 | B7: 2015-08-26 | C7: 2015-08-21 | D7: SP | E7: 1155 | F7: MEQESG | G7: 124811.13
A8: 2015-08-21 | B8: 2015-08-26 | C8: 2015-08-21 | D8: SP | E8: 6888 | F8: MEQESG | G8: 98465.56
A9: 2015-08-21 | B9: 2015-08-26 | C9: 2015-08-21 | D9: SP | E9: 5347 | F9: MEQESG | G9: 208432.54
A10: 2015-08-21 | B10: 2015-08-26 | C10: 2015-08-21 | D10: SP | E10: 5210 | F10: MEQESG | G10: 152603.98
A11: 2015-08-24 | B11: 2015-08-27 | C11: 2015-08-24 | D11: SP | E11: 1155 | F11: MEQESG | G11: 835902.82
A12: 2015-08-24 | B12: 2015-08-27 | C12: 2015-08-24 | D12: SP | E12: 1023 | F12: MEQESG | G12: 475962.52
A13: 2015-08-25 | B13: 2015-08-28 | C13: 2015-08-25 | D13: SP | E13: 1155 | F13: MEQESG | G13: 1529731.24
A14: 2015-08-25 | B14: 2015-08-28 | C14: 2015-08-25 | D14: SP | E14: 4502 | F14: MEQESG | G14: 166273.78
A15: 2015-08-26 | B15: 2015-09-01 | C15: 2015-08-26 | D15: SP | E15: 5211 | F15: MEQESG | G15: 337609.57
A16: 2015-08-26 | B16: 2015-09-01 | C16: 2015-08-26 | D16: SP | E16: 1023 | F16: MEQESG | G16: 471470.41
A17: 2015-08-27 | B17: 2015-09-02 | C17: 2015-08-27 | D17: SP | E17: 5211 | F17: MEQESG | G17: 340096.27
A18: 2015-08-27 | B18: 2015-09-02 | C18: 2015-08-27 | D18: SP | E18: 5210 | F18: MEQESG | G18: 123461.79
A19: 2015-08-27 | B19: 2015-09-02 | C19: 2015-08-27 | D19: SS | E19: 5347 | F19: MEQESG | G19: 701633.17
A20: 2015-09-01 | B20: 2015-09-04 | C20: 2015-09-01 | D20: SP | E20: 1818 | F20: MEQESG | G20: 800717.97
A21: 2015-09-01 | B21: 2015-09-04 | C21: 2015-09-01 | D21: SP | E21: 5210 | F21: MEQESG | G21: 230322.35
A22: 2015-09-02 | B22: 2015-09-07 | C22: 2015-09-02 | D22: SP | E22: 6888 | F22: MEQESG | G22: 599315.05
A23: 2015-09-07 | B23: 2015-09-10 | C23: 2015-09-07 | D23: SP | E23: 5183 | F23: MEQESG | G23: 430541.69
A24: 2015-09-07 | B24: 2015-09-10 | C24: 2015-09-07 | D24: SP | E24: 5347 | F24: MEQESG | G24: 1102240.24
A25: 2015-09-07 | B25: 2015-09-10 | C25: 2015-09-07 | D25: SP | E25: 4502 | F25: MEQESG | G25: 218789.25
A26: 2015-09-09 | B26: 2015-09-14 | C26: 2015-09-09 | D26: SP | E26: 5347 | F26: MEQESG | G26: 1112986.38
A27: 2015-09-09 | B27: 2015-09-14 | C27: 2015-09-09 | D27: SP | E27: 5183 | F27: MEQESG | G27: 778394.79
A28: 2015-09-09 | B28: 2015-09-14 | C28: 2015-09-09 | D28: SP | E28: 1155 | F28: MEQESG | G28: 690518.06
A29: 2015-09-09 | B29: 2015-09-14 | C29: 2015-09-09 | D29: SP | E29: 3794 | F29: MEQESG | G29: 293421.44
A30: 2015-09-10 | B30: 2015-09-15 | C30: 2015-09-10 | D30: SP | E30: 4502 | F30: MEQESG | G30: 162599.89
A31: 2015-09-14 | B31: 2015-09-18 | C31: 2015-09-14 | D31: SP | E31: 5183 | F31: MEQESG | G31: 600819.1
A32: 2015-09-14 | B32: 2015-09-18 | C32: 2015-09-14 | D32: SS | E32: 5347 | F32: MEQESG | G32: 365208.62
A33: 2015-09-15 | B33: 2015-09-21 | C33: 42262 | D33: SP | E33: 6888 | F33: MEQESG | G33: 123054.39
A34: 2015-09-15 | B34: 2015-09-21 | C34: 42262 | D34: SP | E34: 5210 | F34: MEQESG | G34: 268767.99
A35: 2015-09-15 | B35: 2015-09-21 | C35: 42262 | D35: SS | E35: 5347 | F35: MEQESG | G35: 2064198.69
A36: 2015-09-15 | B36: 2015-09-21 | C36: 42262 | D36: SS | E36: 1023 | F36: MEQESG | G36: 742282.63
A37: 2015-09-17 | B37: 2015-09-22 | C37: 42264 | D37: SS | E37: 5210 | F37: MEQESG | G37: 179225.74
A38: 2015-09-18 | B38: 2015-09-23 | C38: 42265 | D38: SS | E38: 5210 | F38: MEQESG | G38: 191886.4
A39: 2015-09-21 | B39: 2015-09-25 | C39: 42268 | D39: SP | E39: 1023 | F39: MEQESG | G39: 958322.84
A40: 2015-09-21 | B40: 2015-09-25 | C40: 42268 | D40: SP | E40: 1818 | F40: MEQESG | G40: 1207621.54
A41: 2015-09-23 | B41: 2015-09-29 | C41: 42270 | D41: SS | E41: 5211 | F41: MEQESG | G41: 697947.78
A42: 2015-09-29 | B42: 2015-10-02 | C42: 42276 | D42: SP | E42: 6399 | F42: MEQESG | G42: 288928.33
A43: 2015-09-30 | B43: 2015-10-05 | C43: 42277 | D43: SP | E43: 1023 | F43: MEQESG | G43: 898621.89
A44: 2015-09-30 | B44: 2015-10-05 | C44: 42277 | D44: SS | E44: 4502 | F44: MEQESG | G44: 241145.87
A45: 2015-10-01 | B45: 2015-10-06 | C45: 42278 | D45: SS | E45: 5210 | F45: MEQESG | G45: 233416.82
A46: 2015-10-01 | B46: 2015-10-06 | C46: 42278 | D46: SP | E46: 6888 | F46: MEQESG | G46: 594854.45
A47: 2015-10-01 | B47: 2015-10-06 | C47: 42278 | D47: SP | E47: 5347 | F47: MEQESG | G47: 603827.21
A48: 2015-10-01 | B48: 2015-10-06 | C48: 42278 | D48: SP | E48: 1023 | F48: MEQESG | G48: 678528.59
A49: 2015-09-30 | B49: 2015-10-05 | C49: 42277 | D49: SS | E49: 5183 | F49: MEQESG | G49: 916814.59
A50: 2015-10-01 | B50: 2015-10-06 | C50: 42278 | D50: SS | E50: 4502 | F50: MEQESG | G50: 188300.13
A51: 2015-10-02 | B51: 2015-10-07 | C51: 42279 | D51: SP | E51: 2488 | F51: MEQESG | G51: 678027.23
A52: 2015-10-02 | B52: 2015-10-07 | C52: 42279 | D52: SP | E52: 1023 | F52: MEQESG | G52: 674016.42
A53: 2015-10-02 | B53: 2015-10-07 | C53: 42279 | D53: SS | E53: 4502 | F53: MEQESG | G53: 446589.06
A54: 2015-10-02 | B54: 2015-10-07 | C54: 42279 | D54: SS | E54: 5210 | F54: MEQESG | G54: 509917.41
A55: 2015-10-07 | B55: 2015-10-12 | C55: 42284 | D55: SS | E55: 5183 | F55: MEQESG | G55: 952717.28
A56: 2015-10-07 | B56: 2015-10-12 | C56: 42284 | D56: SS | E56: 3794 | F56: MEQESG | G56: 299123.73
A57: 2015-10-08 | B57: 2015-10-13 | C57: 42285 | D57: SS | E57: 6888 | F57: MEQESG | G57: 1767836.99
A58: 2015-10-08 | B58: 2015-10-13 | C58: 42285 | D58: SS | E58: 1023 | F58: MEQESG | G58: 2686254.42
A59: 2015-10-08 | B59: 2015-10-13 | C59: 42285 | D59: SP | E59: 5211 | F59: MEQESG | G59: 1142084.19
A60: 2015-10-09 | B60: 2015-10-15 | C60: 42286 | D60: SS | E60: 5347 | F60: MEQESG | G60: 620118.73
A61: 2015-10-09 | B61: 2015-10-15 | C61: 42286 | D61: SP | E61: 5211 | F61: MEQESG | G61: 556407.39
A62: 2015-10-13 | B62: 2015-10-19 | C62: 42290 | D62: SP | E62: 5210 | F62: MEQESG | G62: 1488820.43
A63: 2015-10-15 | B63: 2015-10-20 | C63: 42292 | D63: SP | E63: 1023 | F63: MEQESG | G63: 1510924.2
A64: 2015-10-15 | B64: 2015-10-20 | C64: 42292 | D64: SP | E64: 6947 | F64: MEQESG | G64: 1441104.38
A65: 2015-10-15 | B65: 2015-10-20 | C65: 42292 | D65: SP | E65: 1155 | F65: MEQESG | G65: 926599.52
A66: 2015-10-15 | B66: 2015-10-20 | C66: 42292 | D66: SP | E66: 5211 | F66: MEQESG | G66: 1371535.18
A67: 2015-10-27 | B67: 2015-10-30 | C67: 42304 | D67: SP | E67: 6947 | F67: MEQESG | G67: 729750.66

Sheet Expenses (hidden)
H1: =FundCode -> MEQESG
D2: =UPPER(CompanyName) -> VCAP ASSET MANAGERS SDN. BHD.
D3: ="EXPENSES FROM " & UPPER(TEXT(BOM+1,"DD/MMM/YY")) & " TO " & UPPER(TEXT(EOM,"DD/MMM/YY")) -> EXPENSES FROM 01/DEC/15 TO 01/DEC/15
D5: Date | E5: Account Description | F5: Journal ID | G5: Description | H5: Amount
D9: 2013-10-01 | E9: Expenses: Bank Charges | F9: JV-13100037 | G9: Bank Charges - MMKT | H9: 4
D10: 2013-10-02 | E10: Expenses: Bank Charges | F10: JV-13100106 | G10: Bank Charges - MMKT | H10: 4
D11: 2013-10-03 | E11: Expenses: Bank Charges | F11: JV-13100202 | G11: Bank Charges - MMKT | H11: 4
D12: 2013-10-04 | E12: Expenses: Bank Charges | F12: JV-13100201 | G12: Bank Charges - MMKT | H12: 4
D13: 2013-10-08 | E13: Expenses: Bank Charges | F13: JV-13100328 | G13: Bank Charges - MMKT | H13: 4
D14: 2013-10-08 | E14: Expenses: Bank Charges | F14: JV-13100526 | G14: Bank Charges - IPO Westports | H14: 4
D15: 2013-10-09 | E15: Expenses: Bank Charges | F15: JV-13100421 | G15: Bank Charges - MMKT | H15: 4
D16: 2013-10-10 | E16: Expenses: Bank Charges | F16: JV-13100570 | G16: Bank Charges - MMKT | H16: 4
D17: 2013-10-11 | E17: Expenses: Bank Charges | F17: JV-13100525 | G17: Bank Charges - MMKT | H17: 4
D18: 2013-10-14 | E18: Expenses: Bank Charges | F18: JV-13100524 | G18: Bank Charges - MMKT | H18: 4
D19: 2013-10-16 | E19: Expenses: Bank Charges | F19: JV-13100610 | G19: Bank Charges - MMKT | H19: 4
D20: 2013-10-17 | E20: Expenses: Bank Charges | F20: JV-13100674 | G20: Bank Charges - MMKT | H20: 4
D21: 2013-10-18 | E21: Expenses: Bank Charges | F21: JV-13100727 | G21: Bank Charges - MMKT | H21: 4
D22: 2013-10-21 | E22: Expenses: Bank Charges | F22: JV-13100773 | G22: Bank Charges - MMKT | H22: 4
D23: 2013-10-22 | E23: Expenses: Bank Charges | F23: JV-13100860 | G23: Bank Charges - MMKT | H23: 4
D24: 2013-10-23 | E24: Expenses: Bank Charges | F24: JV-13100886 | G24: Bank Charges - MMKT | H24: 4
D25: 2013-10-23 | E25: Expenses: Bank Charges | F25: JV-13100978 | G25: Bank Charges - 3rd Quarter Management Fee | H25: 2
D26: 2013-10-24 | E26: Expenses: Bank Charges | F26: JV-13100953 | G26: Bank Charges - MMKT | H26: 4
D27: 2013-10-25 | E27: Expenses: Bank Charges | F27: JV-13101036 | G27: Bank Charges - MMKT | H27: 4
D28: 2013-10-28 | E28: Expenses: Bank Charges | F28: JV-13101037 | G28: Bank Charges - MMKT | H28: 4
D29: 2013-10-29 | E29: Expenses: Bank Charges | F29: JV-13101134 | G29: Bank Charges - MMKT | H29: 4
D30: 2013-10-30 | E30: Expenses: Bank Charges | F30: JV-13101208 | G30: Bank Charges - MMKT | H30: 4
D31: 2013-10-31 | E31: Expenses: Bank Charges | F31: JV-13101225 | G31: Bank Charges - MMKT | H31: 4
G33: Total | H33: 90

Sheet InJournal (hidden)
A2: qFundCode | B2: AccDate | C2: ShortGL | D2: GLDesc | E2: Amount

Sheet InIndex (hidden)
A1: ValueDate | B1: qIndex | C1: IndexValue
A2: 2015-07-06 | B2: CONSTRUCTN | C2: 280.81
A3: 2015-07-06 | B3: CONSUMER | C3: 583.47
A4: 2015-07-06 | B4: F4GBM | C4: 938.08 | H4: Average of IndexValue | I4: qIndex
A5: 2015-07-06 | B5: FA40 | C5: 9997.37 | H5: ValueDate | I5: FBMEMAS | J5: MGSALL | K5: FBMKLCI | L5: FBMT100 | M5: CONSTRUCTN | N5: CONSUMER | O5: F4GBM | P5: FA40 | Q5: FBM70 | R5: FBMACE | S5: FBMAPMYR | T5: FBMAPUSD | U5: FBMFLG | V5: FBMHIJRAH | W5: FBMPALMOIL | X5: FBMSCAP | Y5: FBMSHA | Z5: FINANCE | AA5: IND-PROD | AB5: INDUSTRIAL | AC5: MINING | AD5: PLANTATION | AE5: PROPERTIES | AF5: TECHNOLOGY | AG5: TRAD/SERV
A6: 2015-07-06 | B6: FBM70 | C6: 12769.6 | H6: 2015-07-06 | I6: 11831.96 | J6: 3032.97 | K6: 1717.05 | L6: 11521.35 | M6: 280.81 | N6: 583.47 | O6: 938.08 | P6: 9997.37 | Q6: 12769.6 | R6: 6175.12 | S6: 18172.56 | T6: 13738.83 | U6: 15440.09 | V6: 13919.18 | W6: 15779.4 | X6: 15759.14 | Y6: 12291.47 | Z6: 15452.98 | AA6: 138.62 | AB6: 3157.54 | AC6: 543.08 | AD6: 7420.24 | AE6: 1211.08 | AF6: 21.75 | AG6: 225.58
A7: 2015-07-06 | B7: FBMACE | C7: 6175.12
A8: 2015-07-06 | B8: FBMAPMYR | C8: 18172.56
A9: 2015-07-06 | B9: FBMAPUSD | C9: 13738.83
A10: 2015-07-06 | B10: FBMEMAS | C10: 11831.96
A11: 2015-07-06 | B11: FBMFLG | C11: 15440.09
A12: 2015-07-06 | B12: FBMHIJRAH | C12: 13919.18
A13: 2015-07-06 | B13: FBMKLCI | C13: 1717.05
A14: 2015-07-06 | B14: FBMPALMOIL | C14: 15779.4
A15: 2015-07-06 | B15: FBMSCAP | C15: 15759.14
A16: 2015-07-06 | B16: FBMSHA | C16: 12291.47
A17: 2015-07-06 | B17: FBMT100 | C17: 11521.35
A18: 2015-07-06 | B18: FINANCE | C18: 15452.98
A19: 2015-07-06 | B19: IND-PROD | C19: 138.62
A20: 2015-07-06 | B20: INDUSTRIAL | C20: 3157.54
A21: 2015-07-06 | B21: MGSALL | C21: 3032.97
A22: 2015-07-06 | B22: MINING | C22: 543.08
A23: 2015-07-06 | B23: PLANTATION | C23: 7420.24
A24: 2015-07-06 | B24: PROPERTIES | C24: 1211.08
A25: 2015-07-06 | B25: TECHNOLOGY | C25: 21.75
A26: 2015-07-06 | B26: TRAD/SERV | C26: 225.58

Sheet InExpenses (hidden)
A2: GLKey | B2: JournalID | C2: GLCode | D2: qFundCode | E2: qCurrencyCode | F2: AccDate | G2: Description | H2: Amount | I2: GLDesc | J2: qRptGrpID | K2: CashFlag
A3: MAN*131000133 | B3: JV-13100037 | C3: 0-1368-MYR-710102 | D3: 1368 | E3: MYR | F3: 2013-10-01 | G3: Bank Charges - MMKT | H3: 4 | I3: Expenses: Bank Charges | J3: PEEOTF | K3: 0
A4: MAN*131000647 | B4: JV-13100106 | C4: 0-1368-MYR-710102 | D4: 1368 | E4: MYR | F4: 2013-10-02 | G4: Bank Charges - MMKT | H4: 4 | I4: Expenses: Bank Charges | J4: PEEOTF | K4: 0
A5: MAN*131001300 | B5: JV-13100202 | C5: 0-1368-MYR-710102 | D5: 1368 | E5: MYR | F5: 2013-10-03 | G5: Bank Charges - MMKT | H5: 4 | I5: Expenses: Bank Charges | J5: PEEOTF | K5: 0
A6: MAN*131001260 | B6: JV-13100201 | C6: 0-1368-MYR-710102 | D6: 1368 | E6: MYR | F6: 2013-10-04 | G6: Bank Charges - MMKT | H6: 4 | I6: Expenses: Bank Charges | J6: PEEOTF | K6: 0
A7: MAN*131002035 | B7: JV-13100328 | C7: 0-1368-MYR-710102 | D7: 1368 | E7: MYR | F7: 2013-10-08 | G7: Bank Charges - MMKT | H7: 4 | I7: Expenses: Bank Charges | J7: PEEOTF | K7: 0
A8: MAN*131003181 | B8: JV-13100526 | C8: 0-1368-MYR-710102 | D8: 1368 | E8: MYR | F8: 2013-10-08 | G8: Bank Charges - IPO Westports | H8: 4 | I8: Expenses: Bank Charges | J8: PEEOTF | K8: 0
A9: MAN*131002567 | B9: JV-13100421 | C9: 0-1368-MYR-710102 | D9: 1368 | E9: MYR | F9: 2013-10-09 | G9: Bank Charges - MMKT | H9: 4 | I9: Expenses: Bank Charges | J9: PEEOTF | K9: 0
A10: MAN*131003477 | B10: JV-13100570 | C10: 0-1368-MYR-710102 | D10: 1368 | E10: MYR | F10: 2013-10-10 | G10: Bank Charges - MMKT | H10: 4 | I10: Expenses: Bank Charges | J10: PEEOTF | K10: 0
A11: MAN*131003165 | B11: JV-13100525 | C11: 0-1368-MYR-710102 | D11: 1368 | E11: MYR | F11: 2013-10-11 | G11: Bank Charges - MMKT | H11: 4 | I11: Expenses: Bank Charges | J11: PEEOTF | K11: 0
A12: MAN*131003125 | B12: JV-13100524 | C12: 0-1368-MYR-710102 | D12: 1368 | E12: MYR | F12: 2013-10-14 | G12: Bank Charges - MMKT | H12: 4 | I12: Expenses: Bank Charges | J12: PEEOTF | K12: 0
A13: MAN*131003691 | B13: JV-13100610 | C13: 0-1368-MYR-710102 | D13: 1368 | E13: MYR | F13: 2013-10-16 | G13: Bank Charges - MMKT | H13: 4 | I13: Expenses: Bank Charges | J13: PEEOTF | K13: 0
A14: MAN*131004074 | B14: JV-13100674 | C14: 0-1368-MYR-710102 | D14: 1368 | E14: MYR | F14: 2013-10-17 | G14: Bank Charges - MMKT | H14: 4 | I14: Expenses: Bank Charges | J14: PEEOTF | K14: 0
A15: MAN*131004429 | B15: JV-13100727 | C15: 0-1368-MYR-710102 | D15: 1368 | E15: MYR | F15: 2013-10-18 | G15: Bank Charges - MMKT | H15: 4 | I15: Expenses: Bank Charges | J15: PEEOTF | K15: 0
A16: MAN*131004714 | B16: JV-13100773 | C16: 0-1368-MYR-710102 | D16: 1368 | E16: MYR | F16: 2013-10-21 | G16: Bank Charges - MMKT | H16: 4 | I16: Expenses: Bank Charges | J16: PEEOTF | K16: 0
A17: MAN*131005295 | B17: JV-13100860 | C17: 0-1368-MYR-710102 | D17: 1368 | E17: MYR | F17: 2013-10-22 | G17: Bank Charges - MMKT | H17: 4 | I17: Expenses: Bank Charges | J17: PEEOTF | K17: 0
A18: MAN*131005528 | B18: JV-13100886 | C18: 0-1368-MYR-710102 | D18: 1368 | E18: MYR | F18: 2013-10-23 | G18: Bank Charges - MMKT | H18: 4 | I18: Expenses: Bank Charges | J18: PEEOTF | K18: 0
A19: MAN*131006188 | B19: JV-13100978 | C19: 0-1368-MYR-710102 | D19: 1368 | E19: MYR | F19: 2013-10-23 | G19: Bank Charges - 3rd Quarter Management Fee | H19: 2 | I19: Expenses: Bank Charges | J19: PEEOTF | K19: 0
A20: MAN*131006006 | B20: JV-13100953 | C20: 0-1368-MYR-710102 | D20: 1368 | E20: MYR | F20: 2013-10-24 | G20: Bank Charges - MMKT | H20: 4 | I20: Expenses: Bank Charges | J20: PEEOTF | K20: 0
A21: MAN*131006505 | B21: JV-13101036 | C21: 0-1368-MYR-710102 | D21: 1368 | E21: MYR | F21: 2013-10-25 | G21: Bank Charges - MMKT | H21: 4 | I21: Expenses: Bank Charges | J21: PEEOTF | K21: 0
A22: MAN*131006545 | B22: JV-13101037 | C22: 0-1368-MYR-710102 | D22: 1368 | E22: MYR | F22: 2013-10-28 | G22: Bank Charges - MMKT | H22: 4 | I22: Expenses: Bank Charges | J22: PEEOTF | K22: 0
A23: MAN*131007074 | B23: JV-13101134 | C23: 0-1368-MYR-710102 | D23: 1368 | E23: MYR | F23: 2013-10-29 | G23: Bank Charges - MMKT | H23: 4 | I23: Expenses: Bank Charges | J23: PEEOTF | K23: 0
A24: MAN*131007515 | B24: JV-13101208 | C24: 0-1368-MYR-710102 | D24: 1368 | E24: MYR | F24: 2013-10-30 | G24: Bank Charges - MMKT | H24: 4 | I24: Expenses: Bank Charges | J24: PEEOTF | K24: 0
A25: MAN*131007606 | B25: JV-13101225 | C25: 0-1368-MYR-710102 | D25: 1368 | E25: MYR | F25: 2013-10-31 | G25: Bank Charges - MMKT | H25: 4 | I25: Expenses: Bank Charges | J25: PEEOTF | K25: 0

Sheet InDivAccr (hidden)
A2: TradeDate | B2: PayDate | C2: AccDate | D2: StockName | E2: UnitFaceValue | F2: TranExpenses | G2: SCGrossProceed | H2: TranAmortAccre | I2: TranProceed | J2: Status
A3: 2007-12-27 | B3: 2008-06-27 | C3: 2007-12-27 | D3: UCHITEC | E3: 150000 | F3: 0 | G3: 9000 | H3: 0 | I3: 9000 | J3: Accrual
A4: 2007-12-27 | B4: 2008-06-27 | C4: 2007-12-27 | D4: UCHITEC | E4: 150000 | F4: 0 | G4: 6000 | H4: 0 | I4: 6000 | J4: Accrual
A5: 2008-02-18 | B5: 2008-08-18 | C5: 2008-02-18 | D5: UMW | E5: 30000 | F5: 936 | G5: 3600 | H5: 0 | I5: 2664 | J5: Accrual
A6: 2008-03-12 | B6: 2008-09-12 | C6: 2008-03-12 | D6: SPSETIA | E6: 99000 | F6: 4009.5 | G6: 14850 | H6: 0 | I6: 10840.5 | J6: Accrual

Sheet InCshFlow (hidden)
A2: TrDt | B2: AccDt | C2: TrnID | D2: TrnDesc | E2: StkID | F2: StkName | G2: Description | H2: Amt | I2: TranIncome | J2: ContraAmt | K2: GLCode | L2: OpenAmt
A3: 2008-01-25 | B3: 2008-04-25 | C3: BM | D3: Bond Maturity | E3: DK011942 | F3: SILK 0.0000% 22.08.2008 | G3: SILK 0.0000% 22.08.2008 | H3: 3268643.73 | I3: -495393.73 | J3: 0 | K3: 0-IF0052-MYR-500000 | L3: 0

Sheet InBond (hidden)
A2: qStockCode | B2: StockName | C2: Description | D2: IssuedSize | E2: qIssuerCode | F2: qKLSESector | G2: qIntSector | H2: Inactive | I2: qRank | J2: SingleIssue | K2: Frequency | L2: Coupon | M2: MaturityDate | N2: ExcelBasis | O2: HolBasis | P2: Spread | Q2: LCDAdj | R2: NCDAdj | S2: LLCD | T2: LCD | U2: NCD | V2: NNCD | W2: MaturityDate4NCD | X2: qBondType | Y2: SpecialValuation | Z2: CreditScore | AA2: Term | AB2: %% | AC2: SingleIssue | AD2: Frequency | AE2: Coupon | AF2: MaturityDate | AG2: ExcelBasis | AH2: HolBasis | AI2: Spread | AJ2: LCDAdj | AK2: NCDAdj | AL2: LLCD | AM2: LCD | AN2: NCD | AO2: NNCD | AP2: MaturityDate4NCD | AQ2: qBondType | AR2: SpecialValuation | AS2: CreditScore | AT2: Term
A3: %% | B3: %% | C3: %% | D3: %% | E3: %% | F3: %% | G3: %% | H3: %% | I3: %% | J3: %% | K3: %% | L3: %% | M3: %% | N3: %% | O3: %% | P3: %% | Q3: %% | R3: %% | S3: %% | T3: %% | U3: %% | V3: %% | W3: %% | X3: %% | Y3: %% | Z3: %% | AA3: %%
A4: BC070045 | B4: Bank Negara Malaysia 0% 03.01.08 | C4: Bank Negara Malaysia 0% 03.01.08 | D4: 10000000 | E4: BNM | F4: 0 | G4: 0 | H4: 0 | I4: 50 | J4: Bank Negara Mal | K4: 2 | L4: 0 | M4: 39455 | N4: 3 | O4: 1 | P4: 0 | Q4: 0 | R4: 0 | S4: 39455 | T4: 39637 | U4: 39637 | V4: 39637 | W4: 39455 | X4: 2 | Y4: FALSE | Z4: 100 | AA4: 0
A5: BC070047 | B5: Bank Negara Malaysia 0% 17.01.08 | C5: Bank Negara Malaysia 0% 17.01.08 | D5: 100000000 | E5: BNM | F5: 0 | G5: 0 | H5: 0 | I5: 50 | J5: Bank Negara Mal | K5: 2 | L5: 0 | M5: 39464 | N5: 3 | O5: 1 | P5: 0 | Q5: 0 | R5: 0 | S5: 39464 | T5: 39646 | U5: 39646 | V5: 39646 | W5: 39464 | X5: 2 | Y5: FALSE | Z5: 100 | AA5: 0
A6: BD070013 | B6: Bank Negara Malaysia 0% 04.10.07 | C6: Bank Negara Malaysia 0% 04.10.07 | D6: 100000000 | E6: BNM | F6: 0 | G6: 0 | H6: 0 | I6: 50 | J6: Bank Negara Mal | K6: 2 | L6: 0 | M6: 39359 | N6: 3 | O6: 1 | P6: 0 | Q6: 0 | R6: 0 | S6: 39542 | T6: 39542 | U6: 39542 | V6: 39542 | W6: 39359 | X6: 2 | Y6: FALSE | Z6: 100 | AA6: 0
A7: BD070048 | B7: Bank Negara Malaysia 0% 22.04.08 | C7: Bank Negara Malaysia 0% 22.04.08 | D7: 0 | E7: BNM | F7: 10 | G7: 7 | H7: 0 | I7: 50 | J7: Bank Negara Mal | K7: 2 | L7: 0 | M7: 39560 | N7: 3 | O7: 1 | P7: 0 | Q7: 0 | R7: 0 | S7: 0 | T7: 0 | U7: 0 | V7: 0 | W7: 39560 | X7: 2 | Y7: FALSE | Z7: 100 | AA7: 0
A8: BD070058 | B8: Bank Negara Malaysia 0% 17.06.08 | C8: Bank Negara Malaysia 0% 17.06.08 | D8: 0 | E8: BNM | F8: 10 | G8: 7 | H8: 0 | I8: 50 | J8: Bank Negara Mal | K8: 2 | L8: 0 | M8: 39616 | N8: 3 | O8: 1 | P8: 0 | Q8: 0 | R8: 0 | S8: 0 | T8: 0 | U8: 0 | V8: 0 | W8: 39616 | X8: 2 | Y8: FALSE | Z8: 100 | AA8: 0
A9: BD080002 | B9: Bank Negara Malaysia 0% 17.07.08 | C9: Bank Negara Malaysia 0% 17.07.08 | D9: 5000000000 | E9: BNM | F9: 10 | G9: 7 | H9: 0 | I9: 50 | J9: Bank Negara Mal | K9: 2 | L9: 0 | M9: 39646 | N9: 3 | O9: 1 | P9: 0 | Q9: 0 | R9: 0 | S9: 39464 | T9: 39646 | U9: 39832 | V9: 39832 | W9: 39646 | X9: 2 | Y9: FALSE | Z9: 100 | AA9: 0
A10: BE070010 | B10: Bank Negara Malaysia 0% 13.12.07 | C10: Bank Negara Malaysia 0% 13.12.07 | D10: 100000000 | E10: BNM | F10: 0 | G10: 0 | H10: 0 | I10: 50 | J10: Bank Negara Mal | K10: 2 | L10: 0 | M10: 39429 | N10: 3 | O10: 1 | P10: 0 | Q10: 0 | R10: 0 | S10: 39429 | T10: 39612 | U10: 39612 | V10: 39612 | W10: 39429 | X10: 2 | Y10: FALSE | Z10: 100 | AA10: 0
A11: BE070030 | B11: Bank Negara Malaysia 0% 17.04.08 | C11: Bank Negara Malaysia 0% 17.04.08 | D11: 0 | E11: FEDERAL GOVT | F11: 10 | G11: 7 | H11: 0 | I11: 50 | J11: Bank Negara Mal | K11: 2 | L11: 0 | M11: 39555 | N11: 3 | O11: 1 | P11: 0 | Q11: 0 | R11: 0 | S11: 0 | T11: 0 | U11: 0 | V11: 0 | W11: 39555 | X11: 2 | Y11: FALSE | Z11: 100 | AA11: 0
A12: CG04003H | B12: Cagamas Bhd 3.61% 09.03.07 | C12: Cagamas Bhd 3.61% 09.03.07 | D12: 100000000 | E12: CAGAMAS BHD | F12: 0 | G12: 0 | H12: 0 | I12: 0 | J12: Cagamas Bhd 3.6 | K12: 2 | L12: 0 | M12: 39150 | N12: 3 | O12: 1 | P12: 0 | Q12: 0 | R12: 0 | S12: 38969 | T12: 39150 | U12: 39334 | V12: 39334 | W12: 39150 | X12: 3 | Y12: FALSE | Z12: 100 | AA12: 1
A13: CH04031E | B13: Cagamas 4.1140% 03.09.2008 | C13: Cagamas 4.1140% 03.09.2008 | D13: 2395000000 | E13: CAGAMAS BHD | F13: 4 | G13: 6 | H13: 0 | I13: 115 | J13: CGBCH04031E | K13: 2 | L13: 0.04114 | M13: 39694 | N13: 3 | O13: 1 | P13: 0 | Q13: 0 | R13: 0 | S13: 39328 | T13: 39510 | U13: 39694 | V13: 39875 | W13: 39694 | X13: 3 | Y13: FALSE | Z13: 100 | AA13: 1
A14: CI03003A | B14: Cagamas 3.1220% 27.02.2008 | C14: Cagamas 3.1220% 27.02.2008 | D14: 24467000000 | E14: CAGAMAS BHD | F14: 4 | G14: 6 | H14: 0 | I14: 115 | J14: CGBCI03003A | K14: 2 | L14: 0.03122 | M14: 39505 | N14: 3 | O14: 1 | P14: 0 | Q14: 0 | R14: 0 | S14: 39321 | T14: 39505 | U14: 39687 | V14: 39687 | W14: 39505 | X14: 3 | Y14: FALSE | Z14: 99 | AA14: 1
A15: CI040009 | B15: Cagamas 4.2250% 17.08.2009 | C15: Cagamas 4.2250% 17.08.2009 | D15: 150000000 | E15: CAGAMAS BHD | F15: 4 | G15: 6 | H15: 0 | I15: 115 | J15: CGBCI040009 | K15: 2 | L15: 0.04225 | M15: 40042 | N15: 1 | O15: 1 | P15: 0 | Q15: 0 | R15: 0 | S15: 39496 | T15: 39678 | U15: 39861 | V15: 40042 | W15: 40042 | X15: 3 | Y15: FALSE | Z15: 99 | AA15: 1
A16: DE070158 | B16: KL Sentral 4.4400% 04.04.2008 | C16: KL Sentral 4.4400% 04.04.2008 | D16: 200000000 | E16: KLSENTRAL | F16: 2 | G16: 6 | H16: 0 | I16: 125 | J16: SIME | K16: 2 | L16: 0.0444 | M16: 39542 | N16: 1 | O16: 1 | P16: 0 | Q16: 0 | R16: 0 | S16: 39363 | T16: 39542 | U16: 39727 | V16: 39727 | W16: 39542 | X16: 5 | Y16: FALSE | Z16: 0 | AA16: 1
A17: DF070159 | B17: KL Sentral 4.5700% 06.04.2009 | C17: KL Sentral 4.5700% 06.04.2009 | D17: 720000000 | E17: KLSENTRAL | F17: 2 | G17: 6 | H17: 0 | I17: 125 | J17: SIME | K17: 2 | L17: 0.0457 | M17: 39909 | N17: 1 | O17: 1 | P17: 0 | Q17: 0 | R17: 0 | S17: 39542 | T17: 39545 | U17: 39727 | V17: 39909 | W17: 39909 | X17: 5 | Y17: FALSE | Z17: 0 | AA17: 1
A18: DG040450 | B18: Pesaka Astana 6.200% 29.09.06 | C18: Pesaka Astana (M) Sdn Bhd 6.200% 29.09.06 | D18: 140000000 | E18: PESAKA ASTANA | F18: 0 | G18: 0 | H18: 0 | I18: 180 | J18: SIME | K18: 2 | L18: 0.062 | M18: 39720 | N18: 1 | O18: 1 | P18: 0 | Q18: 0 | R18: 0 | S18: 39170 | T18: 39536 | U18: 39720 | V18: 39901 | W18: 38989 | X18: 5 | Y18: FALSE | Z18: 0 | AA18: 1
A19: DG041712 | B19: International Finance Corporation 2.880% 13/12/07 | C19: International Finance Corporation 2.880% 13/12/07 | D19: 400000000 | E19: IFC | F19: 4 | G19: 6 | H19: 0 | I19: 115 | J19: CB-IFC11207 | K19: 2 | L19: 0.0288 | M19: 39429 | N19: 1 | O19: 1 | P19: 0 | Q19: 0 | R19: 0 | S19: 39429 | T19: 39612 | U19: 39612 | V19: 39612 | W19: 39429 | X19: 5 | Y19: FALSE | Z19: 100 | AA19: 1
A20: DG050165 | B20: PG Assets 0.0000% 28.02.2008 | C20: PG Assets 0.0000% 28.02.2008 | D20: 80000000 | E20: PG MUNICIPAL | F20: 0 | G20: 0 | H20: 0 | I20: 115 | J20: CB-PGM10208 | K20: 2 | L20: 0 | M20: 39506 | N20: 3 | O20: 1 | P20: 0 | Q20: 0 | R20: 0 | S20: 39322 | T20: 39506 | U20: 39688 | V20: 39688 | W20: 39506 | X20: 5 | Y20: FALSE | Z20: 71.4 | AA20: 1
A21: DG060179 | B21: KSPVSB 6.1200% 19.05.2009 | C21: KSPVSB 6.1200% 19.05.2009 | D21: 150000000 | E21: KWANTAS SPV | F21: 0 | G21: 0 | H21: 0 | I21: 132 | J21: IFRBD KWAN SPV | K21: 2 | L21: 0.0612 | M21: 39952 | N21: 1 | O21: 0 | P21: 0 | Q21: 0 | R21: 0 | S21: 39405 | T21: 39587 | U21: 39771 | V21: 39952 | W21: 39952 | X21: 5 | Y21: FALSE | Z21: 0 | AA21: 1
A22: DG060608 | B22: Cagamas 4.5000% 10.08.2009 | C22: Cagamas 4.5000% 10.08.2009 | D22: 510000000 | E22: CAGAMAS BHD | F22: 4 | G22: 6 | H22: 0 | I22: 115 | J22: CGBD010809 | K22: 2 | L22: 0.045 | M22: 40035 | N22: 1 | O22: 1 | P22: 0 | Q22: 0 | R22: 0 | S22: 39489 | T22: 39671 | U22: 39854 | V22: 40035 | W22: 40035 | X22: 3 | Y22: FALSE | Z22: 68.4 | AA22: 1
A23: DG070160 | B23: KL Sentral 4.7000% 06.04.2010 | C23: KL Sentral 4.7000% 06.04.2010 | D23: 720000000 | E23: KLSENTRAL | F23: 2 | G23: 6 | H23: 0 | I23: 125 | J23: KL Sentral 4.70 | K23: 2 | L23: 0.047 | M23: 40274 | N23: 1 | O23: 1 | P23: 0 | Q23: 0 | R23: 0 | S23: 39542 | T23: 39545 | U23: 39727 | V23: 39909 | W23: 40274 | X23: 5 | Y23: FALSE | Z23: 0 | AA23: 1
A24: DG070358 | B24: Injaz AsiaEquity Property Bhd 7.00% 28.05.10 | C24: Injaz AsiaEquity Property Bhd 7.00% 28.05.10 | D24: 10000000 | E24: IAPB | F24: 11 | G24: 16 | H24: 0 | I24: 135 | J24: IAPB | K24: 2 | L24: 0.07 | M24: 40326 | N24: 3 | O24: 1 | P24: 0 | Q24: 0 | R24: 0 | S24: 39416 | T24: 39598 | U24: 39780 | V24: 39961 | W24: 40326 | X24: 5 | Y24: FALSE | Z24: 100 | AA24: 1
A25: DH040059 | B25: Glomac 7.7500% 30.01.2008 | C25: Glomac 7.7500% 30.01.2008 | D25: 60000000 | E25: GLOMAC | F25: 11 | G25: 16 | H25: 0 | I25: 138 | J25: CB-GLO10108 | K25: 2 | L25: 0.0775 | M25: 39477 | N25: 1 | O25: 1 | P25: 0 | Q25: 0 | R25: 0 | S25: 39477 | T25: 39659 | U25: 39659 | V25: 39659 | W25: 39477 | X25: 5 | Y25: FALSE | Z25: 55.8 | AA25: 1
A26: DH040484 | B26: OSK PROP 4.5000% 04.04.2008 | C26: OSK PROP 4.5000% 04.04.2008 | D26: 435000000 | E26: OSKPROP | F26: 11 | G26: 16 | H26: 0 | I26: 135 | J26: CB-OSK10408 | K26: 2 | L26: 0.045 | M26: 39542 | N26: 1 | O26: 1 | P26: 0 | Q26: 0 | R26: 0 | S26: 39360 | T26: 39542 | U26: 39727 | V26: 39727 | W26: 39542 | X26: 5 | Y26: FALSE | Z26: 56.4 | AA26: 1
A27: DH040539 | B27: KEV 5.0500% 08.07.2008 | C27: KEV 5.0500% 08.07.2008 | D27: 3402000000 | E27: KAPAR | F27: 7 | G27: 15 | H27: 0 | I27: 122 | J27: CB-KEV10708 | K27: 2 | L27: 0.0505 | M27: 39637 | N27: 1 | O27: 1 | P27: 0 | Q27: 0 | R27: 0 | S27: 39455 | T27: 39637 | U27: 39821 | V27: 39821 | W27: 39637 | X27: 5 | Y27: FALSE | Z27: 63.8 | AA27: 1
A28: DH041024 | B28: KEV 4.8500% 08.01.2008 | C28: KEV 4.8500% 08.01.2008 | D28: 112000000 | E28: KAPAR | F28: 7 | G28: 15 | H28: 0 | I28: 122 | J28: Kapar Energy Ve | K28: 2 | L28: 0.0485 | M28: 39455 | N28: 1 | O28: 1 | P28: 0 | Q28: 0 | R28: 0 | S28: 39455 | T28: 39637 | U28: 39637 | V28: 39637 | W28: 39455 | X28: 5 | Y28: FALSE | Z28: 63.8 | AA28: 1
A29: DH050001 | B29: Tracoma Hldg 7.2000% 28.01.2009 | C29: Tracoma Hldg 7.2000% 28.01.2009 | D29: 100000000 | E29: TRACOMA | F29: 0 | G29: 0 | H29: 0 | I29: 142 | J29: SIME | K29: 2 | L29: 0.072 | M29: 39841 | N29: 3 | O29: 1 | P29: 0 | Q29: 0 | R29: 0 | S29: 39475 | T29: 39657 | U29: 39841 | V29: 40022 | W29: 39841 | X29: 5 | Y29: FALSE | Z29: 0 | AA29: 1
A30: DH051068 | B30: Bayu Padu 5.6000% 26.02.2009 | C30: Bayu Padu 5.6000% 26.02.2009 | D30: 500000000 | E30: BAYU PADU S/B | F30: 0 | G30: 12 | H30: 0 | I30: 132 | J30: CB-BYP10209 | K30: 2 | L30: 0.056 | M30: 39870 | N30: 1 | O30: 1 | P30: 0 | Q30: 0 | R30: 0 | S30: 39321 | T30: 39504 | U30: 39686 | V30: 39870 | W30: 39870 | X30: 5 | Y30: FALSE | Z30: 54.4 | AA30: 1
A31: DH051651 | B31: Memory Tech 6.2500% 28.10.2008 | C31: Memory Tech 6.2500% 28.10.2008 | D31: 40000000 | E31: MEMTECH | F31: 12 | G31: 0 | H31: 0 | I31: 135 | J31: CB-MTE11008 | K31: 2 | L31: 0.0625 | M31: 39749 | N31: 3 | O31: 1 | P31: 0 | Q31: 0 | R31: 0 | S31: 39384 | T31: 39566 | U31: 39749 | V31: 39931 | W31: 39749 | X31: 5 | Y31: FALSE | Z31: 60 | AA31: 1
A32: DI030004 | B32: SCB 7.5000% 07.01.2008 | C32: SCB 7.5000% 07.01.2008 | D32: 190000000 | E32: SCBD | F32: 11 | G32: 16 | H32: 0 | I32: 135 | J32: CB-BSD10108 | K32: 2 | L32: 0.075 | M32: 39454 | N32: 3 | O32: 1 | P32: 0 | Q32: 0 | R32: 0 | S32: 39454 | T32: 39636 | U32: 39636 | V32: 39636 | W32: 39454 | X32: 5 | Y32: FALSE | Z32: 56.1 | AA32: 1
A33: DI030362 | B33: Putrajaya Hldg 4.2500% 17.04.2008 | C33: Putrajaya Hldg 4.2500% 17.04.2008 | D33: 850000000 | E33: PUTRAJAYA | F33: 11 | G33: 16 | H33: 0 | I33: 115 | J33: CB-PUJ10408 | K33: 2 | L33: 0.0425 | M33: 39555 | N33: 1 | O33: 1 | P33: 0 | Q33: 0 | R33: 0 | S33: 39372 | T33: 39555 | U33: 39738 | V33: 39738 | W33: 39555 | X33: 5 | Y33: FALSE | Z33: 69.6 | AA33: 1
A34: DI030455 | B34: ABI 5.9500% 30.05.2008 | C34: ABI 5.9500% 30.05.2008 | D34: 80000000 | E34: ABI | F34: 6 | G34: 10 | H34: 0 | I34: 180 | J34: ABI 5.9500% 30. | K34: 2 | L34: 0.0595 | M34: 39598 | N34: 1 | O34: 1 | P34: 0 | Q34: 0 | R34: 0 | S34: 39416 | T34: 39598 | U34: 39783 | V34: 39783 | W34: 39598 | X34: 5 | Y34: FALSE | Z34: 48.2 | AA34: 1
A35: DI03045S | B35: ABI 5.9500% 30.05.2008 | C35: ABI 5.9500% 30.05.2008 | D35: 80000000 | E35: ABI | F35: 0 | G35: 0 | H35: 0 | I35: 180 | J35: ABI Malaysia Sd | K35: 2 | L35: 0.0595 | M35: 39598 | N35: 1 | O35: 1 | P35: 0 | Q35: 0 | R35: 0 | S35: 39416 | T35: 39598 | U35: 39783 | V35: 39783 | W35: 39598 | X35: 5 | Y35: FALSE | Z35: 0 | AA35: 1
A36: DI030629 | B36: IRIS 6.3000% 04.07.2008 | C36: IRIS 6.3000% 04.07.2008 | D36: 135000000 | E36: IRIS CORP | F36: 6 | G36: 5 | H36: 0 | I36: 138 | J36: CB-ICB10708 | K36: 2 | L36: 0.063 | M36: 39633 | N36: 1 | O36: 1 | P36: 0 | Q36: 0 | R36: 0 | S36: 39451 | T36: 39633 | U36: 39818 | V36: 39818 | W36: 39633 | X36: 5 | Y36: FALSE | Z36: 58.3 | AA36: 1
A37: DI03921A | B37: New Pantai 5.9000% 31.10.2008 | C37: New Pantai 5.9000% 31.10.2008 | D37: 490000000 | E37: NPE | F37: 7 | G37: 20 | H37: 0 | I37: 128 | J37: CB-NPE11008 | K37: 2 | L37: 0.059 | M37: 39752 | N37: 1 | O37: 1 | P37: 0 | Q37: 0 | R37: 0 | S37: 39386 | T37: 39568 | U37: 39752 | V37: 39933 | W37: 39752 | X37: 5 | Y37: FALSE | Z37: 59.3 | AA37: 1
A38: DI040058 | B38: Glomac 8.0000% 30.01.2009 | C38: Glomac 8.0000% 30.01.2009 | D38: 60000000 | E38: GLOMAC | F38: 11 | G38: 16 | H38: 0 | I38: 138 | J38: CB-GLO10109 | K38: 2 | L38: 0.08 | M38: 39843 | N38: 1 | O38: 1 | P38: 0 | Q38: 0 | R38: 0 | S38: 39477 | T38: 39659 | U38: 39843 | V38: 40024 | W38: 39843 | X38: 5 | Y38: FALSE | Z38: 55.8 | AA38: 1
A39: DI040485 | B39: OSK PROP 4.5000% 06.04.2009 | C39: OSK PROP 4.5000% 06.04.2009 | D39: 1407000000 | E39: OSKPROP | F39: 11 | G39: 16 | H39: 0 | I39: 135 | J39: CB-OSK10409 | K39: 2 | L39: 0.045 | M39: 39909 | N39: 1 | O39: 1 | P39: 0 | Q39: 0 | R39: 0 | S39: 39542 | T39: 39542 | U39: 39727 | V39: 39909 | W39: 39909 | X39: 5 | Y39: FALSE | Z39: 56.4 | AA39: 1
A40: DI040540 | B40: KEV 5.2500% 08.01.2009 | C40: KEV 5.2500% 08.01.2009 | D40: 1850000000 | E40: KAPAR | F40: 7 | G40: 15 | H40: 0 | I40: 122 | J40: CB-KEV10109 | K40: 2 | L40: 0.0525 | M40: 39821 | N40: 1 | O40: 1 | P40: 0 | Q40: 0 | R40: 0 | S40: 39455 | T40: 39637 | U40: 39821 | V40: 40002 | W40: 39821 | X40: 5 | Y40: FALSE | Z40: 63.8 | AA40: 1
A41: DI040541 | B41: KEV 5.4500% 08.07.2009 | C41: KEV 5.4500% 08.07.2009 | D41: 1850000000 | E41: KAPAR | F41: 7 | G41: 15 | H41: 0 | I41: 122 | J41: CB-KEV10709 | K41: 2 | L41: 0.0545 | M41: 40002 | N41: 1 | O41: 1 | P41: 0 | Q41: 0 | R41: 0 | S41: 39455 | T41: 39637 | U41: 39821 | V41: 40002 | W41: 40002 | X41: 5 | Y41: FALSE | Z41: 63.8 | AA41: 1
A42: DI050204 | B42: IBRD 3.5800% 12.05.2010 | C42: IBRD 3.5800% 12.05.2010 | D42: 1.89 | E42: IBRD | F42: 7 | G42: 0 | H42: 0 | I42: 50 | J42: SIME | K42: 2 | L42: 0.0358 | M42: 40310 | N42: 1 | O42: 0 | P42: 0 | Q42: 0 | R42: 0 | S42: 39398 | T42: 39580 | U42: 39764 | V42: 39945 | W42: 40310 | X42: 7 | Y42: FALSE | Z42: 0 | AA42: 1
A43: DI051069 | B43: Bayu Padu 5.6000% 26.08.2009 | C43: Bayu Padu 5.6000% 26.08.2009 | D43: 500000000 | E43: BAYU PADU S/B | F43: 0 | G43: 12 | H43: 0 | I43: 132 | J43: CB-BYP10809 | K43: 2 | L43: 0.056 | M43: 40051 | N43: 1 | O43: 1 | P43: 0 | Q43: 0 | R43: 0 | S43: 39321 | T43: 39504 | U43: 39686 | V43: 39870 | W43: 40051 | X43: 5 | Y43: FALSE | Z43: 54.4 | AA43: 1
A44: DI05353Z | B44: MIDAS 7.7000% 25.06.2010 | C44: MIDAS 7.7000% 25.06.2010 | D44: 143000000 | E44: MIDAS PLANTATIO | F44: 9 | G44: 16 | H44: 0 | I44: 135 | J44: SIME | K44: 2 | L44: 0.077 | M44: 40354 | N44: 1 | O44: 1 | P44: 0 | Q44: 0 | R44: 0 | S44: 39443 | T44: 39626 | U44: 39808 | V44: 39989 | W44: 40354 | X44: 5 | Y44: FALSE | Z44: 0 | AA44: 1
A45: DI070162 | B45: KL Sentral 4.9600% 06.04.2012 | C45: KL Sentral 4.9600% 06.04.2012 | D45: 720000000 | E45: KLSENTRAL | F45: 7 | G45: 0 | H45: 0 | I45: 125 | J45: SIME | K45: 2 | L45: 0.0496 | M45: 41005 | N45: 1 | O45: 1 | P45: 0 | Q45: 0 | R45: 0 | S45: 39542 | T45: 39545 | U45: 39727 | V45: 39909 | W45: 41005 | X45: 5 | Y45: FALSE | Z45: 0 | AA45: 1
A46: DJ011941 | B46: SILK 0.000% 22.08.2007 | C46: SILK 0.000% 22.08.2007 | D46: 2500000000 | E46: SILK | F46: 0 | G46: 0 | H46: 0 | I46: 180 | J46: SIME | K46: 2 | L46: 0 | M46: 40047 | N46: 1 | O46: 1 | P46: 0 | Q46: 0 | R46: 0 | S46: 39316 | T46: 39500 | U46: 39682 | V46: 39866 | W46: 39316 | X46: 5 | Y46: FALSE | Z46: 0 | AA46: 1
A47: DJ020005 | B47: Pahlawan Pwr 6.1500% 31.01.2008 | C47: Pahlawan Pwr 6.1500% 31.01.2008 | D47: 450000000 | E47: PAHLAWAN | F47: 7 | G47: 15 | H47: 0 | I47: 122 | J47: CB-PWN10108 | K47: 2 | L47: 0.0615 | M47: 39478 | N47: 1 | O47: 1 | P47: 0 | Q47: 0 | R47: 0 | S47: 39478 | T47: 39660 | U47: 39660 | V47: 39660 | W47: 39478 | X47: 5 | Y47: FALSE | Z47: 63.3 | AA47: 1
A48: DJ020171 | B48: Celcom 8.5000% 15.04.2008 | C48: Celcom 8.5000% 15.04.2008 | D48: 1100000000 | E48: CELCOM | F48: 7 | G48: 19 | H48: 0 | I48: 122 | J48: Celcom (Malaysi | K48: 2 | L48: 0.085 | M48: 39553 | N48: 1 | O48: 1 | P48: 0 | Q48: 0 | R48: 0 | S48: 39367 | T48: 39553 | U48: 39736 | V48: 39736 | W48: 39553 | X48: 5 | Y48: FALSE | Z48: 55.2 | AA48: 1
A49: DJ020215 | B49: PLUS 5.7000% 30.05.2008 | C49: PLUS 5.7000% 30.05.2008 | D49: 5600000000 | E49: PLUS | F49: 7 | G49: 20 | H49: 0 | I49: 115 | J49: CB-PLU10508 | K49: 2 | L49: 0.057 | M49: 39598 | N49: 1 | O49: 1 | P49: 0 | Q49: 0 | R49: 1 | S49: 39416 | T49: 39598 | U49: 39783 | V49: 39783 | W49: 39598 | X49: 5 | Y49: FALSE | Z49: 74.2 | AA49: 1
A50: DJ020466 | B50: Sunrise 8.1000% 19.06.2008 | C50: Sunrise 8.1000% 19.06.2008 | D50: 100000000 | E50: SUNRISE | F50: 11 | G50: 16 | H50: 0 | I50: 132 | J50: CB-SUN10608 | K50: 2 | L50: 0.081 | M50: 39618 | N50: 1 | O50: 1 | P50: 0 | Q50: 0 | R50: 0 | S50: 39435 | T50: 39618 | U50: 39801 | V50: 39801 | W50: 39618 | X50: 5 | Y50: FALSE | Z50: 56.5 | AA50: 1
A51: DJ020605 | B51: Kwantas 7.2500% 15.08.2008 | C51: Kwantas 7.2500% 15.08.2008 | D51: 100000000 | E51: KWANTAS | F51: 9 | G51: 8 | H51: 0 | I51: 132 | J51: CB-KTS10808 | K51: 2 | L51: 0.0725 | M51: 39675 | N51: 3 | O51: 1 | P51: 0 | Q51: 0 | R51: 0 | S51: 39493 | T51: 39675 | U51: 39860 | V51: 39860 | W51: 39675 | X51: 5 | Y51: FALSE | Z51: 55.1 | AA51: 1
A52: DJ020700 | B52: Grand Saga 6.7000% 19.09.2008 | C52: Grand Saga 6.7000% 19.09.2008 | D52: 210000000 | E52: GRAND SAGA | F52: 7 | G52: 20 | H52: 0 | I52: 128 | J52: CB-GRS10908 | K52: 2 | L52: 0.067 | M52: 39710 | N52: 1 | O52: 1 | P52: 0 | Q52: 0 | R52: 0 | S52: 39344 | T52: 39526 | U52: 39710 | V52: 39891 | W52: 39710 | X52: 5 | Y52: FALSE | Z52: 60 | AA52: 1
A53: DJ020789 | B53: KESAS 6.4500% 10.10.2008 | C53: KESAS 6.4500% 10.10.2008 | D53: 800000000 | E53: KESAS | F53: 7 | G53: 20 | H53: 0 | I53: 128 | J53: CB-KSS11008 | K53: 2 | L53: 0.0645 | M53: 39731 | N53: 3 | O53: 1 | P53: 0 | Q53: 0 | R53: 0 | S53: 39366 | T53: 39549 | U53: 39731 | V53: 39913 | W53: 39731 | X53: 5 | Y53: FALSE | Z53: 57.1 | AA53: 1
A54: DJ030077 | B54: ELITE 6.0000% 27.02.2009 | C54: ELITE 6.0000% 27.02.2009 | D54: 750000000 | E54: ELITE | F54: 7 | G54: 20 | H54: 0 | I54: 125 | J54: CB-ELT10209 | K54: 2 | L54: 0.06 | M54: 39871 | N54: 1 | O54: 1 | P54: 0 | Q54: 0 | R54: 0 | S54: 39322 | T54: 39506 | U54: 39687 | V54: 39871 | W54: 39871 | X54: 5 | Y54: FALSE | Z54: 54.2 | AA54: 1
A55: DJ030244 | B55: Petronas FERT 4.2000% 31.03.2009 | C55: Petronas FERT 4.2000% 31.03.2009 | D55: 750000000 | E55: PETRONAS FERT. | F55: 6 | G55: 24 | H55: 0 | I55: 115 | J55: CB-PFK10309 | K55: 2 | L55: 0.042 | M55: 39903 | N55: 1 | O55: 1 | P55: 0 | Q55: 0 | R55: 0 | S55: 39356 | T55: 39538 | U55: 39721 | V55: 39902 | W55: 39903 | X55: 5 | Y55: FALSE | Z55: 70 | AA55: 1
A56: DJ040542 | B56: KEV 5.6500% 08.01.2010 | C56: KEV 5.6500% 08.01.2010 | D56: 3402000000 | E56: KAPAR | F56: 7 | G56: 15 | H56: 0 | I56: 122 | J56: CB-KEV10110 | K56: 2 | L56: 0.0565 | M56: 40186 | N56: 1 | O56: 1 | P56: 0 | Q56: 0 | R56: 0 | S56: 39455 | T56: 39637 | U56: 39821 | V56: 40002 | W56: 40186 | X56: 5 | Y56: FALSE | Z56: 63.8 | AA56: 1
A57: DJ040543 | B57: KEV 5.8500% 08.07.2010 | C57: KEV 5.8500% 08.07.2010 | D57: 250000000 | E57: KAPAR | F57: 7 | G57: 15 | H57: 0 | I57: 122 | J57: CB-KEV10710 | K57: 2 | L57: 0.0585 | M57: 40367 | N57: 1 | O57: 1 | P57: 0 | Q57: 0 | R57: 0 | S57: 39455 | T57: 39637 | U57: 39821 | V57: 40002 | W57: 40367 | X57: 5 | Y57: FALSE | Z57: 63.8 | AA57: 1
A58: DJ041075 | B58: Ace Polymers 8.1500% 15.09.2010 | C58: Ace Polymers 8.1500% 15.09.2010 | D58: 70000000 | E58: ACEPOLY | F58: 0 | G58: 0 | H58: 0 | I58: 190 | J58: Ace Polymers 8. | K58: 2 | L58: 0.0815 | M58: 40436 | N58: 1 | O58: 1 | P58: 0 | Q58: 0 | R58: 0 | S58: 39340 | T58: 39524 | U58: 39708 | V58: 39889 | W58: 40436 | X58: 5 | Y58: FALSE | Z58: 0 | AA58: 1
A59: DJ041130 | B59: SSHMC 4.5000% 20.09.2010 | C59: SSHMC 4.5000% 20.09.2010 | D59: 425000000 | E59: SSHMC | F59: 13 | G59: 0 | H59: 0 | I59: 115 | J59: SIME | K59: 2 | L59: 0.045 | M59: 40441 | N59: 1 | O59: 1 | P59: 0 | Q59: 0 | R59: 0 | S59: 39345 | T59: 39528 | U59: 39713 | V59: 39892 | W59: 40441 | X59: 5 | Y59: FALSE | Z59: 0 | AA59: 1
A60: DJ041314 | B60: SAJ 5.9000% 25.10.2010 | C60: SAJ 5.9000% 25.10.2010 | D60: 150200000000 | E60: SAJ | F60: 7 | G60: 23 | H60: 0 | I60: 128 | J60: CB-SAJ11010 | K60: 2 | L60: 0.059 | M60: 40476 | N60: 1 | O60: 1 | P60: 0 | Q60: 0 | R60: 0 | S60: 39380 | T60: 39563 | U60: 39749 | V60: 39930 | W60: 40476 | X60: 5 | Y60: FALSE | Z60: 60.7 | AA60: 1
A61: DJ050467 | B61: KLBK 4.0000% 15.07.2010 | C61: KLBK 4.0000% 15.07.2010 | D61: 247000000 | E61: KLBK | F61: 0 | G61: 0 | H61: 0 | I61: 128 | J61: SIME | K61: 2 | L61: 0.04 | M61: 40374 | N61: 3 | O61: 1 | P61: 0 | Q61: 0 | R61: 0 | S61: 39462 | T61: 39644 | U61: 39828 | V61: 40009 | W61: 40374 | X61: 5 | Y61: FALSE | Z61: 0 | AA61: 1
A62: DJ051016 | B62: DRB Hicom 3.0000% 26.07.2010 | C62: DRB Hicom 3.0000% 26.07.2010 | D62: 680000000 | E62: DRBHCOM | F62: 6 | G62: 8 | H62: 0 | I62: 132 | J62: DRB 26/07/2010 | K62: 2 | L62: 0.03 | M62: 40385 | N62: 1 | O62: 0 | P62: 0 | Q62: 0 | R62: 0 | S62: 39475 | T62: 39655 | U62: 39839 | V62: 40020 | W62: 40385 | X62: 5 | Y62: FALSE | Z62: 100 | AA62: 1
A63: DJ051425 | B63: KESTURI 6.3500% 18.10.2010 | C63: KESTURI 6.3500% 18.10.2010 | D63: 780000000 | E63: KESTURI | F63: 0 | G63: 0 | H63: 0 | I63: 132 | J63: SIME | K63: 2 | L63: 0.0635 | M63: 40469 | N63: 1 | O63: 1 | P63: 0 | Q63: 0 | R63: 0 | S63: 39373 | T63: 39556 | U63: 39741 | V63: 39923 | W63: 40469 | X63: 5 | Y63: FALSE | Z63: 0 | AA63: 1
A64: DJ051709 | B64: Sacofa 4.6000% 18.11.2010 | C64: Sacofa 4.6000% 18.11.2010 | D64: 160000000 | E64: SACOFA | F64: 7 | G64: 0 | H64: 0 | I64: 115 | J64: SIME | K64: 2 | L64: 0.046 | M64: 40500 | N64: 1 | O64: 1 | P64: 0 | Q64: 0 | R64: 0 | S64: 39405 | T64: 39587 | U64: 39770 | V64: 39951 | W64: 40500 | X64: 5 | Y64: FALSE | Z64: 0 | AA64: 1
A65: DJ05351N | B65: MIDAS 6.4000% 27.06.2011 | C65: MIDAS 6.4000% 27.06.2011 | D65: 93000000 | E65: MIDAS PLANTATIO | F65: 9 | G65: 13 | H65: 0 | I65: 125 | J65: CB-MDS10611 | K65: 2 | L65: 0.064 | M65: 40721 | N65: 1 | O65: 1 | P65: 0 | Q65: 0 | R65: 0 | S65: 39443 | T65: 39626 | U65: 39812 | V65: 39993 | W65: 40721 | X65: 5 | Y65: FALSE | Z65: 58.5 | AA65: 1
A66: DJ05352V | B66: MIDAS 7.9000% 27.06.2011 | C66: MIDAS 7.9000% 27.06.2011 | D66: 93000000 | E66: MIDAS PLANTATIO | F66: 9 | G66: 13 | H66: 0 | I66: 135 | J66: CB-MDS20611 | K66: 2 | L66: 0.079 | M66: 40721 | N66: 1 | O66: 1 | P66: 0 | Q66: 0 | R66: 0 | S66: 39443 | T66: 39626 | U66: 39812 | V66: 39993 | W66: 40721 | X66: 5 | Y66: FALSE | Z66: 58.5 | AA66: 1
A67: DJ060109 | B67: Segari 5.4500% 11.05.2012 | C67: Segari 5.4500% 11.05.2012 | D67: 930000000 | E67: SEGARI | F67: 0 | G67: 0 | H67: 0 | I67: 122 | J67: SIME | K67: 2 | L67: 0.0545 | M67: 41040 | N67: 1 | O67: 1 | P67: 0 | Q67: 0 | R67: 0 | S67: 39398 | T67: 39580 | U67: 39763 | V67: 39944 | W67: 41040 | X67: 5 | Y67: FALSE | Z67: 0 | AA67: 1
A68: DK00037V | B68: Anjung Bahasa Sdn Bhd 8.0% 21/12/07 | C68: Anjung Bahasa Sdn Bhd 8.0% 21/12/07 | D68: 110000000 | E68: ANJUNG BAHASA | F68: 11 | G68: 3 | H68: 0 | I68: 122 | J68: CB-ANJ11207 | K68: 2 | L68: 0.08 | M68: 39437 | N68: 1 | O68: 1 | P68: 0 | Q68: 0 | R68: 0 | S68: 39437 | T68: 39622 | U68: 39622 | V68: 39622 | W68: 39437 | X68: 5 | Y68: FALSE | Z68: 62.5 | AA68: 1
A69: DK00962Z | B69: Sejingkat Power Corporation 7.650% 14/12/07 | C69: Sejingkat Power Corporation Sdn Bhd 7.650% 14/12/07 | D69: 195000000 | E69: SEJINGKAT POWER | F69: 7 | G69: 15 | H69: 0 | I69: 125 | J69: CB-SJK11207 | K69: 2 | L69: 0.0765 | M69: 39430 | N69: 1 | O69: 1 | P69: 0 | Q69: 0 | R69: 0 | S69: 39430 | T69: 39615 | U69: 39615 | V69: 39615 | W69: 39430 | X69: 5 | Y69: FALSE | Z69: 62.3 | AA69: 1
A70: DK011942 | B70: SILK 0.0000% 22.08.2008 | C70: SILK 0.0000% 22.08.2008 | D70: 2010000000 | E70: SILK | F70: 7 | G70: 20 | H70: 0 | I70: 135 | J70: CB-SLK10808 | K70: 2 | L70: 0 | M70: 39682 | N70: 3 | O70: 1 | P70: 0 | Q70: 0 | R70: 0 | S70: 39316 | T70: 39500 | U70: 39682 | V70: 39867 | W70: 39682 | X70: 5 | Y70: FALSE | Z70: 57.9 | AA70: 1
A71: DK011959 | B71: TTPC 7.3500% 12.09.2008 | C71: TTPC 7.3500% 12.09.2008 | D71: 1515000000 | E71: TTPC | F71: 7 | G71: 15 | H71: 0 | I71: 122 | J71: CB-TTP10908 | K71: 2 | L71: 0.0735 | M71: 39703 | N71: 1 | O71: 1 | P71: 0 | Q71: 0 | R71: 0 | S71: 39338 | T71: 39520 | U71: 39703 | V71: 39884 | W71: 39703 | X71: 5 | Y71: FALSE | Z71: 54.8 | AA71: 1
A72: DK01461V | B72: Tenaga 5.8500% 28.03.2008 | C72: Tenaga 5.8500% 28.03.2008 | D72: 200000000 | E72: TENAGA | F72: 7 | G72: 15 | H72: 0 | I72: 122 | J72: CB-TNB10308 | K72: 2 | L72: 0.0585 | M72: 39535 | N72: 1 | O72: 1 | P72: 0 | Q72: 0 | R72: 0 | S72: 39353 | T72: 39535 | U72: 39720 | V72: 39900 | W72: 39535 | X72: 5 | Y72: FALSE | Z72: 68.3 | AA72: 1
A73: DK01895V | B73: KFC 7.3500% 21.01.2008 | C73: KFC 7.3500% 21.01.2008 | D73: 300000000 | E73: KFC | F73: 3 | G73: 4 | H73: 0 | I73: 132 | J73: CB-KFC10108 | K73: 2 | L73: 0.0735 | M73: 39468 | N73: 1 | O73: 1 | P73: 0 | Q73: 0 | R73: 0 | S73: 39468 | T73: 39650 | U73: 39650 | V73: 39650 | W73: 39468 | X73: 5 | Y73: FALSE | Z73: 56 | AA73: 1
A74: DK01896A | B74: KFC 7.4500% 18.07.2008 | C74: KFC 7.4500% 18.07.2008 | D74: 300000000 | E74: KFC | F74: 3 | G74: 4 | H74: 0 | I74: 132 | J74: CB-KFC10708 | K74: 2 | L74: 0.0745 | M74: 39647 | N74: 1 | O74: 1 | P74: 0 | Q74: 0 | R74: 0 | S74: 39465 | T74: 39647 | U74: 39832 | V74: 39832 | W74: 39647 | X74: 5 | Y74: FALSE | Z74: 56 | AA74: 1
A75: DK01987S | B75: HLIB 6.3500% 23.07.2008 | C75: HLIB 6.3500% 23.07.2008 | D75: 250000000 | E75: HLIND | F75: 3 | G75: 2 | H75: 0 | I75: 132 | J75: CB-HLI10708 | K75: 2 | L75: 0.0635 | M75: 39652 | N75: 1 | O75: 1 | P75: 0 | Q75: 0 | R75: 0 | S75: 39470 | T75: 39652 | U75: 39836 | V75: 39836 | W75: 39652 | X75: 5 | Y75: FALSE | Z75: 60.4 | AA75: 1
A76: DK020006 | B76: Pahlawan Pwr 6.3500% 30.01.2009 | C76: Pahlawan Pwr 6.3500% 30.01.2009 | D76: 1300000000 | E76: PAHLAWAN | F76: 7 | G76: 15 | H76: 0 | I76: 122 | J76: Pahlawan Power | K76: 2 | L76: 0.0635 | M76: 39843 | N76: 1 | O76: 1 | P76: 0 | Q76: 0 | R76: 0 | S76: 39478 | T76: 39659 | U76: 39843 | V76: 40024 | W76: 39843 | X76: 5 | Y76: FALSE | Z76: 63.3 | AA76: 1
A77: DK020216 | B77: PLUS 6.1000% 29.05.2009 | C77: PLUS 6.1000% 29.05.2009 | D77: 550000000 | E77: PLUS | F77: 7 | G77: 20 | H77: 0 | I77: 115 | J77: Projek Lebuhray | K77: 2 | L77: 0.061 | M77: 39962 | N77: 1 | O77: -1 | P77: 0 | Q77: 0 | R77: 0 | S77: 39416 | T77: 39598 | U77: 39780 | V77: 39780 | W77: 39964 | X77: 5 | Y77: FALSE | Z77: 74.2 | AA77: 1
A78: DK020585 | B78: SCB 0.0000% 14.08.2009 | C78: SCB 0.0000% 14.08.2009 | D78: 625000000 | E78: SOVEREIGN | F78: 6 | G78: 1 | H78: 0 | I78: 115 | J78: CB-SVR10809 | K78: 2 | L78: 0 | M78: 40039 | N78: 3 | O78: 1 | P78: 0 | Q78: 0 | R78: 0 | S78: 39492 | T78: 39674 | U78: 39860 | V78: 40039 | W78: 40039 | X78: 5 | Y78: FALSE | Z78: 67.6 | AA78: 1
A79: DK020610 | B79: Kwantas 7.5000% 14.08.2009 | C79: Kwantas 7.5000% 14.08.2009 | D79: 1020000000 | E79: KWANTAS | F79: 9 | G79: 8 | H79: 0 | I79: 132 | J79: CB-KTS10809 | K79: 2 | L79: 0.075 | M79: 40039 | N79: 3 | O79: 1 | P79: 0 | Q79: 0 | R79: 0 | S79: 39492 | T79: 39674 | U79: 39860 | V79: 40039 | W79: 40039 | X79: 5 | Y79: FALSE | Z79: 55.1 | AA79: 1
A80: DK020701 | B80: Grand Saga 0.0000% 18.09.2009 | C80: Grand Saga 0.0000% 18.09.2009 | D80: 45000000 | E80: GRAND SAGA | F80: 7 | G80: 20 | H80: 0 | I80: 128 | J80: CB-GRS10909 | K80: 2 | L80: 0 | M80: 40074 | N80: 3 | O80: 1 | P80: 0 | Q80: 0 | R80: 0 | S80: 39343 | T80: 39525 | U80: 39709 | V80: 39890 | W80: 40074 | X80: 5 | Y80: FALSE | Z80: 100 | AA80: 1
A81: DK020802 | B81: KESAS 6.8500% 09.10.2009 | C81: KESAS 6.8500% 09.10.2009 | D81: 800000000 | E81: KESAS | F81: 7 | G81: 20 | H81: 0 | I81: 128 | J81: CB-KSS11009 | K81: 2 | L81: 0.0685 | M81: 40095 | N81: 3 | O81: 1 | P81: 0 | Q81: 0 | R81: 0 | S81: 39366 | T81: 39549 | U81: 39730 | V81: 39912 | W81: 40095 | X81: 5 | Y81: FALSE | Z81: 57.1 | AA81: 1
A82: DK020952 | B82: LITRAK 6.6500% 23.04.2009 | C82: LITRAK 6.6500% 23.04.2009 | D82: 2260000000 | E82: LITRAK | F82: 7 | G82: 20 | H82: 0 | I82: 125 | J82: CB-LTK10409 | K82: 2 | L82: 0.0665 | M82: 39926 | N82: 1 | O82: 1 | P82: 0 | Q82: 0 | R82: 0 | S82: 39378 | T82: 39561 | U82: 39744 | V82: 39926 | W82: 39926 | X82: 5 | Y82: FALSE | Z82: 59 | AA82: 1
A83: DK020953 | B83: LITRAK 6.8500% 23.10.2009 | C83: LITRAK 6.8500% 23.10.2009 | D83: 785000000 | E83: LITRAK | F83: 7 | G83: 20 | H83: 0 | I83: 125 | J83: CB-LTK11009 | K83: 2 | L83: 0.0685 | M83: 40109 | N83: 1 | O83: 1 | P83: 0 | Q83: 0 | R83: 0 | S83: 39378 | T83: 39561 | U83: 39744 | V83: 39926 | W83: 40109 | X83: 5 | Y83: FALSE | Z83: 59 | AA83: 1
A84: DK030090 | B84: ELITE 6.5000% 26.02.2010 | C84: ELITE 6.5000% 26.02.2010 | D84: 750000000 | E84: ELITE | F84: 7 | G84: 20 | H84: 0 | I84: 125 | J84: CB-ELT10210 | K84: 2 | L84: 0.065 | M84: 40235 | N84: 1 | O84: 1 | P84: 0 | Q84: 0 | R84: 0 | S84: 39322 | T84: 39506 | U84: 39686 | V84: 39870 | W84: 40235 | X84: 5 | Y84: FALSE | Z84: 54.2 | AA84: 1
A85: DK030245 | B85: Petronas FERT 4.3500% 31.03.2010 | C85: Petronas FERT 4.3500% 31.03.2010 | D85: 750000000 | E85: PETRONAS FERT. | F85: 6 | G85: 24 | H85: 0 | I85: 115 | J85: CB-PFK10310 | K85: 2 | L85: 0.0435 | M85: 40268 | N85: 1 | O85: 1 | P85: 0 | Q85: 0 | R85: 0 | S85: 39356 | T85: 39538 | U85: 39721 | V85: 39902 | W85: 40268 | X85: 5 | Y85: FALSE | Z85: 70 | AA85: 1
A86: DK030925 | B86: IRIS 7.0000% 29.10.2010 | C86: IRIS 7.0000% 29.10.2010 | D86: 135000000 | E86: IRIS TECH | F86: 0 | G86: 13 | H86: 0 | I86: 138 | J86: SIME | K86: 2 | L86: 0.07 | M86: 40480 | N86: 1 | O86: 1 | P86: 0 | Q86: 0 | R86: 0 | S86: 39386 | T86: 39568 | U86: 39750 | V86: 39932 | W86: 40480 | X86: 5 | Y86: FALSE | Z86: 0 | AA86: 1
A87: DK03717S | B87: Aldwich 0.0000% 15.08.2008 | C87: Aldwich 0.0000% 15.08.2008 | D87: 675000000 | E87: ALDWICH | F87: 13 | G87: 17 | H87: 0 | I87: 125 | J87: CB-ALD10808 | K87: 2 | L87: 0 | M87: 39675 | N87: 3 | O87: 1 | P87: 0 | Q87: 0 | R87: 0 | S87: 39493 | T87: 39675 | U87: 39860 | V87: 39860 | W87: 39675 | X87: 5 | Y87: FALSE | Z87: 65.2 | AA87: 1
A88: DK03923X | B88: New Pantai 5.9000% 29.10.2010 | C88: New Pantai 5.9000% 29.10.2010 | D88: 490000000 | E88: NPE | F88: 7 | G88: 20 | H88: 0 | I88: 128 | J88: CB-NPE11010 | K88: 2 | L88: 0.059 | M88: 40480 | N88: 1 | O88: 1 | P88: 0 | Q88: 0 | R88: 0 | S88: 39386 | T88: 39568 | U88: 39750 | V88: 39932 | W88: 40480 | X88: 5 | Y88: FALSE | Z88: 59.3 | AA88: 1
A89: DK040544 | B89: KEV 6.0500% 07.01.2011 | C89: KEV 6.0500% 07.01.2011 | D89: 3402000000 | E89: KAPAR | F89: 7 | G89: 15 | H89: 0 | I89: 122 | J89: CB-KEV10111 | K89: 2 | L89: 0.0605 | M89: 40550 | N89: 1 | O89: 1 | P89: 0 | Q89: 0 | R89: 0 | S89: 39455 | T89: 39636 | U89: 39820 | V89: 40001 | W89: 40550 | X89: 5 | Y89: FALSE | Z89: 63.8 | AA89: 1
A90: DK040545 | B90: KEV 6.2500% 08.07.2011 | C90: KEV 6.2500% 08.07.2011 | D90: 136000000 | E90: KAPAR | F90: 7 | G90: 15 | H90: 0 | I90: 122 | J90: Kapar Energy Ve | K90: 2 | L90: 0.0625 | M90: 40732 | N90: 1 | O90: 1 | P90: 0 | Q90: 0 | R90: 0 | S90: 39455 | T90: 39637 | U90: 39821 | V90: 40002 | W90: 40732 | X90: 5 | Y90: FALSE | Z90: 63.8 | AA90: 1
A91: DK041076 | B91: Ace Polymers 8.5500% 15.09.2011 | C91: Ace Polymers 8.5500% 15.09.2011 | D91: 70000000 | E91: ACEPOLY | F91: 0 | G91: 0 | H91: 0 | I91: 190 | J91: Ace Polymers 8. | K91: 2 | L91: 0.0855 | M91: 40801 | N91: 1 | O91: 1 | P91: 0 | Q91: 0 | R91: 0 | S91: 39340 | T91: 39524 | U91: 39708 | V91: 39889 | W91: 40801 | X91: 5 | Y91: FALSE | Z91: 0 | AA91: 1
A92: DK041327 | B92: SAJ 6.1500% 25.10.2011 | C92: SAJ 6.1500% 25.10.2011 | D92: 150200000000 | E92: SAJ | F92: 7 | G92: 23 | H92: 0 | I92: 128 | J92: CB-SAJ11011 | K92: 2 | L92: 0.0615 | M92: 40841 | N92: 1 | O92: 1 | P92: 0 | Q92: 0 | R92: 0 | S92: 39380 | T92: 39563 | U92: 39749 | V92: 39930 | W92: 40841 | X92: 5 | Y92: FALSE | Z92: 60.7 | AA92: 1
A93: DK041537 | B93: LUMUT 7.5000% 02.12.2011 | C93: LUMUT 7.5000% 02.12.2011 | D93: 60000000 | E93: LUMUT | F93: 0 | G93: 0 | H93: 0 | I93: 128 | J93: SIME | K93: 2 | L93: 0.075 | M93: 40879 | N93: 1 | O93: 1 | P93: 0 | Q93: 0 | R93: 0 | S93: 39419 | T93: 39602 | U93: 39784 | V93: 39966 | W93: 40879 | X93: 5 | Y93: FALSE | Z93: 0 | AA93: 1
A94: DK05349V | B94: MIDAS 6.2000% 27.06.2012 | C94: MIDAS 6.2000% 27.06.2012 | D94: 93000000 | E94: MIDAS PLANTATIO | F94: 9 | G94: 13 | H94: 0 | I94: 115 | J94: CB-MDS10612 | K94: 2 | L94: 0.062 | M94: 41087 | N94: 1 | O94: 1 | P94: 0 | Q94: 0 | R94: 0 | S94: 39443 | T94: 39626 | U94: 39812 | V94: 39993 | W94: 41087 | X94: 5 | Y94: FALSE | Z94: 58.5 | AA94: 1
A95: DK05350H | B95: MIDAS 6.6000% 27.06.2012 | C95: MIDAS 6.6000% 27.06.2012 | D95: 93000000 | E95: MIDAS PLANTATIO | F95: 9 | G95: 13 | H95: 0 | I95: 125 | J95: CB-MDS20612 | K95: 2 | L95: 0.066 | M95: 41087 | N95: 1 | O95: 1 | P95: 0 | Q95: 0 | R95: 0 | S95: 39443 | T95: 39626 | U95: 39812 | V95: 39993 | W95: 41087 | X95: 5 | Y95: FALSE | Z95: 58.5 | AA95: 1
A96: DK060184 | B96: KSPVSB 6.1200% 17.05.2013 | C96: KSPVSB 6.1200% 17.05.2013 | D96: 0 | E96: KWANTAS SPV | F96: 0 | G96: 0 | H96: 0 | I96: 115 | J96: IFRBD KWAN SPV | K96: 2 | L96: 0.0612 | M96: 41411 | N96: 1 | O96: 0 | P96: 0 | Q96: 0 | R96: 0 | S96: 39405 | T96: 39587 | U96: 39769 | V96: 39950 | W96: 41411 | X96: 5 | Y96: FALSE | Z96: 0 | AA96: 1
A97: DL00010Z | B97: Encorp 0.0000% 03.01.2008 | C97: Encorp 0.0000% 03.01.2008 | D97: 41300000 | E97: ENCORP-FI | F97: 2 | G97: 17 | H97: 0 | I97: 125 | J97: CB-ENC10108 | K97: 2 | L97: 0 | M97: 39450 | N97: 1 | O97: 1 | P97: 0 | Q97: 0 | R97: 0 | S97: 39450 | T97: 39632 | U97: 39632 | V97: 39632 | W97: 39450 | X97: 5 | Y97: FALSE | Z97: 60 | AA97: 1
A98: DL00039N | B98: Anjung Bahasa 8.0000% 22.12.2008 | C98: Anjung Bahasa 8.0000% 22.12.2008 | D98: 110000000 | E98: ANJUNG BAHASA | F98: 11 | G98: 3 | H98: 0 | I98: 122 | J98: CB-ANJ11208 | K98: 2 | L98: 0.08 | M98: 39804 | N98: 1 | O98: 1 | P98: 0 | Q98: 0 | R98: 0 | S98: 39619 | T98: 39622 | U98: 39804 | V98: 39986 | W98: 39804 | X98: 5 | Y98: FALSE | Z98: 75 | AA98: 1
A99: DL00065T | B99: SAJ 8.7500% 28.03.2008 | C99: SAJ 8.7500% 28.03.2008 | D99: 680000000 | E99: SAJ | F99: 7 | G99: 23 | H99: 0 | I99: 128 | J99: CB-SAJ10308 | K99: 2 | L99: 0.0875 | M99: 39535 | N99: 1 | O99: 1 | P99: 0 | Q99: 0 | R99: 0 | S99: 39353 | T99: 39535 | U99: 39720 | V99: 39900 | W99: 39535 | X99: 5 | Y99: FALSE | Z99: 60.7 | AA99: 1
A100: DL00222E | B100: Encorp 0.0000% 17.03.2008 | C100: Encorp 0.0000% 17.03.2008 | D100: 15000000 | E100: ENCORP | F100: 2 | G100: 17 | H100: 0 | I100: 132 | J100: CB-ENC10308 | K100: 2 | L100: 0 | M100: 39524 | N100: 3 | O100: 1 | P100: 0 | Q100: 0 | R100: 0 | S100: 38614 | T100: 38793 | U100: 38978 | V100: 38978 | W100: 39524 | X100: 5 | Y100: FALSE | Z100: 100 | AA100: 1
A101: DL00224Z | B101: Encorp 0.0000% 16.03.2009 | C101: Encorp 0.0000% 16.03.2009 | D101: 1321600000 | E101: ENCORP-FI | F101: 2 | G101: 17 | H101: 0 | I101: 132 | J101: CB-ENC10309 | K101: 2 | L101: 0 | M101: 39888 | N101: 3 | O101: 1 | P101: 0 | Q101: 0 | R101: 0 | S101: 39342 | T101: 39524 | U101: 39707 | V101: 39888 | W101: 39888 | X101: 5 | Y101: FALSE | Z101: 60 | AA101: 1
A102: DL00253Z | B102: LBT 0.0000% 07.07.2008 | C102: LBT 0.0000% 07.07.2008 | D102: 2260000000 | E102: LBT | F102: 7 | G102: 14 | H102: 0 | I102: 122 | J102: CB-LBT10708 | K102: 2 | L102: 0 | M102: 39636 | N102: 3 | O102: 1 | P102: 0 | Q102: 0 | R102: 0 | S102: 39454 | T102: 39636 | U102: 39820 | V102: 39820 | W102: 39636 | X102: 5 | Y102: FALSE | Z102: 61.7 | AA102: 1
A103: DL00310F | B103: SPLASH 3.5000% 18.07.2008 | C103: SPLASH 3.5000% 18.07.2008 | D103: 1407000000 | E103: SPLASH | F103: 7 | G103: 23 | H103: 0 | I103: 128 | J103: CB-SPA10708 | K103: 2 | L103: 0.035 | M103: 39647 | N103: 1 | O103: 1 | P103: 0 | Q103: 0 | R103: 0 | S103: 39465 | T103: 39647 | U103: 39832 | V103: 39832 | W103: 39647 | X103: 5 | Y103: FALSE | Z103: 58.6 | AA103: 1
A104: DL00552E | B104: Penang Brg 7.5500% 29.08.2008 | C104: Penang Brg 7.5500% 29.08.2008 | D104: 2000000000 | E104: PENANG BRIDGE | F104: 7 | G104: 20 | H104: 0 | I104: 125 | J104: CB-PNG10808 | K104: 2 | L104: 0.0755 | M104: 39689 | N104: 1 | O104: 1 | P104: 0 | Q104: 0 | R104: 0 | S104: 39324 | T104: 39507 | U104: 39689 | V104: 39874 | W104: 39689 | X104: 5 | Y104: FALSE | Z104: 64.2 | AA104: 1
A105: DL00764V | B105: Puncak Niaga 7.5000% 27.10.2008 | C105: Puncak Niaga 7.5000% 27.10.2008 | D105: 350000000 | E105: PUNCAK | F105: 7 | G105: 23 | H105: 0 | I105: 125 | J105: CB-PCK11008 | K105: 2 | L105: 0.075 | M105: 39748 | N105: 1 | O105: 1 | P105: 0 | Q105: 0 | R105: 0 | S105: 39384 | T105: 39566 | U105: 39748 | V105: 39930 | W105: 39748 | X105: 5 | Y105: FALSE | Z105: 58 | AA105: 1
A106: DL00963E | B106: Sejingkat Pwr 8.0000% 15.12.2008 | C106: Sejingkat Pwr 8.0000% 15.12.2008 | D106: 195000000 | E106: SEJINGKAT POWER | F106: 7 | G106: 15 | H106: 0 | I106: 125 | J106: CB-SJK11208 | K106: 2 | L106: 0.08 | M106: 39797 | N106: 3 | O106: 1 | P106: 0 | Q106: 0 | R106: 0 | S106: 39433 | T106: 39615 | U106: 39797 | V106: 39979 | W106: 39797 | X106: 5 | Y106: FALSE | Z106: 62.3 | AA106: 1
A107: DL01053V | B107: PRAIPOWER 7.7000% 26.02.2009 | C107: PRAIPOWER 7.7000% 26.02.2009 | D107: 780000000 | E107: PRAI POWER | F107: 7 | G107: 15 | H107: 0 | I107: 128 | J107: CB-PRP10209 | K107: 2 | L107: 0.077 | M107: 39870 | N107: 1 | O107: 1 | P107: 0 | Q107: 0 | R107: 0 | S107: 39321 | T107: 39504 | U107: 39686 | V107: 39870 | W107: 39870 | X107: 5 | Y107: FALSE | Z107: 64.8 | AA107: 1
A108: DL011020 | B108: SPRINT 4.0000% 06.02.2009 | C108: SPRINT 4.0000% 06.02.2009 | D108: 510000000 | E108: SPRINT | F108: 7 | G108: 20 | H108: 0 | I108: 138 | J108: CB-SPR10209 | K108: 2 | L108: 0.04 | M108: 39850 | N108: 1 | O108: 1 | P108: 0 | Q108: 0 | R108: 0 | S108: 39484 | T108: 39666 | U108: 39850 | V108: 40031 | W108: 39850 | X108: 5 | Y108: FALSE | Z108: 57.9 | AA108: 1
A109: DL011943 | B109: SILK 0.0000% 21.08.2009 | C109: SILK 0.0000% 21.08.2009 | D109: 2500000000 | E109: SILK | F109: 7 | G109: 0 | H109: 0 | I109: 180 | J109: SIME | K109: 2 | L109: 0 | M109: 40046 | N109: 1 | O109: 1 | P109: 0 | Q109: 0 | R109: 0 | S109: 39499 | T109: 39681 | U109: 39867 | V109: 40046 | W109: 40046 | X109: 5 | Y109: FALSE | Z109: 0 | AA109: 1
A110: DL011960 | B110: TTPC 7.6000% 11.09.2009 | C110: TTPC 7.6000% 11.09.2009 | D110: 1515000000 | E110: TTPC | F110: 7 | G110: 15 | H110: 0 | I110: 122 | J110: CB-TTP10909 | K110: 2 | L110: 0.076 | M110: 40067 | N110: 1 | O110: 1 | P110: 0 | Q110: 3 | R110: 1 | S110: 39338 | T110: 39520 | U110: 39703 | V110: 39884 | W110: 40067 | X110: 5 | Y110: FALSE | Z110: 54.8 | AA110: 1
A111: DL020007 | B111: Pahlawan Pwr 6.6500% 29.01.2010 | C111: Pahlawan Pwr 6.6500% 29.01.2010 | D111: 500000000 | E111: PAHLAWAN | F111: 7 | G111: 15 | H111: 0 | I111: 122 | J111: CB-PWN10110 | K111: 2 | L111: 0.0665 | M111: 40207 | N111: 1 | O111: 1 | P111: 0 | Q111: 0 | R111: 0 | S111: 39478 | T111: 39658 | U111: 39842 | V111: 40023 | W111: 40207 | X111: 5 | Y111: FALSE | Z111: 63.3 | AA111: 1
A112: DL020217 | B112: PLUS 6.4000% 31.05.2010 | C112: PLUS 6.4000% 31.05.2010 | D112: 5100000000 | E112: PLUS | F112: 7 | G112: 20 | H112: 0 | I112: 115 | J112: CB-PLU10510 | K112: 2 | L112: 0.064 | M112: 40329 | N112: 1 | O112: 1 | P112: 0 | Q112: 0 | R112: 0 | S112: 39416 | T112: 39598 | U112: 39783 | V112: 39965 | W112: 40329 | X112: 5 | Y112: FALSE | Z112: 74.2 | AA112: 1
A113: DL020702 | B113: Grand Saga 0.0000% 20.09.2010 | C113: Grand Saga 0.0000% 20.09.2010 | D113: 50000000 | E113: GRAND SAGA | F113: 7 | G113: 20 | H113: 0 | I113: 128 | J113: CB-GRS10910 | K113: 2 | L113: 0 | M113: 40441 | N113: 3 | O113: 1 | P113: 0 | Q113: 0 | R113: 0 | S113: 39345 | T113: 39527 | U113: 39713 | V113: 39892 | W113: 40441 | X113: 5 | Y113: FALSE | Z113: 100 | AA113: 1
A114: DL020817 | B114: KESAS 7.1500% 11.10.2010 | C114: KESAS 7.1500% 11.10.2010 | D114: 800000000 | E114: KESAS | F114: 7 | G114: 20 | H114: 0 | I114: 128 | J114: CB-KSS11010 | K114: 2 | L114: 0.0715 | M114: 40462 | N114: 3 | O114: 1 | P114: 0 | Q114: 0 | R114: 0 | S114: 39366 | T114: 39549 | U114: 39734 | V114: 39916 | W114: 40462 | X114: 5 | Y114: FALSE | Z114: 57.1 | AA114: 1
A115: DL020955 | B115: LITRAK 7.1500% 22.10.2010 | C115: LITRAK 7.1500% 22.10.2010 | D115: 395000000 | E115: LITRAK | F115: 7 | G115: 20 | H115: 0 | I115: 125 | J115: CB-LTK11010 | K115: 2 | L115: 0.0715 | M115: 40473 | N115: 1 | O115: 1 | P115: 0 | Q115: 0 | R115: 0 | S115: 39378 | T115: 39561 | U115: 39743 | V115: 39925 | W115: 40473 | X115: 5 | Y115: FALSE | Z115: 59 | AA115: 1
A116: DL030105 | B116: ELITE 7.0000% 28.02.2011 | C116: ELITE 7.0000% 28.02.2011 | D116: 210000000 | E116: ELITE | F116: 7 | G116: 20 | H116: 0 | I116: 125 | J116: CB-ELT10211 | K116: 2 | L116: 0.07 | M116: 40602 | N116: 1 | O116: 1 | P116: 0 | Q116: 0 | R116: 0 | S116: 39322 | T116: 39506 | U116: 39692 | V116: 39874 | W116: 40602 | X116: 5 | Y116: FALSE | Z116: 54.2 | AA116: 1
A117: DL030246 | B117: Petronas FERT 4.5500% 31.03.2011 | C117: Petronas FERT 4.5500% 31.03.2011 | D117: 750000000 | E117: PETRONAS FERT. | F117: 6 | G117: 24 | H117: 0 | I117: 115 | J117: CB-PFK10311 | K117: 2 | L117: 0.0455 | M117: 40633 | N117: 1 | O117: 1 | P117: 0 | Q117: 0 | R117: 0 | S117: 39356 | T117: 39538 | U117: 39721 | V117: 39902 | W117: 40633 | X117: 5 | Y117: FALSE | Z117: 70 | AA117: 1
A118: DL030363 | B118: Putrajaya Hldg 5.2500% 15.04.2011 | C118: Putrajaya Hldg 5.2500% 15.04.2011 | D118: 1515000000 | E118: PUTRAJAYA | F118: 11 | G118: 16 | H118: 0 | I118: 115 | J118: CB-PUJ10411 | K118: 2 | L118: 0.0525 | M118: 40648 | N118: 1 | O118: 1 | P118: 0 | Q118: 0 | R118: 0 | S118: 39372 | T118: 39555 | U118: 39736 | V118: 39918 | W118: 40648 | X118: 5 | Y118: FALSE | Z118: 69.6 | AA118: 1
A119: DL03716A | B119: Aldwich 0.0000% 14.08.2009 | C119: Aldwich 0.0000% 14.08.2009 | D119: 675000000 | E119: ALDWICH | F119: 13 | G119: 17 | H119: 0 | I119: 125 | J119: CB-ALD10809 | K119: 2 | L119: 0 | M119: 40039 | N119: 3 | O119: 1 | P119: 0 | Q119: 0 | R119: 0 | S119: 39492 | T119: 39674 | U119: 39860 | V119: 40039 | W119: 40039 | X119: 5 | Y119: FALSE | Z119: 65.2 | AA119: 1
A120: DL03924H | B120: New Pantai 5.9000% 31.10.2011 | C120: New Pantai 5.9000% 31.10.2011 | D120: 490000000 | E120: NPE | F120: 7 | G120: 20 | H120: 0 | I120: 128 | J120: CB-NPE11011 | K120: 2 | L120: 0.059 | M120: 40847 | N120: 1 | O120: 1 | P120: 0 | Q120: 0 | R120: 0 | S120: 39386 | T120: 39568 | U120: 39752 | V120: 39933 | W120: 40847 | X120: 5 | Y120: FALSE | Z120: 59.3 | AA120: 1
A121: DL040555 | B121: KEV 6.5500% 06.07.2012 | C121: KEV 6.5500% 06.07.2012 | D121: 490000000 | E121: KAPAR | F121: 7 | G121: 15 | H121: 0 | I121: 122 | J121: CB-KEV10712 | K121: 2 | L121: 0.0655 | M121: 41096 | N121: 1 | O121: 1 | P121: 0 | Q121: 0 | R121: 2 | S121: 39455 | T121: 39637 | U121: 39821 | V121: 40002 | W121: 41096 | X121: 5 | Y121: FALSE | Z121: 63.8 | AA121: 1
A122: DL040568 | B122: KEV 6.4000% 06.01.2012 | C122: KEV 6.4000% 06.01.2012 | D122: 3402000000 | E122: KAPAR | F122: 7 | G122: 15 | H122: 0 | I122: 122 | J122: CB-KEV10112 | K122: 2 | L122: 0.064 | M122: 40914 | N122: 1 | O122: 1 | P122: 0 | Q122: 0 | R122: 2 | S122: 39455 | T122: 39637 | U122: 39821 | V122: 40002 | W122: 40914 | X122: 5 | Y122: FALSE | Z122: 63.8 | AA122: 1
A123: DL041328 | B123: SAJ 6.4000% 25.10.2012 | C123: SAJ 6.4000% 25.10.2012 | D123: 150200000000 | E123: SAJ | F123: 7 | G123: 23 | H123: 0 | I123: 128 | J123: CB-SAJ11012 | K123: 2 | L123: 0.064 | M123: 41207 | N123: 1 | O123: 1 | P123: 0 | Q123: 0 | R123: 0 | S123: 39380 | T123: 39563 | U123: 39749 | V123: 39930 | W123: 41207 | X123: 5 | Y123: FALSE | Z123: 60.7 | AA123: 1
A124: DL04470X | B124: Selia 0.0000% 30.03.2012 | C124: Selia 0.0000% 30.03.2012 | D124: 316000000 | E124: SELIA | F124: 7 | G124: 0 | H124: 0 | I124: 128 | J124: SIME | K124: 2 | L124: 0 | M124: 40998 | N124: 3 | O124: 1 | P124: 0 | Q124: 0 | R124: 0 | S124: 39355 | T124: 39537 | U124: 39721 | V124: 39902 | W124: 40998 | X124: 5 | Y124: FALSE | Z124: 0 | AA124: 1
A125: DL050233 | B125: LKPP 6.4500% 31.05.2013 | C125: LKPP 6.4500% 31.05.2013 | D125: 300000000 | E125: LKPP | F125: 9 | G125: 16 | H125: 0 | I125: 115 | J125: SIME | K125: 2 | L125: 0.0645 | M125: 41425 | N125: 1 | O125: 1 | P125: 0 | Q125: 0 | R125: 0 | S125: 39416 | T125: 39598 | U125: 39783 | V125: 39965 | W125: 41425 | X125: 5 | Y125: FALSE | Z125: 0 | AA125: 1
A126: DL051596 | B126: SSPV 6.9500% 25.10.2012 | C126: SSPV 6.9500% 25.10.2012 | D126: 195000000 | E126: SSPV | F126: 42 | G126: 0 | H126: 0 | I126: 132 | J126: SIME | K126: 2 | L126: 0.0695 | M126: 41207 | N126: 1 | O126: 1 | P126: 0 | Q126: 0 | R126: 0 | S126: 39381 | T126: 39566 | U126: 39749 | V126: 39930 | W126: 41207 | X126: 5 | Y126: FALSE | Z126: 0 | AA126: 1
A127: DL051878 | B127: Golden Crop 5.7500% 22.11.2012 | C127: Golden Crop 5.7500% 22.11.2012 | D127: 442000000 | E127: GOLDEN CROP | F127: 9 | G127: 16 | H127: 0 | I127: 115 | J127: SIME | K127: 2 | L127: 0.0575 | M127: 41235 | N127: 1 | O127: 1 | P127: 0 | Q127: 0 | R127: 0 | S127: 39408 | T127: 39590 | U127: 39776 | V127: 39955 | W127: 41235 | X127: 5 | Y127: FALSE | Z127: 0 | AA127: 1
A128: DL051887 | B128: Golden Crop 6.2500% 22.11.2012 | C128: Golden Crop 6.2500% 22.11.2012 | D128: 442000000 | E128: GOLDEN CROP | F128: 4 | G128: 0 | H128: 0 | I128: 125 | J128: SIME | K128: 2 | L128: 0.0625 | M128: 41235 | N128: 1 | O128: 1 | P128: 0 | Q128: 0 | R128: 0 | S128: 39408 | T128: 39590 | U128: 39776 | V128: 39955 | W128: 41235 | X128: 5 | Y128: FALSE | Z128: 0 | AA128: 1
A129: DL05348T | B129: MIDAS 6.4000% 27.06.2013 | C129: MIDAS 6.4000% 27.06.2013 | D129: 93000000 | E129: MIDAS PLANTATIO | F129: 9 | G129: 13 | H129: 0 | I129: 115 | J129: CB-MDS10613 | K129: 2 | L129: 0.064 | M129: 41452 | N129: 1 | O129: 1 | P129: 0 | Q129: 0 | R129: 0 | S129: 39443 | T129: 39626 | U129: 39812 | V129: 39993 | W129: 41452 | X129: 5 | Y129: FALSE | Z129: 58.5 | AA129: 1
A130: DM00011E | B130: Encorp 0.0000% 03.07.2008 | C130: Encorp 0.0000% 03.07.2008 | D130: 510000000 | E130: ENCORP-FI | F130: 2 | G130: 17 | H130: 0 | I130: 132 | J130: CB-ENC10708 | K130: 2 | L130: 0 | M130: 39632 | N130: 3 | O130: 1 | P130: 0 | Q130: 0 | R130: 0 | S130: 39450 | T130: 39632 | U130: 39818 | V130: 39818 | W130: 39632 | X130: 5 | Y130: FALSE | Z130: 60 | AA130: 1
A131: DM00041F | B131: Anjung Bahasa 8.2500% 22.12.2009 | C131: Anjung Bahasa 8.2500% 22.12.2009 | D131: 110000000 | E131: ANJUNG BAHASA | F131: 11 | G131: 3 | H131: 0 | I131: 122 | J131: CB-ANJ11209 | K131: 2 | L131: 0.0825 | M131: 40169 | N131: 1 | O131: 1 | P131: 0 | Q131: 0 | R131: 0 | S131: 39619 | T131: 39622 | U131: 39804 | V131: 39986 | W131: 40169 | X131: 5 | Y131: FALSE | Z131: 75 | AA131: 1
A132: DM00082W | B132: SAJ 9.2000% 30.03.2009 | C132: SAJ 9.2000% 30.03.2009 | D132: 680000000 | E132: SAJ | F132: 7 | G132: 23 | H132: 0 | I132: 128 | J132: CB-SAJ10309 | K132: 2 | L132: 0.092 | M132: 39902 | N132: 1 | O132: 1 | P132: 0 | Q132: 0 | R132: 0 | S132: 39356 | T132: 39538 | U132: 39721 | V132: 39902 | W132: 39902 | X132: 5 | Y132: FALSE | Z132: 60.7 | AA132: 1
A133: DM00223V | B133: Encorp 0.0000% 15.09.2008 | C133: Encorp 0.0000% 15.09.2008 | D133: 510000000 | E133: ENCORP-FI | F133: 2 | G133: 17 | H133: 0 | I133: 132 | J133: CB-ENC10908 | K133: 2 | L133: 0 | M133: 39706 | N133: 3 | O133: 1 | P133: 0 | Q133: 0 | R133: 0 | S133: 39342 | T133: 39524 | U133: 39706 | V133: 39888 | W133: 39706 | X133: 5 | Y133: FALSE | Z133: 60 | AA133: 1
A134: DM00254E | B134: LBT 0.0000% 07.01.2009 | C134: LBT 0.0000% 07.01.2009 | D134: 445000000 | E134: LBT | F134: 7 | G134: 14 | H134: 0 | I134: 122 | J134: CB-LBT10109 | K134: 2 | L134: 0 | M134: 39820 | N134: 3 | O134: 1 | P134: 0 | Q134: 0 | R134: 0 | S134: 39454 | T134: 39636 | U134: 39820 | V134: 40001 | W134: 39820 | X134: 5 | Y134: FALSE | Z134: 61.7 | AA134: 1
A135: DM00311A | B135: SPLASH 3.5000% 17.07.2009 | C135: SPLASH 3.5000% 17.07.2009 | D135: 1407000000 | E135: SPLASH | F135: 7 | G135: 23 | H135: 0 | I135: 128 | J135: CB-SPA10709 | K135: 2 | L135: 0.035 | M135: 40011 | N135: 1 | O135: 1 | P135: 0 | Q135: 0 | R135: 0 | S135: 39465 | T135: 39646 | U135: 39832 | V135: 40011 | W135: 40011 | X135: 5 | Y135: FALSE | Z135: 58.6 | AA135: 1
A136: DM00553V | B136: Penang Brg 7.8000% 28.08.2009 | C136: Penang Brg 7.8000% 28.08.2009 | D136: 80000000 | E136: PENANG BRIDGE | F136: 7 | G136: 20 | H136: 0 | I136: 125 | J136: CB-PNG10809 | K136: 2 | L136: 0.078 | M136: 40053 | N136: 1 | O136: 1 | P136: 0 | Q136: 0 | R136: 0 | S136: 39324 | T136: 39507 | U136: 39688 | V136: 39874 | W136: 40053 | X136: 5 | Y136: FALSE | Z136: 100 | AA136: 1
A137: DM00765W | B137: Puncak Niaga 7.7000% 27.10.2009 | C137: Puncak Niaga 7.7000% 27.10.2009 | D137: 100000000 | E137: PUNCAK | F137: 7 | G137: 23 | H137: 0 | I137: 125 | J137: CB-PCK11009 | K137: 2 | L137: 0.077 | M137: 40113 | N137: 1 | O137: 1 | P137: 0 | Q137: 0 | R137: 0 | S137: 39384 | T137: 39566 | U137: 39749 | V137: 39930 | W137: 40113 | X137: 5 | Y137: FALSE | Z137: 58 | AA137: 1
A138: DM00964V | B138: Sejingkat Power Corporation Sdn Bhd 8.25% 15.12.09 | C138: Sejingkat Power Corporation Sdn Bhd 8.25% 15.12.09 | D138: 30000000 | E138: SEJINGKAT POWER | F138: 102 | G138: 15 | H138: 0 | I138: 125 | J138: SEJINGKAT POWER | K138: 2 | L138: 0.0825 | M138: 40162 | N138: 1 | O138: 1 | P138: 0 | Q138: 0 | R138: 0 | S138: 39433 | T138: 39615 | U138: 39797 | V138: 39979 | W138: 40162 | X138: 5 | Y138: FALSE | Z138: 100 | AA138: 1
A139: DM01070E | B139: PRAIPOWER 8.1000% 26.02.2010 | C139: PRAIPOWER 8.1000% 26.02.2010 | D139: 780000000 | E139: PRAI POWER | F139: 7 | G139: 15 | H139: 0 | I139: 128 | J139: CB-PRP10210 | K139: 2 | L139: 0.081 | M139: 40235 | N139: 1 | O139: 1 | P139: 0 | Q139: 2 | R139: 0 | S139: 39321 | T139: 39504 | U139: 39686 | V139: 39870 | W139: 40235 | X139: 5 | Y139: FALSE | Z139: 64.8 | AA139: 1
A140: DM011944 | B140: SILK 0.0000% 20.08.2010 | C140: SILK 0.0000% 20.08.2010 | D140: 2500000000 | E140: SILK | F140: 7 | G140: 0 | H140: 0 | I140: 190 | J140: Sistem Lingkara | K140: 2 | L140: 0 | M140: 40410 | N140: 1 | O140: 1 | P140: 0 | Q140: 0 | R140: 0 | S140: 39498 | T140: 39680 | U140: 39864 | V140: 40045 | W140: 40410 | X140: 5 | Y140: FALSE | Z140: 0 | AA140: 1
A141: DM011961 | B141: TTPC 7.9000% 13.09.2010 | C141: TTPC 7.9000% 13.09.2010 | D141: 115000000 | E141: TTPC | F141: 7 | G141: 15 | H141: 0 | I141: 122 | J141: CB-TTP10910 | K141: 2 | L141: 0.079 | M141: 40434 | N141: 1 | O141: 1 | P141: 0 | Q141: 0 | R141: 0 | S141: 39338 | T141: 39520 | U141: 39706 | V141: 39885 | W141: 40434 | X141: 5 | Y141: FALSE | Z141: 100 | AA141: 1
A142: DM020218 | B142: PLUS 6.7000% 31.05.2011 | C142: PLUS 6.7000% 31.05.2011 | D142: 5100000000 | E142: PLUS | F142: 7 | G142: 20 | H142: 0 | I142: 115 | J142: CB-PLU10511 | K142: 2 | L142: 0.067 | M142: 40694 | N142: 1 | O142: 1 | P142: 0 | Q142: 0 | R142: 0 | S142: 39416 | T142: 39598 | U142: 39783 | V142: 39965 | W142: 40694 | X142: 5 | Y142: FALSE | Z142: 74.2 | AA142: 1
A143: DM020818 | B143: KESAS 7.4500% 11.10.2011 | C143: KESAS 7.4500% 11.10.2011 | D143: 800000000 | E143: KESAS | F143: 7 | G143: 20 | H143: 0 | I143: 128 | J143: CB-KSS11011 | K143: 2 | L143: 0.0745 | M143: 40827 | N143: 3 | O143: 1 | P143: 0 | Q143: 0 | R143: 0 | S143: 39366 | T143: 39549 | U143: 39734 | V143: 39916 | W143: 40827 | X143: 5 | Y143: FALSE | Z143: 57.1 | AA143: 1
A144: DM020956 | B144: LITRAK 7.3000% 22.04.2011 | C144: LITRAK 7.3000% 22.04.2011 | D144: 785000000 | E144: LITRAK | F144: 7 | G144: 20 | H144: 0 | I144: 125 | J144: CB-LTK10411 | K144: 2 | L144: 0.073 | M144: 40655 | N144: 1 | O144: 1 | P144: 0 | Q144: 0 | R144: 0 | S144: 39378 | T144: 39561 | U144: 39743 | V144: 39925 | W144: 40655 | X144: 5 | Y144: FALSE | Z144: 59 | AA144: 1
A145: DM020957 | B145: LITRAK 7.4500% 21.10.2011 | C145: LITRAK 7.4500% 21.10.2011 | D145: 785000000 | E145: LITRAK | F145: 7 | G145: 20 | H145: 0 | I145: 125 | J145: CB-LTK11011 | K145: 2 | L145: 0.0745 | M145: 40837 | N145: 1 | O145: 1 | P145: 0 | Q145: 0 | R145: 0 | S145: 39378 | T145: 39561 | U145: 39742 | V145: 39924 | W145: 40837 | X145: 5 | Y145: FALSE | Z145: 59 | AA145: 1
A146: DM02436X | B146: PLUS 0.0000% 20.06.2011 | C146: PLUS 0.0000% 20.06.2011 | D146: 2260000000 | E146: PLUS | F146: 7 | G146: 20 | H146: 0 | I146: 115 | J146: CB-PLU10611 | K146: 2 | L146: 0 | M146: 40714 | N146: 1 | O146: 1 | P146: 0 | Q146: 0 | R146: 0 | S146: 39437 | T146: 39619 | U146: 39804 | V146: 39986 | W146: 40714 | X146: 5 | Y146: FALSE | Z146: 73.2 | AA146: 1
A147: DM02437W | B147: PLUS 0.0000% 20.12.2011 | C147: PLUS 0.0000% 20.12.2011 | D147: 5600000000 | E147: PLUS | F147: 7 | G147: 20 | H147: 0 | I147: 115 | J147: CB-PLU11211 | K147: 2 | L147: 0 | M147: 40897 | N147: 1 | O147: 1 | P147: 0 | Q147: 0 | R147: 0 | S147: 39437 | T147: 39619 | U147: 39804 | V147: 39986 | W147: 40897 | X147: 5 | Y147: FALSE | Z147: 73.2 | AA147: 1
A148: DM030122 | B148: ELITE 7.0000% 28.02.2012 | C148: ELITE 7.0000% 28.02.2012 | D148: 300000000 | E148: ELITE | F148: 7 | G148: 20 | H148: 0 | I148: 125 | J148: CB-ELT10212 | K148: 2 | L148: 0.07 | M148: 40967 | N148: 1 | O148: 1 | P148: 0 | Q148: 0 | R148: 0 | S148: 39322 | T148: 39506 | U148: 39688 | V148: 39874 | W148: 40967 | X148: 5 | Y148: FALSE | Z148: 54.2 | AA148: 1
A149: DM030247 | B149: Petronas FERT 4.7500% 30.03.2012 | C149: Petronas FERT 4.7500% 30.03.2012 | D149: 750000000 | E149: PETRONAS FERT. | F149: 6 | G149: 24 | H149: 0 | I149: 115 | J149: CB-PFK10312 | K149: 2 | L149: 0.0475 | M149: 40998 | N149: 1 | O149: 1 | P149: 0 | Q149: 0 | R149: 0 | S149: 39356 | T149: 39538 | U149: 39721 | V149: 39902 | W149: 40998 | X149: 5 | Y149: FALSE | Z149: 70 | AA149: 1
A150: DM03715X | B150: Aldwich 0.0000% 13.08.2010 | C150: Aldwich 0.0000% 13.08.2010 | D150: 675000000 | E150: ALDWICH | F150: 13 | G150: 17 | H150: 0 | I150: 125 | J150: CB-ALD10810 | K150: 2 | L150: 0 | M150: 40403 | N150: 3 | O150: 1 | P150: 0 | Q150: 0 | R150: 0 | S150: 39491 | T150: 39673 | U150: 39857 | V150: 40038 | W150: 40403 | X150: 5 | Y150: FALSE | Z150: 65.2 | AA150: 1
A151: DM03926S | B151: New Pantai 5.9000% 31.10.2012 | C151: New Pantai 5.9000% 31.10.2012 | D151: 490000000 | E151: NPE | F151: 7 | G151: 20 | H151: 0 | I151: 128 | J151: CB-NPE11012 | K151: 2 | L151: 0.059 | M151: 41213 | N151: 1 | O151: 1 | P151: 0 | Q151: 0 | R151: 0 | S151: 39386 | T151: 39568 | U151: 39752 | V151: 39933 | W151: 41213 | X151: 5 | Y151: FALSE | Z151: 59.3 | AA151: 1
A152: DM040556 | B152: KEV 6.7000% 08.01.2013 | C152: KEV 6.7000% 08.01.2013 | D152: 3402000000 | E152: KAPAR | F152: 7 | G152: 15 | H152: 0 | I152: 122 | J152: CB-KEV10113 | K152: 2 | L152: 0.067 | M152: 41282 | N152: 1 | O152: 1 | P152: 0 | Q152: 0 | R152: 0 | S152: 39455 | T152: 39637 | U152: 39821 | V152: 40002 | W152: 41282 | X152: 5 | Y152: FALSE | Z152: 63.8 | AA152: 1
A153: DM040557 | B153: KEV 6.8500% 08.07.2013 | C153: KEV 6.8500% 08.07.2013 | D153: 3402000000 | E153: KAPAR | F153: 7 | G153: 15 | H153: 0 | I153: 122 | J153: CB-KEV10713 | K153: 2 | L153: 0.0685 | M153: 41463 | N153: 1 | O153: 1 | P153: 0 | Q153: 0 | R153: 0 | S153: 39455 | T153: 39637 | U153: 39821 | V153: 40002 | W153: 41463 | X153: 5 | Y153: FALSE | Z153: 63.8 | AA153: 1
A154: DM041133 | B154: SSHMC 4.5000% 20.09.2013 | C154: SSHMC 4.5000% 20.09.2013 | D154: 425000000 | E154: SSHMC | F154: 0 | G154: 0 | H154: 0 | I154: 115 | J154: SIME | K154: 2 | L154: 0.045 | M154: 41537 | N154: 1 | O154: 1 | P154: 0 | Q154: 0 | R154: 0 | S154: 39345 | T154: 39528 | U154: 39713 | V154: 39892 | W154: 41537 | X154: 5 | Y154: FALSE | Z154: 0 | AA154: 1
A155: DM041329 | B155: SAJ 6.7500% 25.10.2013 | C155: SAJ 6.7500% 25.10.2013 | D155: 1280000000 | E155: SAJ | F155: 7 | G155: 23 | H155: 0 | I155: 128 | J155: CB-SAJ11013 | K155: 2 | L155: 0.0675 | M155: 41572 | N155: 1 | O155: 1 | P155: 0 | Q155: 0 | R155: 0 | S155: 39380 | T155: 39563 | U155: 39749 | V155: 39930 | W155: 41572 | X155: 5 | Y155: FALSE | Z155: 60.7 | AA155: 1
A156: DM04471H | B156: Selia 0.0000% 29.03.2013 | C156: Selia 0.0000% 29.03.2013 | D156: 316000000 | E156: SELIA | F156: 7 | G156: 0 | H156: 0 | I156: 128 | J156: SIME | K156: 2 | L156: 0 | M156: 41362 | N156: 3 | O156: 1 | P156: 0 | Q156: 0 | R156: 0 | S156: 39170 | T156: 39536 | U156: 39720 | V156: 39901 | W156: 41362 | X156: 5 | Y156: FALSE | Z156: 0 | AA156: 1
A157: DM060058 | B157: Penang Brg 0.0000% 31.03.2015 | C157: Penang Brg 0.0000% 31.03.2015 | D157: 695000000 | E157: PENANG BRIDGE | F157: 7 | G157: 20 | H157: 0 | I157: 125 | J157: CB-PNG10315 | K157: 2 | L157: 0 | M157: 42094 | N157: 1 | O157: 1 | P157: 0 | Q157: 0 | R157: 0 | S157: 39356 | T157: 39538 | U157: 39721 | V157: 39903 | W157: 42094 | X157: 5 | Y157: FALSE | Z157: 60.4 | AA157: 1
A158: DN00012V | B158: Encorp 0.0000% 03.07.2009 | C158: Encorp 0.0000% 03.07.2009 | D158: 1321600000 | E158: ENCORP-FI | F158: 2 | G158: 17 | H158: 0 | I158: 132 | J158: CB-ENC10709 | K158: 2 | L158: 0 | M158: 39997 | N158: 3 | O158: 1 | P158: 0 | Q158: 0 | R158: 0 | S158: 39450 | T158: 39632 | U158: 39818 | V158: 39997 | W158: 39997 | X158: 5 | Y158: FALSE | Z158: 60 | AA158: 1
A159: DN00101E | B159: SAJ 9.7000% 29.03.2010 | C159: SAJ 9.7000% 29.03.2010 | D159: 680000000 | E159: SAJ | F159: 7 | G159: 23 | H159: 0 | I159: 128 | J159: CB-SAJ10310 | K159: 2 | L159: 0.097 | M159: 40266 | N159: 1 | O159: 1 | P159: 0 | Q159: 0 | R159: 0 | S159: 39356 | T159: 39538 | U159: 39720 | V159: 39902 | W159: 40266 | X159: 5 | Y159: FALSE | Z159: 60.7 | AA159: 1
A160: DN00312N | B160: SPLASH 3.5000% 19.07.2010 | C160: SPLASH 3.5000% 19.07.2010 | D160: 1407000000 | E160: SPLASH | F160: 7 | G160: 23 | H160: 0 | I160: 128 | J160: CB-SPA10710 | K160: 2 | L160: 0.035 | M160: 40378 | N160: 1 | O160: 1 | P160: 0 | Q160: 0 | R160: 0 | S160: 39465 | T160: 39650 | U160: 39832 | V160: 40014 | W160: 40378 | X160: 5 | Y160: FALSE | Z160: 58.6 | AA160: 1
A161: DN00554W | B161: Penang Brg 8.0000% 30.08.2010 | C161: Penang Brg 8.0000% 30.08.2010 | D161: 200000000 | E161: PENANG BRIDGE | F161: 7 | G161: 20 | H161: 0 | I161: 125 | J161: CB-PNG10810 | K161: 2 | L161: 0.08 | M161: 40420 | N161: 1 | O161: 1 | P161: 0 | Q161: 0 | R161: 0 | S161: 39324 | T161: 39507 | U161: 39689 | V161: 39872 | W161: 40420 | X161: 5 | Y161: FALSE | Z161: 64.2 | AA161: 1
A162: DN00766T | B162: Puncak Niaga 7.9000% 27.10.2010 | C162: Puncak Niaga 7.9000% 27.10.2010 | D162: 100000000 | E162: PUNCAK | F162: 7 | G162: 23 | H162: 0 | I162: 125 | J162: CB-PCK11010 | K162: 2 | L162: 0.079 | M162: 40478 | N162: 1 | O162: 1 | P162: 0 | Q162: 0 | R162: 0 | S162: 39384 | T162: 39566 | U162: 39749 | V162: 39930 | W162: 40478 | X162: 5 | Y162: FALSE | Z162: 58 | AA162: 1
A163: DN01089A | B163: PRAIPOWER 8.3000% 28.02.2011 | C163: PRAIPOWER 8.3000% 28.02.2011 | D163: 780000000 | E163: PRAI POWER | F163: 7 | G163: 15 | H163: 0 | I163: 128 | J163: CB-PRP10211 | K163: 2 | L163: 0.083 | M163: 40602 | N163: 1 | O163: 1 | P163: 0 | Q163: 0 | R163: 0 | S163: 39504 | T163: 39507 | U163: 39692 | V163: 39874 | W163: 40602 | X163: 5 | Y163: FALSE | Z163: 64.8 | AA163: 1
A164: DN011025 | B164: SPRINT 4.0000% 08.08.2011 | C164: SPRINT 4.0000% 08.08.2011 | D164: 510000000 | E164: SPRINT | F164: 7 | G164: 20 | H164: 0 | I164: 138 | J164: CB-SPR10811 | K164: 2 | L164: 0.04 | M164: 40763 | N164: 1 | O164: 1 | P164: 0 | Q164: 0 | R164: 0 | S164: 39486 | T164: 39668 | U164: 39853 | V164: 40035 | W164: 40763 | X164: 5 | Y164: FALSE | Z164: 57.9 | AA164: 1
A165: DN011945 | B165: SILK 0.0000% 22.08.2011 | C165: SILK 0.0000% 22.08.2011 | D165: 2500000000 | E165: SILK | F165: 7 | G165: 0 | H165: 0 | I165: 190 | J165: SIME | K165: 2 | L165: 0 | M165: 40777 | N165: 1 | O165: 1 | P165: 0 | Q165: 0 | R165: 0 | S165: 39316 | T165: 39500 | U165: 39682 | V165: 39867 | W165: 40777 | X165: 5 | Y165: FALSE | Z165: 0 | AA165: 1
A166: DN011962 | B166: TTPC 8.3000% 13.09.2011 | C166: TTPC 8.3000% 13.09.2011 | D166: 1515000000 | E166: TTPC | F166: 7 | G166: 15 | H166: 0 | I166: 122 | J166: CB-TTP10911 | K166: 2 | L166: 0.083 | M166: 40799 | N166: 1 | O166: 1 | P166: 0 | Q166: 0 | R166: 0 | S166: 39338 | T166: 39520 | U166: 39706 | V166: 39885 | W166: 40799 | X166: 5 | Y166: FALSE | Z166: 54.8 | AA166: 1
A167: DN01569H | B167: BumiComBk 7.5000% 27.05.2011 | C167: BumiComBk 7.5000% 27.05.2011 | D167: 0 | E167: CIMB | F167: 0 | G167: 0 | H167: 0 | I167: 128 | J167: SIME | K167: 1 | L167: 0.075 | M167: 40690 | N167: 1 | O167: 0 | P167: 0 | Q167: 0 | R167: 0 | S167: 39230 | T167: 39595 | U167: 39960 | V167: 40325 | W167: 40690 | X167: 7 | Y167: FALSE | Z167: 0 | AA167: 1
A168: DN020009 | B168: Pahlawan Pwr 6.9000% 31.01.2012 | C168: Pahlawan Pwr 6.9000% 31.01.2012 | D168: 450000000 | E168: PAHLAWAN | F168: 7 | G168: 15 | H168: 0 | I168: 122 | J168: CB-PWN10112 | K168: 2 | L168: 0.069 | M168: 40939 | N168: 1 | O168: 1 | P168: 0 | Q168: 0 | R168: 0 | S168: 39478 | T168: 39660 | U168: 39846 | V168: 40025 | W168: 40939 | X168: 5 | Y168: FALSE | Z168: 63.3 | AA168: 1
A169: DN020223 | B169: PLUS 6.8500% 31.05.2012 | C169: PLUS 6.8500% 31.05.2012 | D169: 5100000000 | E169: PLUS | F169: 7 | G169: 20 | H169: 0 | I169: 115 | J169: CB-PLU10512 | K169: 2 | L169: 0.0685 | M169: 41060 | N169: 1 | O169: 1 | P169: 0 | Q169: 0 | R169: 0 | S169: 39416 | T169: 39598 | U169: 39783 | V169: 39965 | W169: 41060 | X169: 5 | Y169: FALSE | Z169: 74.2 | AA169: 1
A170: DN020819 | B170: KESAS 7.7000% 11.10.2012 | C170: KESAS 7.7000% 11.10.2012 | D170: 800000000 | E170: KESAS | F170: 7 | G170: 20 | H170: 0 | I170: 128 | J170: CB-KSS11012 | K170: 2 | L170: 0.077 | M170: 41193 | N170: 3 | O170: 1 | P170: 0 | Q170: 0 | R170: 0 | S170: 39366 | T170: 39549 | U170: 39734 | V170: 39916 | W170: 41193 | X170: 5 | Y170: FALSE | Z170: 57.1 | AA170: 1
A171: DN02438T | B171: PLUS 0.0000% 20.06.2012 | C171: PLUS 0.0000% 20.06.2012 | D171: 2260000000 | E171: PLUS | F171: 7 | G171: 20 | H171: 0 | I171: 115 | J171: CB-PLU10612 | K171: 2 | L171: 0 | M171: 41080 | N171: 1 | O171: 1 | P171: 0 | Q171: 0 | R171: 0 | S171: 39437 | T171: 39619 | U171: 39804 | V171: 39986 | W171: 41080 | X171: 5 | Y171: FALSE | Z171: 73.2 | AA171: 1
A172: DN02439X | B172: PLUS 0.0000% 20.12.2012 | C172: PLUS 0.0000% 20.12.2012 | D172: 2260000000 | E172: PLUS | F172: 7 | G172: 20 | H172: 0 | I172: 115 | J172: CB-PLU11212 | K172: 2 | L172: 0 | M172: 41263 | N172: 1 | O172: 1 | P172: 0 | Q172: 0 | R172: 0 | S172: 39437 | T172: 39619 | U172: 39804 | V172: 39986 | W172: 41263 | X172: 5 | Y172: FALSE | Z172: 73.2 | AA172: 1
A173: DN030141 | B173: ELITE 7.5000% 28.02.2013 | C173: ELITE 7.5000% 28.02.2013 | D173: 150000000 | E173: ELITE | F173: 7 | G173: 20 | H173: 0 | I173: 125 | J173: CB-ELT10213 | K173: 2 | L173: 0.075 | M173: 41333 | N173: 1 | O173: 1 | P173: 0 | Q173: 0 | R173: 0 | S173: 39322 | T173: 39506 | U173: 39692 | V173: 39874 | W173: 41333 | X173: 5 | Y173: FALSE | Z173: 54.2 | AA173: 1
A174: DN030248 | B174: Petronas FERT 4.8500% 29.03.2013 | C174: Petronas FERT 4.8500% 29.03.2013 | D174: 750000000 | E174: PETRONAS FERT. | F174: 6 | G174: 24 | H174: 0 | I174: 115 | J174: CB-PFK10313 | K174: 2 | L174: 0.0485 | M174: 41362 | N174: 1 | O174: 1 | P174: 0 | Q174: 0 | R174: 0 | S174: 39356 | T174: 39538 | U174: 39720 | V174: 39902 | W174: 41362 | X174: 5 | Y174: FALSE | Z174: 70 | AA174: 1
A175: DN030364 | B175: Putrajaya Hldg 6.0000% 17.04.2013 | C175: Putrajaya Hldg 6.0000% 17.04.2013 | D175: 90000000 | E175: PUTRAJAYA | F175: 11 | G175: 16 | H175: 0 | I175: 115 | J175: CB-PUJ10413 | K175: 2 | L175: 0.06 | M175: 41381 | N175: 1 | O175: 1 | P175: 0 | Q175: 0 | R175: 0 | S175: 39372 | T175: 39555 | U175: 39738 | V175: 39920 | W175: 41381 | X175: 5 | Y175: FALSE | Z175: 68.6 | AA175: 1
A176: DN03714Z | B176: Aldwich 0.0000% 15.08.2011 | C176: Aldwich 0.0000% 15.08.2011 | D176: 675000000 | E176: ALDWICH | F176: 13 | G176: 17 | H176: 0 | I176: 125 | J176: CB-ALD10811 | K176: 2 | L176: 0 | M176: 40770 | N176: 3 | O176: 1 | P176: 0 | Q176: 0 | R176: 0 | S176: 39493 | T176: 39675 | U176: 39860 | V176: 40042 | W176: 40770 | X176: 5 | Y176: FALSE | Z176: 65.2 | AA176: 1
A177: DN040558 | B177: KEV 7.0000% 08.01.2014 | C177: KEV 7.0000% 08.01.2014 | D177: 3402000000 | E177: KAPAR | F177: 7 | G177: 15 | H177: 0 | I177: 122 | J177: CB-KEV10114 | K177: 2 | L177: 0.07 | M177: 41647 | N177: 1 | O177: 1 | P177: 0 | Q177: 0 | R177: 0 | S177: 39455 | T177: 39637 | U177: 39821 | V177: 40002 | W177: 41647 | X177: 5 | Y177: FALSE | Z177: 63.8 | AA177: 1
A178: DN041378 | B178: SAJ 7.0500% 24.10.2014 | C178: SAJ 7.0500% 24.10.2014 | D178: 1280000000 | E178: SAJ | F178: 7 | G178: 23 | H178: 0 | I178: 128 | J178: CB-SAJ11014 | K178: 2 | L178: 0.0705 | M178: 41936 | N178: 1 | O178: 1 | P178: 0 | Q178: 0 | R178: 0 | S178: 39380 | T178: 39563 | U178: 39745 | V178: 39927 | W178: 41936 | X178: 5 | Y178: FALSE | Z178: 60.7 | AA178: 1
A179: DN051430 | B179: KESTURI 7.8500% 16.10.2015 | C179: KESTURI 7.8500% 16.10.2015 | D179: 780000000 | E179: KESTURI | F179: 7 | G179: 0 | H179: 0 | I179: 132 | J179: SIME | K179: 2 | L179: 0.0785 | M179: 42293 | N179: 1 | O179: 1 | P179: 0 | Q179: 0 | R179: 0 | S179: 39373 | T179: 39556 | U179: 39737 | V179: 39919 | W179: 42293 | X179: 5 | Y179: FALSE | Z179: 0 | AA179: 1
A180: DN060059 | B180: Penang Brg 0.0000% 31.03.2016 | C180: Penang Brg 0.0000% 31.03.2016 | D180: 120000000 | E180: PENANG BRIDGE | F180: 7 | G180: 20 | H180: 0 | I180: 125 | J180: CB-PNG10316 | K180: 2 | L180: 0 | M180: 42460 | N180: 1 | O180: 1 | P180: 0 | Q180: 0 | R180: 0 | S180: 39356 | T180: 39538 | U180: 39721 | V180: 39903 | W180: 42460 | X180: 5 | Y180: FALSE | Z180: 68.4 | AA180: 1
A181: DN060826 | B181: AmIslamic 4.8000% 21.12.2011 | C181: AmIslamic 4.8000% 21.12.2011 | D181: 400000000 | E181: AMISLAMIC | F181: 0 | G181: 0 | H181: 0 | I181: 138 | J181: AmIslamic211216 | K181: 2 | L181: 0.048 | M181: 40898 | N181: 1 | O181: 0 | P181: 0 | Q181: 0 | R181: 0 | S181: 39437 | T181: 39622 | U181: 39803 | V181: 39985 | W181: 40898 | X181: 5 | Y181: FALSE | Z181: 100 | AA181: 1
A182: DO00013W | B182: Encorp 0.0000% 03.01.2011 | C182: Encorp 0.0000% 03.01.2011 | D182: 1321600000 | E182: ENCORP-FI | F182: 2 | G182: 17 | H182: 0 | I182: 132 | J182: CB-ENC10111 | K182: 2 | L182: 0 | M182: 40546 | N182: 3 | O182: 1 | P182: 0 | Q182: 0 | R182: 0 | S182: 39450 | T182: 39632 | U182: 39818 | V182: 39997 | W182: 40546 | X182: 5 | Y182: FALSE | Z182: 60 | AA182: 1
A183: DO00027H | B183: Encorp 0.0000% 03.07.2010 | C183: Encorp 0.0000% 03.07.2010 | D183: 1321600000 | E183: ENCORP-FI | F183: 2 | G183: 17 | H183: 0 | I183: 132 | J183: CB-ENC10710 | K183: 2 | L183: 0 | M183: 40362 | N183: 3 | O183: 1 | P183: 0 | Q183: 0 | R183: 0 | S183: 39450 | T183: 39632 | U183: 39818 | V183: 39997 | W183: 40362 | X183: 5 | Y183: FALSE | Z183: 60 | AA183: 1
A184: DO00313X | B184: SPLASH 3.5000% 19.07.2011 | C184: SPLASH 3.5000% 19.07.2011 | D184: 1407000000 | E184: SPLASH | F184: 7 | G184: 23 | H184: 0 | I184: 128 | J184: CB-SPA10711 | K184: 2 | L184: 0.035 | M184: 40743 | N184: 1 | O184: 1 | P184: 0 | Q184: 0 | R184: 0 | S184: 39465 | T184: 39650 | U184: 39832 | V184: 40014 | W184: 40743 | X184: 5 | Y184: FALSE | Z184: 58.6 | AA184: 1
A185: DO00555T | B185: Penang Brg 8.2000% 30.08.2011 | C185: Penang Brg 8.2000% 30.08.2011 | D185: 200000000 | E185: PENANG BRIDGE | F185: 7 | G185: 20 | H185: 0 | I185: 125 | J185: CB-PNG10811 | K185: 2 | L185: 0.082 | M185: 40785 | N185: 1 | O185: 1 | P185: 0 | Q185: 0 | R185: 0 | S185: 39324 | T185: 39507 | U185: 39689 | V185: 39872 | W185: 40785 | X185: 5 | Y185: FALSE | Z185: 64.2 | AA185: 1
A186: DO011026 | B186: SPRINT 4.0000% 06.02.2012 | C186: SPRINT 4.0000% 06.02.2012 | D186: 510000000 | E186: SPRINT | F186: 7 | G186: 20 | H186: 0 | I186: 138 | J186: CB-SPR10212 | K186: 2 | L186: 0.04 | M186: 40945 | N186: 1 | O186: 1 | P186: 0 | Q186: 0 | R186: 0 | S186: 39484 | T186: 39666 | U186: 39850 | V186: 40031 | W186: 40945 | X186: 5 | Y186: FALSE | Z186: 57.9 | AA186: 1
A187: DO011963 | B187: TTPC 8.5500% 13.09.2012 | C187: TTPC 8.5500% 13.09.2012 | D187: 1515000000 | E187: TTPC | F187: 7 | G187: 15 | H187: 0 | I187: 122 | J187: CB-TTP10912 | K187: 2 | L187: 0.0855 | M187: 41165 | N187: 1 | O187: 1 | P187: 0 | Q187: 0 | R187: 0 | S187: 39338 | T187: 39520 | U187: 39706 | V187: 39885 | W187: 41165 | X187: 5 | Y187: FALSE | Z187: 54.8 | AA187: 1
A188: DO020820 | B188: KESAS 7.9500% 11.10.2013 | C188: KESAS 7.9500% 11.10.2013 | D188: 250000000 | E188: KESAS | F188: 7 | G188: 20 | H188: 0 | I188: 128 | J188: CB-KSS11013 | K188: 2 | L188: 0.0795 | M188: 41558 | N188: 3 | O188: 1 | P188: 0 | Q188: 0 | R188: 0 | S188: 39366 | T188: 39549 | U188: 39734 | V188: 39916 | W188: 41558 | X188: 5 | Y188: FALSE | Z188: 57.1 | AA188: 1
A189: DO02440V | B189: PLUS 0.0000% 20.06.2013 | C189: PLUS 0.0000% 20.06.2013 | D189: 2260000000 | E189: PLUS | F189: 7 | G189: 20 | H189: 0 | I189: 115 | J189: CB-PLU10613 | K189: 2 | L189: 0 | M189: 41445 | N189: 1 | O189: 1 | P189: 0 | Q189: 0 | R189: 0 | S189: 39437 | T189: 39619 | U189: 39804 | V189: 39986 | W189: 41445 | X189: 5 | Y189: FALSE | Z189: 73.2 | AA189: 1
A190: DO02441A | B190: PLUS 0.0000% 20.12.2013 | C190: PLUS 0.0000% 20.12.2013 | D190: 2260000000 | E190: PLUS | F190: 7 | G190: 20 | H190: 0 | I190: 115 | J190: CB-PLU11213 | K190: 2 | L190: 0 | M190: 41628 | N190: 1 | O190: 1 | P190: 0 | Q190: 0 | R190: 0 | S190: 39437 | T190: 39619 | U190: 39804 | V190: 39986 | W190: 41628 | X190: 5 | Y190: FALSE | Z190: 73.2 | AA190: 1
A191: DO030162 | B191: ELITE 7.5000% 28.02.2014 | C191: ELITE 7.5000% 28.02.2014 | D191: 800000000 | E191: ELITE | F191: 7 | G191: 20 | H191: 0 | I191: 125 | J191: CB-ELT10214 | K191: 2 | L191: 0.075 | M191: 41698 | N191: 1 | O191: 1 | P191: 0 | Q191: 0 | R191: 0 | S191: 39322 | T191: 39506 | U191: 39692 | V191: 39874 | W191: 41698 | X191: 5 | Y191: FALSE | Z191: 54.2 | AA191: 1
A192: DO03713V | B192: Aldwich 0.0000% 15.08.2012 | C192: Aldwich 0.0000% 15.08.2012 | D192: 190000000 | E192: ALDWICH | F192: 13 | G192: 17 | H192: 0 | I192: 125 | J192: CB-ALD10812 | K192: 2 | L192: 0 | M192: 41136 | N192: 3 | O192: 1 | P192: 0 | Q192: 0 | R192: 0 | S192: 39493 | T192: 39675 | U192: 39860 | V192: 40042 | W192: 41136 | X192: 5 | Y192: FALSE | Z192: 65.2 | AA192: 1
A193: DO040562 | B193: KEV 7.3500% 08.01.2015 | C193: KEV 7.3500% 08.01.2015 | D193: 1850000000 | E193: KAPAR | F193: 7 | G193: 15 | H193: 0 | I193: 122 | J193: CB-KEV10115 | K193: 2 | L193: 0.0735 | M193: 42012 | N193: 1 | O193: 1 | P193: 0 | Q193: 0 | R193: 0 | S193: 39455 | T193: 39637 | U193: 39821 | V193: 40002 | W193: 42012 | X193: 5 | Y193: FALSE | Z193: 63.8 | AA193: 1
A194: DO041399 | B194: SAJ 7.3500% 23.10.2015 | C194: SAJ 7.3500% 23.10.2015 | D194: 1280000000 | E194: SAJ | F194: 7 | G194: 23 | H194: 0 | I194: 128 | J194: CB-SAJ11015 | K194: 2 | L194: 0.0735 | M194: 42300 | N194: 1 | O194: 1 | P194: 0 | Q194: 0 | R194: 1 | S194: 39380 | T194: 39563 | U194: 39745 | V194: 39927 | W194: 42300 | X194: 5 | Y194: FALSE | Z194: 60.7 | AA194: 1
A195: DO051889 | B195: MAYBANK 4.4800% 24.11.2010 | C195: MAYBANK 4.4800% 24.11.2010 | D195: 1000000000 | E195: MAYBANK | F195: 4 | G195: 6 | H195: 0 | I195: 122 | J195: CB-MBB11115 | K195: 2 | L195: 0.0448 | M195: 40506 | N195: 1 | O195: 1 | P195: 0 | Q195: 0 | R195: 0 | S195: 39412 | T195: 39594 | U195: 39776 | V195: 39958 | W195: 40506 | X195: 5 | Y195: FALSE | Z195: 100 | AA195: 1
A196: DO05344S | B196: PLUS 0.0000% 17.06.2016 | C196: PLUS 0.0000% 17.06.2016 | D196: 2260000000 | E196: PLUS | F196: 7 | G196: 20 | H196: 0 | I196: 115 | J196: CB-PLU20616 | K196: 2 | L196: 0 | M196: 42538 | N196: 3 | O196: 1 | P196: 0 | Q196: 0 | R196: 0 | S196: 39433 | T196: 39616 | U196: 39799 | V196: 39981 | W196: 42538 | X196: 5 | Y196: FALSE | Z196: 73.2 | AA196: 1
A197: DO060060 | B197: Penang Brg 0.0000% 31.03.2017 | C197: Penang Brg 0.0000% 31.03.2017 | D197: 125000000 | E197: PENANG BRIDGE | F197: 7 | G197: 20 | H197: 0 | I197: 125 | J197: CB-PNG10317 | K197: 2 | L197: 0 | M197: 42825 | N197: 1 | O197: 1 | P197: 0 | Q197: 0 | R197: 0 | S197: 39356 | T197: 39538 | U197: 39721 | V197: 39903 | W197: 42825 | X197: 5 | Y197: FALSE | Z197: 68.4 | AA197: 1
A198: DP00014T | B198: Encorp 0.0000% 03.01.2012 | C198: Encorp 0.0000% 03.01.2012 | D198: 1321600000 | E198: ENCORP-FI | F198: 2 | G198: 17 | H198: 0 | I198: 132 | J198: CB-ENC10112 | K198: 2 | L198: 0 | M198: 40911 | N198: 3 | O198: 1 | P198: 0 | Q198: 0 | R198: 0 | S198: 39450 | T198: 39632 | U198: 39818 | V198: 39997 | W198: 40911 | X198: 5 | Y198: FALSE | Z198: 60 | AA198: 1
A199: DP00314H | B199: SPLASH 8.2500% 19.07.2012 | C199: SPLASH 8.2500% 19.07.2012 | D199: 1407000000 | E199: SPLASH | F199: 7 | G199: 23 | H199: 0 | I199: 128 | J199: CB-SPA10712 | K199: 2 | L199: 0.0825 | M199: 41109 | N199: 1 | O199: 1 | P199: 0 | Q199: 0 | R199: 0 | S199: 39465 | T199: 39650 | U199: 39832 | V199: 40014 | W199: 41109 | X199: 5 | Y199: FALSE | Z199: 58.6 | AA199: 1
A200: DP00556S | B200: Penang Brg 8.3500% 30.08.2012 | C200: Penang Brg 8.3500% 30.08.2012 | D200: 785000000 | E200: PENANG BRIDGE | F200: 7 | G200: 20 | H200: 0 | I200: 125 | J200: CB-PNG10812 | K200: 2 | L200: 0.0835 | M200: 41151 | N200: 1 | O200: 1 | P200: 0 | Q200: 0 | R200: 0 | S200: 39324 | T200: 39507 | U200: 39689 | V200: 39872 | W200: 41151 | X200: 5 | Y200: FALSE | Z200: 64.2 | AA200: 1
A201: DP011028 | B201: SPRINT 4.0000% 06.02.2013 | C201: SPRINT 4.0000% 06.02.2013 | D201: 510000000 | E201: SPRINT | F201: 7 | G201: 20 | H201: 0 | I201: 138 | J201: CB-SPR10213 | K201: 2 | L201: 0.04 | M201: 41311 | N201: 1 | O201: 1 | P201: 0 | Q201: 0 | R201: 0 | S201: 39484 | T201: 39666 | U201: 39850 | V201: 40031 | W201: 41311 | X201: 5 | Y201: FALSE | Z201: 57.9 | AA201: 1
... 425 more rows
